Workbook

Sheet CONTENIDO E INSTRUCCIONES
E4: CALCULADORA DE HUELLA DE CARBONO DE ALCANCE 1+2 PARA ORGANIZACIONES 2010 - 2019
M5: V.20
B9: CONTENIDO
B10: En la presente edición se ha añadido la pestaña 9. Consumos. Hoja de trabajo. Si le facilita el trabajo, puede recopilar en esta hoja los datos de consumo desglosados según facturas, lecturas de contadores, etc.
C13: 1. | E13: Datos generales de la organización
C15: 2. | E15: Huella de carbono Alcance 1: Combustibles fósiles
C17: 3. | E17: Huella de carbono Alcance 1: Fugas de gases fluorados (equipos de climatización y refrigeración)
C19: 4. | E19: Huella de carbono Alcance 2: Electricidad
C21: 5. | E21: Información adicional: Renovables
C23: 6. | E23: Informe final: Resultados
C25: 7. | E25: Factores de emisión y PCA
C27: 8. | E27: Observaciones / Explicaciones. Ayuda para la correcta cumplimentación
C29: 9. | E29: Consumos. Hoja de trabajo
C31: 10. | E31: Revisiones de la calculadora
B33: INSTRUCCIONES PARA LA CUMPLIMENTACIÓN: USO DE LA CALCULADORA
E38: Dato numérico a introducir en las unidades indicadas | I38: Factores de emisión y Potenciales de calentamiento global
E39: Dato a introducir entre los considerados en el desplegable | I39: Resultado parcial de emisiones
E40: Dato de cumplimentación voluntaria | I40: Resultado total de emisiones
F43: Observaciones o explicaciones que servirán de ayuda para la correcta cumplimentación

Sheet 1_Datos generales organización
C1: DATOS GENERALES DE LA ORGANIZACIÓN
A3: 1. Datos de la organización | D3: AÑO DE CÁLCULO
A4: 2. HC Alcance 1: Comb. fósiles
A5: 3. HC Alcance 1: Fugas fluorados | D5: NOMBRE DE LA ORGANIZACIÓN | J5: C.I.F. / N.I.F. | K5: TIPO DE ORGANIZACIÓN 8 (1) | Y5: =D6 -> 0
A6: 4. HC 2: Electricidad | Y6: =D9 -> 0
A7: 5. Inf. adicional: renovables
A8: 6. Informe final: Resultados | D8: SECTOR (2)
A9: 7. Factores de emisión, PCG, mix
A10: 8. Ayuda: observaciones
A11: 9. Consumos. Hoja de trabajo | D11: En el caso de haber calculado la huella de carbono de su organización para otros años anteriores, indique a continuación cuáles son y los valores de huella de carbono de alcance 1+2 obtenidos. Comience a introducir los datos por el AÑO 1.
G14: AÑO 1 | J14: HC AÑO 1 | L14: t CO2 eq
G16: AÑO 2 | J16: HC AÑO 2 | L16: t CO2 eq
F17: (3) | I17: (4)
G18: AÑO 3 | J18: HC AÑO 3 | L18: t CO2 eq
G20: AÑO de cálculo | H20: =IF(ISNUMBER(G3),G3,"") ->  | J20: HC año de cálculo | K20: =IF((Datos!E244)>0,Datos!E244,"") ->  | L20: t CO2 eq
D22: A continuación deberá indicar el índice (nombre, valor numérico y unidades) que refleje de manera más adecuada el nivel de actividad de su organización. En el apartado 6_Resultados podrá encontrar el valor del ratio de emisiones referido a este índice.
I25: AÑO | J25: ÍNDICE DE ACTIVIDAD
J26: Nombre | K26: Valor numérico | L26: Unidades
H27: AÑO de cálculo | I27: =IF(ISNUMBER(H20),H20,"") -> 
G29: (5) | H29: Año 1 | I29: =IF(ISNUMBER(H14),H14,"") ->  | J29: =IF(AND(ISNUMBER(I29),ISTEXT(J27)),J27,"") ->  | L29: =IF(AND(ISNUMBER(I29),ISTEXT(L27)),L27,"") -> 
H30: Año 2 | I30: =IF(ISNUMBER(H16),H16,"") ->  | J30: =IF(AND(ISNUMBER(I30),ISTEXT(J27)),J27,"") ->  | L30: =IF(AND(ISNUMBER(I30),ISTEXT(L27)),L27,"") -> 
H31: Año 3 | I31: =IF(ISNUMBER(H18),H18,"") ->  | J31: =IF(AND(ISNUMBER(I31),ISTEXT(J27)),J27,"") ->  | L31: =IF(AND(ISNUMBER(I31),ISTEXT(L27)),L27,"") -> 
D34: De manera opcional, puede cumplimentar los datos de superficie y nº de empleados de su organización con el fin de obtener resultados relativos a estos parámetros en la hoja 6_Resultados.
I37: AÑO | J37: Superficie (m2) | K37: Nº de empleados
H38: Año de cálculo | I38: =IF(ISNUMBER(H20),H20,"") -> 
G40: (6) | H40: Año 1 | I40: =IF(ISNUMBER(H14),H14,"") -> 
H41: Año 2 | I41: =IF(ISNUMBER(H16),H16,"") -> 
H42: Año 3 | I42: =IF(ISNUMBER(H18),H18,"") -> 

Sheet 2_Combustibles fósiles
C1: ALCANCE 1: COMBUSTIBLES FÓSILES
A3: 1. Datos de la organización | E3: Cumplimentar en caso de que la organización, para el desarrollo de su actividad:
A4: 2. HC Alcance 1: Comb. fósiles
A5: 3. HC Alcance 1: Fugas fluorados | E5: A. Disponga de instalaciones fijas (calderas, hornos, turbinas, etc.) que consuman combustibles fósiles para la generación de calor y/o vapor
A6: 4. HC 2: Electricidad | E6: B. Realice desplazamientos en vehículos propios o alquilados (ya sean turismos, camiones, furgonetas, motos, etc.)
A7: 5. Inf. adicional: renovables | E7: En caso de que la organización consuma electricidad, calor o vapor proveniente de sus propias instalaciones de energía renovable, puede incluir datos relativos a las mismas en la pestaña 5_Información adicional.
A8: 6. Informe final: Resultados
A11: 7. Factores de emisión, PCG, mix
A12: 8. Ayuda: observaciones | D12: A. INSTALACIONES FIJAS
A13: 9. Consumos. Hoja de trabajo | E13: =IF(ISNUMBER('1_Datos generales organización'!G3),"","Para que aparezca el factor de emisión según tipo de combustible, introduzca el AÑO DE CÁLCULO en la pestaña 1_Datos generales de la organización") -> Para que aparezca el factor de emisión según tipo de combustible, introduzca el AÑO DE CÁLCULO en la pestaña 1_Datos generales de la organización
E14: CONSUMO DE COMBUSTIBLES EN INSTALACIONES FIJAS
E15: Edificio / Sede (1) | F15: Tipo de Combustible (2) | G15: Cantidad comb. (ud) (3) | H15: Factor emisión (kg CO2/ud) (4) | J15: Emisiones parciales (kg CO2) | K15: EMISIONES TOTALES INSTALAC. FIJAS (kg CO2)
H16: Por defecto | I16: Otros
E17: edificio | J17: emisiones
H18: =IF(OR(ISNUMBER(Datos!Q87),ISTEXT(Datos!Q87)),Datos!Q87,"") ->  | J18: =IF(AND(ISNUMBER(G18),ISNUMBER(Datos!R87)),Datos!R87,"") ->  | K18: =SUM(J18:J39) -> 0.00
H19: =IF(OR(ISNUMBER(Datos!Q88),ISTEXT(Datos!Q88)),Datos!Q88,"") ->  | J19: =IF(AND(ISNUMBER(G19),ISNUMBER(Datos!R88)),Datos!R88,"") -> 
H20: =IF(OR(ISNUMBER(Datos!Q89),ISTEXT(Datos!Q89)),Datos!Q89,"") ->  | J20: =IF(AND(ISNUMBER(G20),ISNUMBER(Datos!R89)),Datos!R89,"") -> 
H21: =IF(OR(ISNUMBER(Datos!Q90),ISTEXT(Datos!Q90)),Datos!Q90,"") ->  | J21: =IF(AND(ISNUMBER(G21),ISNUMBER(Datos!R90)),Datos!R90,"") -> 
H22: =IF(OR(ISNUMBER(Datos!Q91),ISTEXT(Datos!Q91)),Datos!Q91,"") ->  | J22: =IF(AND(ISNUMBER(G22),ISNUMBER(Datos!R91)),Datos!R91,"") -> 
H23: =IF(OR(ISNUMBER(Datos!Q92),ISTEXT(Datos!Q92)),Datos!Q92,"") ->  | J23: =IF(AND(ISNUMBER(G23),ISNUMBER(Datos!R92)),Datos!R92,"") -> 
H24: =IF(OR(ISNUMBER(Datos!Q93),ISTEXT(Datos!Q93)),Datos!Q93,"") ->  | J24: =IF(AND(ISNUMBER(G24),ISNUMBER(Datos!R93)),Datos!R93,"") -> 
H25: =IF(OR(ISNUMBER(Datos!Q94),ISTEXT(Datos!Q94)),Datos!Q94,"") ->  | J25: =IF(AND(ISNUMBER(G25),ISNUMBER(Datos!R94)),Datos!R94,"") -> 
H26: =IF(OR(ISNUMBER(Datos!Q95),ISTEXT(Datos!Q95)),Datos!Q95,"") ->  | J26: =IF(AND(ISNUMBER(G26),ISNUMBER(Datos!R95)),Datos!R95,"") -> 
H27: =IF(OR(ISNUMBER(Datos!Q96),ISTEXT(Datos!Q96)),Datos!Q96,"") ->  | J27: =IF(AND(ISNUMBER(G27),ISNUMBER(Datos!R96)),Datos!R96,"") -> 
H28: =IF(OR(ISNUMBER(Datos!Q97),ISTEXT(Datos!Q97)),Datos!Q97,"") ->  | J28: =IF(AND(ISNUMBER(G28),ISNUMBER(Datos!R97)),Datos!R97,"") -> 
H29: =IF(OR(ISNUMBER(Datos!Q98),ISTEXT(Datos!Q98)),Datos!Q98,"") ->  | J29: =IF(AND(ISNUMBER(G29),ISNUMBER(Datos!R98)),Datos!R98,"") -> 
H30: =IF(OR(ISNUMBER(Datos!Q99),ISTEXT(Datos!Q99)),Datos!Q99,"") ->  | J30: =IF(AND(ISNUMBER(G30),ISNUMBER(Datos!R99)),Datos!R99,"") -> 
H31: =IF(OR(ISNUMBER(Datos!Q100),ISTEXT(Datos!Q100)),Datos!Q100,"") ->  | J31: =IF(AND(ISNUMBER(G31),ISNUMBER(Datos!R100)),Datos!R100,"") -> 
H32: =IF(OR(ISNUMBER(Datos!Q101),ISTEXT(Datos!Q101)),Datos!Q101,"") ->  | J32: =IF(AND(ISNUMBER(G32),ISNUMBER(Datos!R101)),Datos!R101,"") -> 
H33: =IF(OR(ISNUMBER(Datos!Q102),ISTEXT(Datos!Q102)),Datos!Q102,"") ->  | J33: =IF(AND(ISNUMBER(G33),ISNUMBER(Datos!R102)),Datos!R102,"") -> 
H34: =IF(OR(ISNUMBER(Datos!Q103),ISTEXT(Datos!Q103)),Datos!Q103,"") ->  | J34: =IF(AND(ISNUMBER(G34),ISNUMBER(Datos!R103)),Datos!R103,"") -> 
H35: =IF(OR(ISNUMBER(Datos!Q104),ISTEXT(Datos!Q104)),Datos!Q104,"") ->  | J35: =IF(AND(ISNUMBER(G35),ISNUMBER(Datos!R104)),Datos!R104,"") -> 
H36: =IF(OR(ISNUMBER(Datos!Q105),ISTEXT(Datos!Q105)),Datos!Q105,"") ->  | J36: =IF(AND(ISNUMBER(G36),ISNUMBER(Datos!R105)),Datos!R105,"") -> 
H37: =IF(OR(ISNUMBER(Datos!Q106),ISTEXT(Datos!Q106)),Datos!Q106,"") ->  | J37: =IF(AND(ISNUMBER(G37),ISNUMBER(Datos!R106)),Datos!R106,"") -> 
H38: =IF(OR(ISNUMBER(Datos!Q107),ISTEXT(Datos!Q107)),Datos!Q107,"") ->  | J38: =IF(AND(ISNUMBER(G38),ISNUMBER(Datos!R107)),Datos!R107,"") -> 
H39: =IF(OR(ISNUMBER(Datos!Q108),ISTEXT(Datos!Q108)),Datos!Q108,"") ->  | J39: =IF(AND(ISNUMBER(G39),ISNUMBER(Datos!R108)),Datos!R108,"") -> 
E40: * Factor de emisión del gas natural expresado en kgCO2/kWhPCS
D41: B. DESPLAZAMIENTOS EN VEHÍCULOS QUE CONSUMEN COMBUSTIBLES FÓSILES
E43: TIPO DE COMBUSTIBLE
E44: Se actualiza la denominación de los combustibles en base al Real Decreto 639/2016, de 9 de diciembre, por el que se establece un marco de medidas para la implantación de una infraestructura para los combustibles alternativos. Se trata de un etiquetado único y armonizado en todas las gasolineras de la Unión Europea y se basa en un sistema de símbolos, números y letras para la gasolina, diésel y combustibles gaseosos:
E46: - Círculo para combustibles tipo gasolina. Y dentro del círculo, la letra «E» (de «etanol») y un número que indica el porcentaje máximo de etanol.
E47: - Cuadrado para combustibles tipo gasóleo A. Y dentro la letra «B» de «biodiésel» y «XTL» para el diésel parafínico fabricado a partir de material fósil o renovable.
E48: - Rombo para combustibles gaseosos: «H2» (hidrógeno), «LPG» (gas licuado de petróleo o autogas), «CNG» (gas natural comprimido), «LNG» (gas natural licuado).
E49: Si en su factura aparece el dato de combustible como gasolina o gasóleo A (no se especifica la proporción de biocombustible), deberá escoger la opción más conservadora que en caso de ser gasolina será «E5», y en caso de ser gasóleo A, será «B7». En caso de que el combustible empleado no sea ninguno de los expresados anteriormente tiene la opción de indicar "Otros (ud)" y rellenar los datos correspondientes (valor y unidades del factor de emisión) en las respectivas celdas y en la pestaña 8. Observaciones . En concreto, si se trata de un biocombustible distinto a los indicados, le sugerimos que consulte el modo de calcular su factor de emisión en base a la proporción bio en la
E52: Guía para el cálculo de la huella de carbono y para la elaboración de un plan de mejora.
E53: CUMPLIMENTACIÓN
E54: En caso de tratarse de vehículos eléctricos o vehículos híbridos deberá seguir las siguientes indicaciones para cumplimentar sus datos de consumo: - Vehículo híbrido no enchufable: indicar en la presente pestaña los litros de combustible fósil consumido - Vehículo híbrido enchufable: en la presente pestaña indicar los litros de combustible fósil consumido y en la pestaña 4_Electricidad, los kWh consumidos - Vehículo eléctrico: indicar los kWh consumidos en la pestaña 4_Electricidad
E55: Por otra parte, únicamente será necesario cumplimentar una de las dos opciones (B.1 o B.2) en función de los datos disponibles: Opción B.1: Los datos necesarios son el tipo y la cantidad de combustible consumido.
E56: Opción B.2: Los datos necesarios son el modelo de coche, tipo de combustible y los km recorridos.
E58: CONSUMO DE COMBUSTIBLES EN DESPLAZAMIENTOS (5) | P58: EMISIONES TOTALES TRANSPORTE (kg CO2)
E59: Opción B.1 (Combustible consumido) | K59: Opción B.2 (km recorridos y modelo de coche)
E60: Vehículo o flota de vehículos (6) | F60: Tipo de Combustible (7) | G60: Factor emisión (kg CO2/ud) (8) | I60: Cantidad comb. (ud) (9) | J60: Emisiones parciales B.1 (kg CO2) | K60: Modelo de coche | M60: km recorridos | N60: g CO2/km IDAE (10) | O60: Emisiones parciales B.2 (kg CO2)
G61: Por defecto | H61: Otros
G62: =IF(OR(ISNUMBER(Datos!P115),ISTEXT(Datos!P115)),Datos!P115,"") ->  | J62: =IF(AND(ISNUMBER(I62),ISNUMBER(Datos!Q115)),Datos!Q115,"") ->  | O62: =IF(Datos!R115=0,"",Datos!R115) ->  | P62: =SUM(J82+O82) -> 0.00
G63: =IF(OR(ISNUMBER(Datos!P116),ISTEXT(Datos!P116)),Datos!P116,"") ->  | J63: =IF(AND(ISNUMBER(I63),ISNUMBER(Datos!Q116)),Datos!Q116,"") ->  | O63: =IF(Datos!R116=0,"",Datos!R116) -> 
G64: =IF(OR(ISNUMBER(Datos!P117),ISTEXT(Datos!P117)),Datos!P117,"") ->  | J64: =IF(AND(ISNUMBER(I64),ISNUMBER(Datos!Q117)),Datos!Q117,"") ->  | O64: =IF(Datos!R117=0,"",Datos!R117) -> 
G65: =IF(OR(ISNUMBER(Datos!P118),ISTEXT(Datos!P118)),Datos!P118,"") ->  | J65: =IF(AND(ISNUMBER(I65),ISNUMBER(Datos!Q118)),Datos!Q118,"") ->  | O65: =IF(Datos!R118=0,"",Datos!R118) -> 
G66: =IF(OR(ISNUMBER(Datos!P119),ISTEXT(Datos!P119)),Datos!P119,"") ->  | J66: =IF(AND(ISNUMBER(I66),ISNUMBER(Datos!Q119)),Datos!Q119,"") ->  | O66: =IF(Datos!R119=0,"",Datos!R119) -> 
G67: =IF(OR(ISNUMBER(Datos!P120),ISTEXT(Datos!P120)),Datos!P120,"") ->  | J67: =IF(AND(ISNUMBER(I67),ISNUMBER(Datos!Q120)),Datos!Q120,"") ->  | O67: =IF(Datos!R120=0,"",Datos!R120) -> 
G68: =IF(OR(ISNUMBER(Datos!P121),ISTEXT(Datos!P121)),Datos!P121,"") ->  | J68: =IF(AND(ISNUMBER(I68),ISNUMBER(Datos!Q121)),Datos!Q121,"") ->  | O68: =IF(Datos!R121=0,"",Datos!R121) -> 
G69: =IF(OR(ISNUMBER(Datos!P122),ISTEXT(Datos!P122)),Datos!P122,"") ->  | J69: =IF(AND(ISNUMBER(I69),ISNUMBER(Datos!Q122)),Datos!Q122,"") ->  | O69: =IF(Datos!R122=0,"",Datos!R122) -> 
G70: =IF(OR(ISNUMBER(Datos!P123),ISTEXT(Datos!P123)),Datos!P123,"") ->  | J70: =IF(AND(ISNUMBER(I70),ISNUMBER(Datos!Q123)),Datos!Q123,"") ->  | O70: =IF(Datos!R123=0,"",Datos!R123) -> 
G71: =IF(OR(ISNUMBER(Datos!P124),ISTEXT(Datos!P124)),Datos!P124,"") ->  | J71: =IF(AND(ISNUMBER(I71),ISNUMBER(Datos!Q124)),Datos!Q124,"") ->  | O71: =IF(Datos!R124=0,"",Datos!R124) -> 
G72: =IF(OR(ISNUMBER(Datos!P125),ISTEXT(Datos!P125)),Datos!P125,"") ->  | J72: =IF(AND(ISNUMBER(I72),ISNUMBER(Datos!Q125)),Datos!Q125,"") ->  | O72: =IF(Datos!R125=0,"",Datos!R125) -> 
G73: =IF(OR(ISNUMBER(Datos!P126),ISTEXT(Datos!P126)),Datos!P126,"") ->  | J73: =IF(AND(ISNUMBER(I73),ISNUMBER(Datos!Q126)),Datos!Q126,"") ->  | O73: =IF(Datos!R126=0,"",Datos!R126) -> 
G74: =IF(OR(ISNUMBER(Datos!P127),ISTEXT(Datos!P127)),Datos!P127,"") ->  | J74: =IF(AND(ISNUMBER(I74),ISNUMBER(Datos!Q127)),Datos!Q127,"") ->  | O74: =IF(Datos!R127=0,"",Datos!R127) -> 
G75: =IF(OR(ISNUMBER(Datos!P128),ISTEXT(Datos!P128)),Datos!P128,"") ->  | J75: =IF(AND(ISNUMBER(I75),ISNUMBER(Datos!Q128)),Datos!Q128,"") ->  | O75: =IF(Datos!R128=0,"",Datos!R128) -> 
G76: =IF(OR(ISNUMBER(Datos!P129),ISTEXT(Datos!P129)),Datos!P129,"") ->  | J76: =IF(AND(ISNUMBER(I76),ISNUMBER(Datos!Q129)),Datos!Q129,"") ->  | O76: =IF(Datos!R129=0,"",Datos!R129) -> 
G77: =IF(OR(ISNUMBER(Datos!P130),ISTEXT(Datos!P130)),Datos!P130,"") ->  | J77: =IF(AND(ISNUMBER(I77),ISNUMBER(Datos!Q130)),Datos!Q130,"") ->  | O77: =IF(Datos!R130=0,"",Datos!R130) -> 
G78: =IF(OR(ISNUMBER(Datos!P131),ISTEXT(Datos!P131)),Datos!P131,"") ->  | J78: =IF(AND(ISNUMBER(I78),ISNUMBER(Datos!Q131)),Datos!Q131,"") ->  | O78: =IF(Datos!R131=0,"",Datos!R131) -> 
G79: =IF(OR(ISNUMBER(Datos!P132),ISTEXT(Datos!P132)),Datos!P132,"") ->  | J79: =IF(AND(ISNUMBER(I79),ISNUMBER(Datos!Q132)),Datos!Q132,"") ->  | O79: =IF(Datos!R132=0,"",Datos!R132) -> 
G80: =IF(OR(ISNUMBER(Datos!P133),ISTEXT(Datos!P133)),Datos!P133,"") ->  | J80: =IF(AND(ISNUMBER(I80),ISNUMBER(Datos!Q133)),Datos!Q133,"") ->  | O80: =IF(Datos!R133=0,"",Datos!R133) -> 
G81: =IF(OR(ISNUMBER(Datos!P134),ISTEXT(Datos!P134)),Datos!P134,"") ->  | J81: =IF(AND(ISNUMBER(I81),ISNUMBER(Datos!Q134)),Datos!Q134,"") ->  | O81: =IF(Datos!R134=0,"",Datos!R134) -> 
J82: =SUM(J62:J81) -> 0.00 | O82: =SUM(O62:O81) -> 0.00
E83: * Factor de emisión del gas natural expresado en kgCO2/kWhPCS
N106: =K18 -> 0.00
N107: =P62 -> 0.00

Sheet 3_Fluorados
C1: ALCANCE 1: EMISIONES FUGITIVAS - FLUORADOS
A3: 1. Datos de la organización | D3: Cumplimentar en caso de que la organización disponga de equipos de refrigeración y/o climatización que utilicen gases refrigerantes fluorados y de que se haya detectado que se han producido fugas (ya sea por su uso, un accidente, etc.) de estos gases en los mismos.
A4: 2. HC Alcance 1: Comb. fósiles
A5: 3. HC Alcance 1: Fugas fluorados
A6: 4. HC 2: Electricidad | E6: REFRIGERACIÓN Y CLIMATIZACIÓN (FUGA DE GASES FLUORADOS)
A7: 5. Inf. adicional: renovables
A8: 6. Informe final: Resultados | E8: Refrigerante de cada equipo | K8: Tipo de equipo | L8: Carga inicial del equipo (kg) | M8: Recarga anual del equipo (4) (kg) | N8: Emisiones parciales (kg CO2eq) | O8: Emisiones totales (kg CO2eq)
A9: 7. Factores de emisión, PCG, mix | E9: Edificio / Sede (1) | F9: Nombre del gas o de la mezcla (2) | G9: PCA (3) | H9: OTRAS MEZCLAS * | J9: Fórmula química
A10: 8. Ayuda: observaciones | H10: Nombre | I10: PCA
E11: edificio | N11: emisiones
A12: 9. Consumos. Hoja de trabajo | G12: =IF(ISNUMBER(Datos!I138),Datos!I138,"") ->  | J12: =Datos!M138 ->  | N12: =IF(AND(G12="",M12=""),"",IF(G12="",ROUND((I12*M12),0),ROUND((G12*M12),0))) ->  | O12: =SUM(N12:N33) -> 0.00
G13: =IF(ISNUMBER(Datos!I139),Datos!I139,"") ->  | J13: =Datos!M139 ->  | N13: =IF(AND(G13="",M13=""),"",IF(G13="",ROUND((I13*M13),0),ROUND((G13*M13),0))) -> 
G14: =IF(ISNUMBER(Datos!I140),Datos!I140,"") ->  | J14: =Datos!M140 -> 
G15: =IF(ISNUMBER(Datos!I141),Datos!I141,"") ->  | J15: =Datos!M141 -> 
G16: =IF(ISNUMBER(Datos!I142),Datos!I142,"") ->  | J16: =Datos!M142 -> 
G17: =IF(ISNUMBER(Datos!I143),Datos!I143,"") ->  | J17: =Datos!M143 -> 
G18: =IF(ISNUMBER(Datos!I144),Datos!I144,"") ->  | J18: =Datos!M144 -> 
G19: =IF(ISNUMBER(Datos!I145),Datos!I145,"") ->  | J19: =Datos!M145 -> 
G20: =IF(ISNUMBER(Datos!I146),Datos!I146,"") ->  | J20: =Datos!M146 -> 
G21: =IF(ISNUMBER(Datos!I147),Datos!I147,"") ->  | J21: =Datos!M147 -> 
G22: =IF(ISNUMBER(Datos!I148),Datos!I148,"") ->  | J22: =Datos!M148 -> 
G23: =IF(ISNUMBER(Datos!I149),Datos!I149,"") ->  | J23: =Datos!M149 -> 
G24: =IF(ISNUMBER(Datos!I150),Datos!I150,"") ->  | J24: =Datos!M150 -> 
G25: =IF(ISNUMBER(Datos!I151),Datos!I151,"") ->  | J25: =Datos!M151 -> 
G26: =IF(ISNUMBER(Datos!I152),Datos!I152,"") ->  | J26: =Datos!M152 -> 
G27: =IF(ISNUMBER(Datos!I153),Datos!I153,"") ->  | J27: =Datos!M153 -> 
G28: =IF(ISNUMBER(Datos!I154),Datos!I154,"") ->  | J28: =Datos!M154 -> 
G29: =IF(ISNUMBER(Datos!I155),Datos!I155,"") ->  | J29: =Datos!M155 -> 
G30: =IF(ISNUMBER(Datos!I156),Datos!I156,"") ->  | J30: =Datos!M156 ->  | N30: =IF(AND(G30="",M30=""),"",IF(G30="",ROUND((I30*M30),0),ROUND((G30*M30),0))) -> 
G31: =IF(ISNUMBER(Datos!I157),Datos!I157,"") ->  | J31: =Datos!M157 ->  | N31: =IF(AND(G31="",M31=""),"",IF(G31="",ROUND((I31*M31),0),ROUND((G31*M31),0))) -> 
G32: =IF(ISNUMBER(Datos!I158),Datos!I158,"") ->  | J32: =Datos!M158 -> 
G33: =IF(ISNUMBER(Datos!I159),Datos!I159,"") ->  | J33: =Datos!M159 -> 
E35: * En caso de considerar otros gases puros (fluorados y no fluorados) no incluidos en el listado, puede consultar su PCA en los Anexos I, II, y IV del Reglamento (UE) N° 517/2014 del Parlamento Europeo y del Consejo, de 16 de abril de 2014, sobre los gases fluorados de efecto invernadero y por el que se deroga el Reglamento (CE) N° 842/2006. Asimismo, si incluye en el cálculo otras "mezclas" no contempladas en el listado, deberá calcular su PCA empleando los PCA para cada uno de sus componentes y en funión de la proporción que aparezcan en la mezcla. Puede consultar el PCA de los componentes en la pestaña 7_Factores de emisión y, en su defecto, en el Reglamento (UE) nº 517/2014.
E38: Nota: las emisiones calculadas en este apartado se deben a fugas que han podido producirse durante años anteriores pero no han sido registradas hasta el año en que se realiza su recarga.

Sheet 4_Electricidad
C1: ALCANCE 2: ELECTRICIDAD | P1: ='1_Datos generales organización'!G3 -> 0
A3: 1. Datos de la organización | D3: Cumplimentar en caso de que la organización, para el desarrollo de su actividad, consuma electricidad contratada (comprada) en sus edificios y/o disponga de vehículos eléctricos y/o híbridos enchufables.
A4: 2. HC Alcance 1: Comb. fósiles
A5: 3. HC Alcance 1: Fugas fluorados | D5: CONSUMO DE ELECTRICIDAD EN EDIFICIOS
A6: 4. HC 2: Electricidad
A7: 5. Inf. adicional: renovables | D7: Se excluyen las emisiones derivadas de la electricidad comprada para ser revendida y las emisiones procedentes de la transmisión y distribución de la electricidad. Estas emisiones formarían parte de las emisiones indirectas de alcance 3, que no se incluyen en la presente calculadora.
A8: 6. Informe final: Resultados
A9: 7. Factores de emisión, PCG, mix | D9: En el siguiente cuadro tendrá que reflejar si la electricidad contratada dispone de certificado de Garantía de Origen (GdO) de la electricidad procedente de fuentes de energía renovable. Además, tendrá que indicar la suma de los kWh consumidos durante el año según las diferentes comercializadoras que tenga contratadas. En caso de que su comercializadora no sea ninguna de las que aparece en el listado, deberá indicar la opción "Otras". En caso de multisuministro, en lugar de desglosar los consumos según comercializadoras, puede escoger también la opción "Varias comercializadoras" en cuyo caso tendrá que indicar la suma de los kWh consumidos durante el año para todas las comercializadoras.
A11: 8. Ayuda: observaciones
A12: 9. Consumos. Hoja de trabajo
D15: =IF(ISNUMBER('1_Datos generales organización'!$G$3),"",IF(OR(ISNUMBER(H20),ISNUMBER(H21),ISNUMBER(H22),ISNUMBER(H23),ISNUMBER(H24),ISNUMBER(H25),ISNUMBER(H26),ISNUMBER(H27),ISNUMBER(H28),ISNUMBER(H29),ISNUMBER(H30),ISNUMBER(H31),ISNUMBER(H32),ISNUMBER(H33),ISNUMBER(H34),ISNUMBER(H35),ISNUMBER(H36),ISNUMBER(H37),ISNUMBER(H40),ISNUMBER(H41)),"Introduzca el AÑO DE CÁLCULO en la pestaña 1_Datos generales de la organización y en este mismo cuadro responda si dispone o no de GdO e indique la COMERCIALIZADORA que tiene contratada","")) -> 
E16: ELECTRICIDAD EDIFICIOS
E17: Edificio / Sede (1) | F17: Nombre de la comercializadora suministradora de energía (3) | G17: ¿Dispone de Garantía de Origen (GdO)? (2) | H17: Dato de consumo (kWh) (4) | I17: Factor emisión (kg CO2/kWh)(5) | J17: Emisiones parciales (kg CO2) | K17: Emisiones edificios (kg CO2)
F18: =IF(ISNUMBER('1_Datos generales organización'!G3),"","Introduzca previamente el AÑO DE CÁLCULO en la pestaña 1") -> Introduzca previamente el AÑO DE CÁLCULO en la pestaña 1
E19: edificio | J19: emisiones
I20: =IF(G20="","",IF(G20=Datos!$H$186,0,IF(ISNUMBER(Datos!D186),Datos!D186,""))) ->  | J20: =IF(I20="","",Datos!E186) ->  | K20: =SUM(J20:J41) -> 0.00
I21: =IF(G21="","",IF(G21=Datos!$H$186,0,IF(ISNUMBER(Datos!D187),Datos!D187,""))) ->  | J21: =IF(I21="","",Datos!E187) -> 
I22: =IF(G22="","",IF(G22=Datos!$H$186,0,IF(ISNUMBER(Datos!D188),Datos!D188,""))) ->  | J22: =IF(I22="","",Datos!E188) -> 
I23: =IF(G23="","",IF(G23=Datos!$H$186,0,IF(ISNUMBER(Datos!D189),Datos!D189,""))) ->  | J23: =IF(I23="","",Datos!E189) -> 
I24: =IF(G24="","",IF(G24=Datos!$H$186,0,IF(ISNUMBER(Datos!D190),Datos!D190,""))) ->  | J24: =IF(I24="","",Datos!E190) -> 
I25: =IF(G25="","",IF(G25=Datos!$H$186,0,IF(ISNUMBER(Datos!D191),Datos!D191,""))) ->  | J25: =IF(I25="","",Datos!E191) -> 
I26: =IF(G26="","",IF(G26=Datos!$H$186,0,IF(ISNUMBER(Datos!D192),Datos!D192,""))) ->  | J26: =IF(I26="","",Datos!E192) -> 
I27: =IF(G27="","",IF(G27=Datos!$H$186,0,IF(ISNUMBER(Datos!D193),Datos!D193,""))) ->  | J27: =IF(I27="","",Datos!E193) -> 
I28: =IF(G28="","",IF(G28=Datos!$H$186,0,IF(ISNUMBER(Datos!D194),Datos!D194,""))) ->  | J28: =IF(I28="","",Datos!E194) -> 
I29: =IF(G29="","",IF(G29=Datos!$H$186,0,IF(ISNUMBER(Datos!D195),Datos!D195,""))) ->  | J29: =IF(I29="","",Datos!E195) -> 
I30: =IF(G30="","",IF(G30=Datos!$H$186,0,IF(ISNUMBER(Datos!D196),Datos!D196,""))) ->  | J30: =IF(I30="","",Datos!E196) -> 
I31: =IF(G31="","",IF(G31=Datos!$H$186,0,IF(ISNUMBER(Datos!D197),Datos!D197,""))) ->  | J31: =IF(I31="","",Datos!E197) -> 
I32: =IF(G32="","",IF(G32=Datos!$H$186,0,IF(ISNUMBER(Datos!D198),Datos!D198,""))) ->  | J32: =IF(I32="","",Datos!E198) -> 
I33: =IF(G33="","",IF(G33=Datos!$H$186,0,IF(ISNUMBER(Datos!D199),Datos!D199,""))) ->  | J33: =IF(I33="","",Datos!E199) -> 
I34: =IF(G34="","",IF(G34=Datos!$H$186,0,IF(ISNUMBER(Datos!D200),Datos!D200,""))) ->  | J34: =IF(I34="","",Datos!E200) -> 
I35: =IF(G35="","",IF(G35=Datos!$H$186,0,IF(ISNUMBER(Datos!D201),Datos!D201,""))) ->  | J35: =IF(I35="","",Datos!E201) -> 
I36: =IF(G36="","",IF(G36=Datos!$H$186,0,IF(ISNUMBER(Datos!D202),Datos!D202,""))) ->  | J36: =IF(I36="","",Datos!E202) -> 
I37: =IF(G37="","",IF(G37=Datos!$H$186,0,IF(ISNUMBER(Datos!D203),Datos!D203,""))) ->  | J37: =IF(I37="","",Datos!E203) -> 
I38: =IF(G38="","",IF(G38=Datos!$H$186,0,IF(ISNUMBER(Datos!D204),Datos!D204,""))) ->  | J38: =IF(I38="","",Datos!E204) -> 
I39: =IF(G39="","",IF(G39=Datos!$H$186,0,IF(ISNUMBER(Datos!D205),Datos!D205,""))) ->  | J39: =IF(I39="","",Datos!E205) -> 
I40: =IF(G40="","",IF(G40=Datos!$H$186,0,IF(ISNUMBER(Datos!D206),Datos!D206,""))) ->  | J40: =IF(I40="","",Datos!E206) -> 
I41: =IF(G41="","",IF(G41=Datos!$H$186,0,IF(ISNUMBER(Datos!D207),Datos!D207,""))) ->  | J41: =IF(I41="","",Datos!E207) -> 
D43: CONSUMO DE ELECTRICIDAD EN VEHÍCULOS ELÉCTRICOS Y/O HÍBRIDOS ENCHUFABLES
D44: En caso de realizarse recargas de coches eléctricos o híbridos enchufables en electrolineras o puntos de recarga públicos, deberá indicar la opción “Otras” si desconoce cuál es la comercializadora que suministra la electricidad. Si las recargas se realizan en el lugar de trabajo pueden darse dos circunstancias:
E45: - La factura de electricidad incluye además de los consumos del edificio, los consumos de los puntos de recarga para vehículos del garaje (único CUP): en este caso no dispondrá del dato desglosado para vehículos y edificio y deberá incluir el dato global en el primer apartado de esta pestaña. - Existen CUPS independientes para los consumos del edificio y para los puntos de recarga de los vehículos: en este caso deberá cumplimentar los dos apartados de esta pestaña a partir de las facturas de los distintos CUPS.
E46: ELECTRICIDAD VEHÍCULOS ELÉCTRICOS Y/O HÍBRIDOS ENCHUFABLES
E47: Vehículo eléctrico o híbrido enchufable | F47: Nombre de la comercializadora suministradora de energía | G47: ¿Dispone de Garantía de Origen (GdO)? | H47: Dato de consumo (kWh) | I47: Factor emisión (kg CO2/kWh) | J47: Emisiones parciales (kg CO2) | K47: Emisiones vehículos (kg CO2)
F48: =IF(ISNUMBER('1_Datos generales organización'!G3),"","Introduzca previamente el AÑO DE CÁLCULO en la pestaña 1") -> Introduzca previamente el AÑO DE CÁLCULO en la pestaña 1
I49: =IF(G49="","",IF(G49=Datos!$H$186,0,IF(ISNUMBER(Datos!D211),Datos!D211,""))) ->  | J49: =IF(I49="","",Datos!E211) ->  | K49: =SUM(J49:J68) -> 0.00
I50: =IF(G50="","",IF(G50=Datos!$H$186,0,IF(ISNUMBER(Datos!D212),Datos!D212,""))) ->  | J50: =IF(I50="","",Datos!E212) -> 
I51: =IF(G51="","",IF(G51=Datos!$H$186,0,IF(ISNUMBER(Datos!D213),Datos!D213,""))) ->  | J51: =IF(I51="","",Datos!E213) -> 
I52: =IF(G52="","",IF(G52=Datos!$H$186,0,IF(ISNUMBER(Datos!D214),Datos!D214,""))) ->  | J52: =IF(I52="","",Datos!E214) -> 
I53: =IF(G53="","",IF(G53=Datos!$H$186,0,IF(ISNUMBER(Datos!D215),Datos!D215,""))) ->  | J53: =IF(I53="","",Datos!E215) -> 
I54: =IF(G54="","",IF(G54=Datos!$H$186,0,IF(ISNUMBER(Datos!D216),Datos!D216,""))) ->  | J54: =IF(I54="","",Datos!E216) -> 
I55: =IF(G55="","",IF(G55=Datos!$H$186,0,IF(ISNUMBER(Datos!D217),Datos!D217,""))) ->  | J55: =IF(I55="","",Datos!E217) -> 
I56: =IF(G56="","",IF(G56=Datos!$H$186,0,IF(ISNUMBER(Datos!D218),Datos!D218,""))) ->  | J56: =IF(I56="","",Datos!E218) -> 
I57: =IF(G57="","",IF(G57=Datos!$H$186,0,IF(ISNUMBER(Datos!D219),Datos!D219,""))) ->  | J57: =IF(I57="","",Datos!E219) -> 
I58: =IF(G58="","",IF(G58=Datos!$H$186,0,IF(ISNUMBER(Datos!D220),Datos!D220,""))) ->  | J58: =IF(I58="","",Datos!E220) -> 
I59: =IF(G59="","",IF(G59=Datos!$H$186,0,IF(ISNUMBER(Datos!D221),Datos!D221,""))) ->  | J59: =IF(I59="","",Datos!E221) -> 
I60: =IF(G60="","",IF(G60=Datos!$H$186,0,IF(ISNUMBER(Datos!D222),Datos!D222,""))) ->  | J60: =IF(I60="","",Datos!E222) -> 
I61: =IF(G61="","",IF(G61=Datos!$H$186,0,IF(ISNUMBER(Datos!D223),Datos!D223,""))) ->  | J61: =IF(I61="","",Datos!E223) -> 
I62: =IF(G62="","",IF(G62=Datos!$H$186,0,IF(ISNUMBER(Datos!D224),Datos!D224,""))) ->  | J62: =IF(I62="","",Datos!E224) -> 
I63: =IF(G63="","",IF(G63=Datos!$H$186,0,IF(ISNUMBER(Datos!D225),Datos!D225,""))) ->  | J63: =IF(I63="","",Datos!E225) -> 
I64: =IF(G64="","",IF(G64=Datos!$H$186,0,IF(ISNUMBER(Datos!D226),Datos!D226,""))) ->  | J64: =IF(I64="","",Datos!E226) -> 
I65: =IF(G65="","",IF(G65=Datos!$H$186,0,IF(ISNUMBER(Datos!D227),Datos!D227,""))) ->  | J65: =IF(I65="","",Datos!E227) -> 
I66: =IF(G66="","",IF(G66=Datos!$H$186,0,IF(ISNUMBER(Datos!D228),Datos!D228,""))) ->  | J66: =IF(I66="","",Datos!E228) -> 
I67: =IF(G67="","",IF(G67=Datos!$H$186,0,IF(ISNUMBER(Datos!D229),Datos!D229,""))) ->  | J67: =IF(I67="","",Datos!E229) -> 
I68: =IF(G68="","",IF(G68=Datos!$H$186,0,IF(ISNUMBER(Datos!D230),Datos!D230,""))) ->  | J68: =IF(I68="","",Datos!E230) -> 
F94: En caso de que la empresa disponga de GdO de la electricidad, el AHORRO de emisiones estimado en relación al mix eléctrico español para el año 2012, asciende a:
F96: Estimación del ahorro de emisiones por la contratación de GdO (kg CO2eq) | K96: =SUM(IF(G20=#REF!,#REF!*$Q$19,0)+IF(G21=#REF!,#REF!*$Q$19,0)+IF(G22=#REF!,#REF!*$Q$19,0)+IF(G37=#REF!,#REF!*$Q$19,0)) -> 

Sheet 5_Información adicional
C1: INFORMACIÓN ADICIONAL - INSTALACIONES PROPIAS DE ENERGÍA RENOVABLE
A3: 1. Datos de la organización | D3: Cumplimentar de manera adicional en caso de que la organización disponga de instalaciones para la generación de energía renovable (paneles fotovoltaicos, turbinas de viento, calderas de biomasa, etc.) ya sea para su venta o para autoconsumo.
A4: 2. HC Alcance 1: Comb. fósiles
A5: 3. HC Alcance 1: Fugas fluorados
A6: 4. HC 2: Electricidad | E6: ENERGÍAS RENOVABLES | I6: Emisiones (kg CO2)
A7: 5. Inf. adicional: renovables | E7: Edificio / Sede (1) | F7: Tipo de Energía Renovable | G7: Energía consumida / vendida (kWh) | H7: Cantidad total (kWh)
A8: 6. Informe final: Resultados
A9: 7. Factores de emisión, PCG, mix
A10: 8. Ayuda: observaciones | H10: =SUM(G10:G14) -> 0.0 | I10: 0.00
A11: 9. Consumos. Hoja de trabajo
D16: En caso de utilizar biomasa como combustible, cumplimentar el siguiente cuadro:
E18: ENERGÍAS RENOVABLES: BIOMASA | I18: Emisiones (kg CO2)
E19: Edificio / Sede (2) | F19: Tipo de biomasa | G19: Cantidades parciales (kg) | H19: Cantidad total (kg)
H21: =SUM(G21:G26) -> 0.0 | I21: 0.00

Sheet 6_Resultados
C1: INFORME FINAL: RESULTADOS
A3: 1. Datos de la organización | E3: Nombre de la organización | G3: =IF(ISTEXT(Datos!$E$241),Datos!$E$241,"") -> 
A4: 2. HC Alcance 1: Comb. fósiles
E5: Sector de actividad | G5: =IF(ISTEXT(Datos!$E$242),Datos!$E$242,"") -> 
A6: 3. HC Alcance 1: Fugas fluorados
A8: 4. HC 2: Electricidad | D8: RESULTADOS ABSOLUTOS AÑO DE CÁLCULO
A10: 5. Inf. adicional: renovables
E11: Año de cálculo | G11: =IF(ISNUMBER('1_Datos generales organización'!G3),'1_Datos generales organización'!G3,"") ->  | M11: Huella de carbono de alcance 1+2 del año de cálculo | Q11: =IF(ISNUMBER(H21),H21,"") -> 0.0000 | S11: t CO2 eq
A12: 6. Informe final: Resultados
A14: 7. Factores de emisión, PCG, mix | E14: ALCANCE 1 | F14: Instalaciones fijas | H14: =IF(ISNUMBER(Datos!T87),(Datos!T87)/1000,0) -> 0.0000 | J14: t CO2
A15: 8. Ayuda: observaciones | F15: Desplazamientos en vehículos* | H15: =IF(ISNUMBER(Datos!T115),(Datos!T115)/1000,0) -> 0.0000 | J15: t CO2
A16: 9. Consumos. Hoja de trabajo | F16: Refrigeración/climatización | H16: =IF(ISNUMBER(Datos!T138),(Datos!T138/1000),0) -> 0.0000 | J16: t CO2eq
E17: TOTAL ALCANCE 1 | H17: =SUM(H14:I16) -> 0.0000 | J17: t CO2eq
E19: ALCANCE 2 | F19: Electricidad | H19: =IF(ISNUMBER(Datos!AG186),(Datos!AG186)/1000,0) -> 0.0000 | J19: t CO2
E21: ALCANCE 1+2 | H21: =IF(ISNUMBER(SUM(H14+H15+H16+H19)),SUM(H14+H15+H16+H19),"") -> 0.0000 | J21: t CO2eq
E22: * Se excluye el transporte a través de vehículos propulsados por electricidad que se incluye en alcance 2.
D23: RESULTADOS RELATIVOS PARA ALCANCE 1+2 - EVOLUCIÓN
G26: =IF(ISNUMBER(Datos!G268),Datos!G268,"") ->  | H26: t CO2eq / | I26: =IF(ISTEXT('1_Datos generales organización'!L27),'1_Datos generales organización'!L27,"") -> 
E27: AÑO DE CÁLCULO:
F28: =IF(ISNUMBER(Datos!$G$266),Datos!$G$248,"") ->  | G28: =IF(ISNUMBER(Datos!G269),Datos!G269,"") ->  | H28: t CO2eq / | I28: m2
G30: =IF(ISNUMBER(Datos!G270),Datos!G270,"") ->  | H30: t CO2eq / | I30: empleado
G34: =IF(ISNUMBER(Datos!D268),Datos!D268,"") ->  | H34: t CO2eq / | I34: =IF(ISTEXT(I26),I26,"") -> 
E36: AÑO 1: | F36: =IF(ISNUMBER(Datos!$D$266),Datos!$D$266,"") ->  | G36: =IF(ISNUMBER(Datos!D269),Datos!D269,"") ->  | H36: t CO2eq / | I36: m2
G38: =IF(ISNUMBER(Datos!D270),Datos!D270,"") ->  | H38: t CO2eq / | I38: empleado
G42: =IF(ISNUMBER(Datos!E268),Datos!E268,"") ->  | H42: t CO2eq / | I42: =IF(ISTEXT(I26),I26,"") -> 
E44: AÑO 2: | F44: =IF(ISNUMBER(Datos!E266),Datos!E266,"") ->  | G44: =IF(ISNUMBER(Datos!E269),Datos!E269,"") ->  | H44: t CO2eq / | I44: m2
G46: =IF(ISNUMBER(Datos!E270),Datos!E270,"") ->  | H46: t CO2eq / | I46: empleado
G50: =IF(ISNUMBER(Datos!F268),Datos!F268,"") ->  | H50: t CO2eq / | I50: =IF(ISTEXT(I26),I26,"") ->  | R50: =Datos!$D$274-Datos!$D$273 -> 
E52: AÑO 3: | F52: =IF(ISNUMBER(Datos!$F$248),Datos!$F$248,"") ->  | G52: =IF(ISNUMBER(Datos!F269),Datos!F269,"") ->  | H52: t CO2eq / | I52: m2
G54: =IF(ISNUMBER(Datos!F270),Datos!F270,"") ->  | H54: t CO2eq / | I54: empleado | O54: =Datos!F274 -> Incremento de | P54: =IF(ISNUMBER(Datos!D275),Datos!D275,Datos!D276) -> 
D57: RESULTADOS POR EDIFICIO / SEDE *
D58: * Se excluyen las emisiones de los vehículos por la complejidad en muchos casos de asignarlos a una sede u otra.
E59: edificio | M59: Edificio
E60: =Datos!E286 ->  | M60: =Datos!E287 -> 
E62: ALCANCE 1 | F62: Instalaciones fijas | H62: =DSUM('2_Combustibles fósiles'!$E$17:$J$39,"emisiones",'6_Resultados'!E59:J60)/1000 -> 0.00 | I62: t CO₂ | M62: ALCANCE 1 | N62: Instalaciones fijas | P62: =DSUM('2_Combustibles fósiles'!$E$17:$J$39,"emisiones",'6_Resultados'!M59:R60)/1000 -> 0.00 | Q62: t CO₂
F63: Refrigeración/climatización | H63: =DSUM('3_Fluorados'!$E$11:$N$33,"emisiones",'6_Resultados'!E59:J60)/1000 -> 0.00 | I63: t CO₂eq | N63: Refrigeración / climatización | P63: =DSUM('3_Fluorados'!$E$11:$N$33,"emisiones",'6_Resultados'!M59:S60)/1000 -> 0.00 | Q63: t CO₂eq
E64: TOTAL ALCANCE 1 | H64: =SUM(H62:H63) -> 0.00 | I64: t CO₂eq | M64: TOTAL ALCANCE 1 | P64: =SUM(P62:S63) -> 0.00 | Q64: t CO₂eq
E66: ALCANCE 2 | F66: Electricidad | H66: =DSUM('4_Electricidad'!$E$19:$J$41,"emisiones",'6_Resultados'!E59:J60)/1000 -> 0.00 | I66: t CO₂ | M66: ALCANCE 2 | N66: Electricidad | P66: =DSUM('4_Electricidad'!$E$19:$J$41,"emisiones",'6_Resultados'!M59:S60)/1000 -> 0.00 | Q66: t CO₂
E68: ALCANCE 1+2 | H68: =IF(ISNUMBER(SUM(H64+H66)),SUM(SUM(H66+H64)),"") -> 0.00 | I68: t CO₂eq | M68: ALCANCE 1+2 | P68: =IF(ISNUMBER(SUM(P64+P66)),SUM(SUM(P66+P64)),"") -> 0.00 | Q68: t CO₂eq
E69: Edificio | M69: Edificio
E70: =Datos!E288 ->  | M70: =Datos!E289 -> 
E72: ALCANCE 1 | F72: Instalaciones fijas | H72: =DSUM('2_Combustibles fósiles'!$E$17:$J$39,"emisiones",'6_Resultados'!E69:J70)/1000 -> 0.00 | I72: t CO₂ | M72: ALCANCE 1 | N72: Instalaciones fijas | P72: =DSUM('2_Combustibles fósiles'!$E$17:$J$39,"emisiones",'6_Resultados'!M69:S70)/1000 -> 0.00 | Q72: t CO₂
F73: Refrigeración/climatización | H73: =DSUM('3_Fluorados'!$E$11:$N$33,"emisiones",'6_Resultados'!E69:J70)/1000 -> 0.00 | I73: t CO₂eq | N73: Refrigeración / climatización | P73: =DSUM('3_Fluorados'!$E$11:$N$33,"emisiones",'6_Resultados'!M69:S70)/1000 -> 0.00 | Q73: t CO₂eq
E74: TOTAL ALCANCE 1 | H74: =SUM(H72:H73) -> 0.00 | I74: t CO₂eq | M74: TOTAL ALCANCE 1 | P74: =SUM(P72:S73) -> 0.00 | Q74: t CO₂eq
E76: ALCANCE 2 | F76: Electricidad | H76: =DSUM('4_Electricidad'!$E$19:$J$41,"emisiones",'6_Resultados'!E69:J70)/1000 -> 0.00 | I76: t CO₂ | M76: ALCANCE 2 | N76: Electricidad | P76: =DSUM('4_Electricidad'!$E$19:$J$41,"emisiones",'6_Resultados'!M69:S70)/1000 -> 0.00 | Q76: t CO₂
E78: ALCANCE 1+2 | H78: =IF(ISNUMBER(SUM(H74+H76)),SUM(SUM(H76+H74)),"") -> 0.00 | I78: t CO₂eq | M78: ALCANCE 1+2 | P78: =IF(ISNUMBER(SUM(P74+P76)),SUM(SUM(P76+P74)),"") -> 0.00 | Q78: t CO₂eq
E79: Edificio | M79: Edificio
E80: =Datos!E290 ->  | M80: =Datos!E291 -> 
E81: =E80 -> 
E82: ALCANCE 1 | F82: Instalaciones fijas | H82: =DSUM('2_Combustibles fósiles'!$E$17:$J$39,"emisiones",'6_Resultados'!E79:J80)/1000 -> 0.00 | I82: t CO₂ | M82: ALCANCE 1 | N82: Instalaciones fijas | P82: =DSUM('2_Combustibles fósiles'!$E$17:$J$39,"emisiones",'6_Resultados'!M79:S80)/1000 -> 0.00 | Q82: t CO₂
F83: Refrigeración/climatización | H83: =DSUM('3_Fluorados'!$E$11:$N$33,"emisiones",'6_Resultados'!E79:J80)/1000 -> 0.00 | I83: t CO₂eq | N83: Refrigeración / climatización | P83: =DSUM('3_Fluorados'!$E$11:$N$33,"emisiones",'6_Resultados'!M79:S80)/1000 -> 0.00 | Q83: t CO₂eq
E84: TOTAL ALCANCE 1 | H84: =SUM(H82:H83) -> 0.00 | I84: t CO₂eq | M84: TOTAL ALCANCE 1 | P84: =SUM(P82:S83) -> 0.00 | Q84: t CO₂eq
E86: ALCANCE 2 | F86: Electricidad | H86: =DSUM('4_Electricidad'!$E$19:$J$41,"emisiones",'6_Resultados'!E79:J80)/1000 -> 0.00 | I86: t CO₂ | M86: ALCANCE 2 | N86: Electricidad | P86: =DSUM('4_Electricidad'!$E$19:$J$41,"emisiones",'6_Resultados'!M79:S80)/1000 -> 0.00 | Q86: t CO₂
E88: ALCANCE 1+2 | H88: =IF(ISNUMBER(SUM(H84+H86)),SUM(SUM(H86+H84)),"") -> 0.00 | I88: t CO₂eq | M88: ALCANCE 1+2 | P88: =IF(ISNUMBER(SUM(P84+P86)),SUM(SUM(P86+P84)),"") -> 0.00 | Q88: t CO₂eq
E89: Edificio | M89: Edificio
E90: =Datos!E292 ->  | M90: =Datos!E293 -> 
E92: ALCANCE 1 | F92: Instalaciones fijas | H92: =DSUM('2_Combustibles fósiles'!$E$17:$J$39,"emisiones",'6_Resultados'!E89:J90)/1000 -> 0.00 | I92: t CO₂ | M92: ALCANCE 1 | N92: Instalaciones fijas | P92: =DSUM('2_Combustibles fósiles'!$E$17:$J$39,"emisiones",'6_Resultados'!M89:S90)/1000 -> 0.00 | Q92: t CO₂
F93: Refrigeración / climatización | H93: =DSUM('3_Fluorados'!$E$11:$N$33,"emisiones",'6_Resultados'!E89:J90)/1000 -> 0.00 | I93: t CO₂eq | N93: Refrigeración / climatización | P93: =DSUM('3_Fluorados'!$E$11:$N$33,"emisiones",'6_Resultados'!M89:S90)/1000 -> 0.00 | Q93: t CO₂eq
E94: TOTAL ALCANCE 1 | H94: =SUM(H92:H93) -> 0.00 | I94: t CO₂eq | M94: TOTAL ALCANCE 1 | P94: =SUM(P92:S93) -> 0.00 | Q94: t CO₂eq
E96: ALCANCE 2 | F96: Electricidad | H96: =DSUM('4_Electricidad'!$E$19:$J$41,"emisiones",'6_Resultados'!E89:J90)/1000 -> 0.00 | I96: t CO₂ | M96: ALCANCE 2 | N96: Electricidad | P96: =DSUM('4_Electricidad'!$E$19:$J$41,"emisiones",'6_Resultados'!M89:S90)/1000 -> 0.00 | Q96: t CO₂
E98: ALCANCE 1+2 | H98: =IF(ISNUMBER(SUM(H94+H96)),SUM(SUM(H96+H94)),"") -> 0.00 | I98: t CO₂eq | M98: ALCANCE 1+2 | P98: =IF(ISNUMBER(SUM(P94+P96)),SUM(SUM(P96+P94)),"") -> 0.00 | Q98: t CO₂eq
E99: Edificio | M99: Edificio
E100: =Datos!E294 ->  | M100: =Datos!E295 -> 
E102: ALCANCE 1 | F102: Instalaciones fijas | H102: =DSUM('2_Combustibles fósiles'!$E$17:$J$39,"emisiones",'6_Resultados'!E99:J100)/1000 -> 0.00 | I102: t CO₂ | M102: ALCANCE 1 | N102: Instalaciones fijas | P102: =DSUM('2_Combustibles fósiles'!$E$17:$J$39,"emisiones",'6_Resultados'!M99:S100)/1000 -> 0.00 | Q102: t CO₂
F103: Refrigeración / climatización | H103: =DSUM('3_Fluorados'!$E$11:$N$33,"emisiones",'6_Resultados'!E99:J100)/1000 -> 0.00 | I103: t CO₂eq | N103: Refrigeración / climatización | P103: =DSUM('3_Fluorados'!$E$11:$N$33,"emisiones",'6_Resultados'!M99:S100)/1000 -> 0.00 | Q103: t CO₂eq
E104: TOTAL ALCANCE 1 | H104: =SUM(H102:H103) -> 0.00 | I104: t CO₂eq | M104: TOTAL ALCANCE 1 | P104: =SUM(P102:S103) -> 0.00 | Q104: t CO₂eq
E106: ALCANCE 2 | F106: Electricidad | H106: =DSUM('4_Electricidad'!$E$19:$J$41,"emisiones",'6_Resultados'!E99:J100)/1000 -> 0.00 | I106: t CO₂ | M106: ALCANCE 2 | N106: Electricidad | P106: =DSUM('4_Electricidad'!$E$19:$J$41,"emisiones",'6_Resultados'!M99:S100)/1000 -> 0.00 | Q106: t CO₂
E108: ALCANCE 1+2 | H108: =IF(ISNUMBER(SUM(H104+H106)),SUM(SUM(H106+H104)),"") -> 0.00 | I108: t CO₂eq | M108: ALCANCE 1+2 | P108: =IF(ISNUMBER(SUM(P104+P106)),SUM(SUM(P106+P104)),"") -> 0.00 | Q108: t CO₂eq
E109: Edificio | M109: Edificio
E110: =Datos!E296 ->  | M110: =Datos!E297 -> 
E112: ALCANCE 1 | F112: Instalaciones fijas | H112: =DSUM('2_Combustibles fósiles'!$E$17:$J$39,"emisiones",'6_Resultados'!E109:J110)/1000 -> 0.00 | I112: t CO₂ | M112: ALCANCE 1 | N112: Instalaciones fijas | P112: =DSUM('2_Combustibles fósiles'!$E$17:$J$39,"emisiones",'6_Resultados'!M109:S110)/1000 -> 0.00 | Q112: t CO₂
F113: Refrigeración / climatización | H113: =DSUM('3_Fluorados'!$E$11:$N$33,"emisiones",'6_Resultados'!E109:J110)/1000 -> 0.00 | I113: t CO₂eq | N113: Refrigeración / climatización | P113: =DSUM('3_Fluorados'!$E$11:$N$33,"emisiones",'6_Resultados'!M109:S110)/1000 -> 0.00 | Q113: t CO₂eq
E114: TOTAL ALCANCE 1 | H114: =SUM(H112:H113) -> 0.00 | I114: t CO₂eq | M114: TOTAL ALCANCE 1 | P114: =SUM(P112:S113) -> 0.00 | Q114: t CO₂eq
E116: ALCANCE 2 | F116: Electricidad | H116: =DSUM('4_Electricidad'!$E$19:$J$41,"emisiones",'6_Resultados'!E109:J110)/1000 -> 0.00 | I116: t CO₂ | M116: ALCANCE 2 | N116: Electricidad | P116: =DSUM('4_Electricidad'!$E$19:$J$41,"emisiones",'6_Resultados'!M109:S110)/1000 -> 0.00 | Q116: t CO₂
E118: ALCANCE 1+2 | H118: =IF(ISNUMBER(SUM(H114+H116)),SUM(SUM(H116+H114)),"") -> 0.00 | I118: t CO₂eq | M118: ALCANCE 1+2 | P118: =IF(ISNUMBER(SUM(P114+P116)),SUM(SUM(P116+P114)),"") -> 0.00 | Q118: t CO₂eq
E119: Edificio | M119: Edificio
E120: =Datos!E298 ->  | M120: =Datos!E299 -> 
E122: ALCANCE 1 | F122: Instalaciones fijas | H122: =DSUM('2_Combustibles fósiles'!$E$17:$J$39,"emisiones",'6_Resultados'!E119:J120)/1000 -> 0.00 | I122: t CO₂ | M122: ALCANCE 1 | N122: Instalaciones fijas | P122: =DSUM('2_Combustibles fósiles'!$E$17:$J$39,"emisiones",'6_Resultados'!M119:S120)/1000 -> 0.00 | Q122: t CO₂
F123: Refrigeración / climatización | H123: =DSUM('3_Fluorados'!$E$11:$N$33,"emisiones",'6_Resultados'!E119:J120)/1000 -> 0.00 | I123: t CO₂eq | N123: Refrigeración / climatización | P123: =DSUM('3_Fluorados'!$E$11:$N$33,"emisiones",'6_Resultados'!M119:S120)/1000 -> 0.00 | Q123: t CO₂eq
E124: TOTAL ALCANCE 1 | H124: =SUM(H122:H123) -> 0.00 | I124: t CO₂eq | M124: TOTAL ALCANCE 1 | P124: =SUM(P122:S123) -> 0.00 | Q124: t CO₂eq
E126: ALCANCE 2 | F126: Electricidad | H126: =DSUM('4_Electricidad'!$E$19:$J$41,"emisiones",'6_Resultados'!E119:J120)/1000 -> 0.00 | I126: t CO₂ | M126: ALCANCE 2 | N126: Electricidad | P126: =DSUM('4_Electricidad'!$E$19:$J$41,"emisiones",'6_Resultados'!M119:S120)/1000 -> 0.00 | Q126: t CO₂
E128: ALCANCE 1+2 | H128: =IF(ISNUMBER(SUM(H124+H126)),SUM(SUM(H126+H124)),"") -> 0.00 | I128: t CO₂eq | M128: ALCANCE 1+2 | P128: =IF(ISNUMBER(SUM(P124+P126)),SUM(SUM(P126+P124)),"") -> 0.00 | Q128: t CO₂eq
E129: Edificio | M129: Edificio
E130: =Datos!E300 ->  | M130: =Datos!E301 -> 
E132: ALCANCE 1 | F132: Instalaciones fijas | H132: =DSUM('2_Combustibles fósiles'!$E$17:$J$39,"emisiones",'6_Resultados'!E129:J130)/1000 -> 0.00 | I132: t CO₂ | M132: ALCANCE 1 | N132: Instalaciones fijas | P132: =DSUM('2_Combustibles fósiles'!$E$17:$J$39,"emisiones",'6_Resultados'!M129:S130)/1000 -> 0.00 | Q132: t CO₂
F133: Refrigeración / climatización | H133: =DSUM('3_Fluorados'!$E$11:$N$33,"emisiones",'6_Resultados'!E129:J130)/1000 -> 0.00 | I133: t CO₂eq | N133: Refrigeración / climatización | P133: =DSUM('3_Fluorados'!$E$11:$N$33,"emisiones",'6_Resultados'!M129:S130)/1000 -> 0.00 | Q133: t CO₂eq
E134: TOTAL ALCANCE 1 | H134: =SUM(H132:H133) -> 0.00 | I134: t CO₂eq | M134: TOTAL ALCANCE 1 | P134: =SUM(P132:S133) -> 0.00 | Q134: t CO₂eq
E136: ALCANCE 2 | F136: Electricidad | H136: =DSUM('4_Electricidad'!$E$19:$J$41,"emisiones",'6_Resultados'!E129:J130)/1000 -> 0.00 | I136: t CO₂ | M136: ALCANCE 2 | N136: Electricidad | P136: =DSUM('4_Electricidad'!$E$19:$J$41,"emisiones",'6_Resultados'!M129:S130)/1000 -> 0.00 | Q136: t CO₂
E138: ALCANCE 1+2 | H138: =IF(ISNUMBER(SUM(H134+H136)),SUM(SUM(H136+H134)),"") -> 0.00 | I138: t CO₂eq | M138: ALCANCE 1+2 | P138: =IF(ISNUMBER(SUM(P134+P136)),SUM(SUM(P136+P134)),"") -> 0.00 | Q138: t CO₂eq
E139: Edificio | M139: Edificio
E140: =Datos!E302 ->  | M140: =Datos!E303 -> 
E142: ALCANCE 1 | F142: Instalaciones fijas | H142: =DSUM('2_Combustibles fósiles'!$E$17:$J$39,"emisiones",'6_Resultados'!E139:J140)/1000 -> 0.00 | I142: t CO₂ | M142: ALCANCE 1 | N142: Instalaciones fijas | P142: =DSUM('2_Combustibles fósiles'!$E$17:$J$39,"emisiones",'6_Resultados'!M139:S140)/1000 -> 0.00 | Q142: t CO₂
F143: Refrigeración / climatización | H143: =DSUM('3_Fluorados'!$E$11:$N$33,"emisiones",'6_Resultados'!E139:J140)/1000 -> 0.00 | I143: t CO₂eq | N143: Refrigeración / climatización | P143: =DSUM('3_Fluorados'!$E$11:$N$33,"emisiones",'6_Resultados'!M139:S140)/1000 -> 0.00 | Q143: t CO₂eq
E144: TOTAL ALCANCE 1 | H144: =SUM(H142:H143) -> 0.00 | I144: t CO₂eq | M144: TOTAL ALCANCE 1 | P144: =SUM(P142:S143) -> 0.00 | Q144: t CO₂eq
E146: ALCANCE 2 | F146: Electricidad | H146: =DSUM('4_Electricidad'!$E$19:$J$41,"emisiones",'6_Resultados'!E139:J140)/1000 -> 0.00 | I146: t CO₂ | M146: ALCANCE 2 | N146: Electricidad | P146: =DSUM('4_Electricidad'!$E$19:$J$41,"emisiones",'6_Resultados'!M139:S140)/1000 -> 0.00 | Q146: t CO₂
E148: ALCANCE 1+2 | H148: =IF(ISNUMBER(SUM(H144+H146)),SUM(SUM(H146+H144)),"") -> 0.00 | I148: t CO₂eq | M148: ALCANCE 1+2 | P148: =IF(ISNUMBER(SUM(P144+P146)),SUM(SUM(P146+P144)),"") -> 0.00 | Q148: t CO₂eq
E149: Edificio | M149: Edificio
E150: =Datos!E304 ->  | M150: =Datos!E305 -> 
E152: ALCANCE 1 | F152: Instalaciones fijas | H152: =DSUM('2_Combustibles fósiles'!$E$17:$J$39,"emisiones",'6_Resultados'!E149:J150)/1000 -> 0.00 | I152: t CO₂ | M152: ALCANCE 1 | N152: Instalaciones fijas | P152: =DSUM('2_Combustibles fósiles'!$E$17:$J$39,"emisiones",'6_Resultados'!M149:S150)/1000 -> 0.00 | Q152: t CO₂
F153: Refrigeración / climatización | H153: =DSUM('3_Fluorados'!$E$11:$N$33,"emisiones",'6_Resultados'!E149:J150)/1000 -> 0.00 | I153: t CO₂eq | N153: Refrigeración / climatización | P153: =DSUM('3_Fluorados'!$E$11:$N$33,"emisiones",'6_Resultados'!M149:S150)/1000 -> 0.00 | Q153: t CO₂eq
E154: TOTAL ALCANCE 1 | H154: =SUM(H152:H153) -> 0.00 | I154: t CO₂eq | M154: TOTAL ALCANCE 1 | P154: =SUM(P152:S153) -> 0.00 | Q154: t CO₂eq
E156: ALCANCE 2 | F156: Electricidad | H156: =DSUM('4_Electricidad'!$E$19:$J$41,"emisiones",'6_Resultados'!E149:J150)/1000 -> 0.00 | I156: t CO₂ | M156: ALCANCE 2 | N156: Electricidad | P156: =DSUM('4_Electricidad'!$E$19:$J$41,"emisiones",'6_Resultados'!M149:S150)/1000 -> 0.00 | Q156: t CO₂
E158: ALCANCE 1+2 | H158: =IF(ISNUMBER(SUM(H154+H156)),SUM(SUM(H156+H154)),"") -> 0.00 | I158: t CO₂eq | M158: ALCANCE 1+2 | P158: =IF(ISNUMBER(SUM(P154+P156)),SUM(SUM(P156+P154)),"") -> 0.00 | Q158: t CO₂eq
E159: Edificio | M159: Edificio
E160: =Datos!E306 ->  | M160: =Datos!E307 -> 
E162: ALCANCE 1 | F162: Instalaciones fijas | H162: =DSUM('2_Combustibles fósiles'!$E$17:$J$39,"emisiones",'6_Resultados'!E159:J160)/1000 -> 0.00 | I162: t CO₂ | M162: ALCANCE 1 | N162: Instalaciones fijas | P162: =DSUM('2_Combustibles fósiles'!$E$17:$J$39,"emisiones",'6_Resultados'!M159:S160)/1000 -> 0.00 | Q162: t CO₂
F163: Refrigeración / climatización | H163: =DSUM('3_Fluorados'!$E$11:$N$33,"emisiones",'6_Resultados'!E159:J160)/1000 -> 0.00 | I163: t CO₂eq | N163: Refrigeración / climatización | P163: =DSUM('3_Fluorados'!$E$11:$N$33,"emisiones",'6_Resultados'!M159:S160)/1000 -> 0.00 | Q163: t CO₂eq
E164: TOTAL ALCANCE 1 | H164: =SUM(H162:H163) -> 0.00 | I164: t CO₂eq | M164: TOTAL ALCANCE 1 | P164: =SUM(P162:S163) -> 0.00 | Q164: t CO₂eq
E166: ALCANCE 2 | F166: Electricidad | H166: =DSUM('4_Electricidad'!$E$19:$J$41,"emisiones",'6_Resultados'!E159:J160)/1000 -> 0.00 | I166: t CO₂ | M166: ALCANCE 2 | N166: Electricidad | P166: =DSUM('4_Electricidad'!$E$19:$J$41,"emisiones",'6_Resultados'!M159:S160)/1000 -> 0.00 | Q166: t CO₂
E168: ALCANCE 1+2 | H168: =IF(ISNUMBER(SUM(H164+H166)),SUM(SUM(H166+H164)),"") -> 0.00 | I168: t CO₂eq | M168: ALCANCE 1+2 | P168: =IF(ISNUMBER(SUM(P164+P166)),SUM(SUM(P166+P164)),"") -> 0.00 | Q168: t CO₂eq

Sheet 7_Factores de emisión
C1: FACTORES DE EMISIÓN, PCG Y MIX ELÉCTRICO
A3: 1. Datos de la organización | D3: FACTORES DE EMISIÓN
A4: 2. HC Alcance 1: Comb. fósiles
A5: 3. HC Alcance 1: Fugas fluorados | E5: A continuación se indican los factores de emisión de cada tipo de combustible fósil considerado así como las fuentes de donde se han obtenido. Estos factores se refieren a emisiones de CO2 y no incluyen otros gases de efecto invernadero como el CH4 o el N2O.
A6: 4. HC 2: Electricidad
A7: 5. Inf. adicional: renovables | F7: Combustible (Unidades FE) | G7: Factores de emisión (FE)
A8: 6. Informe final: Resultados | G8: 2010 | H8: 2011 | I8: 2012 | J8: 2013 | K8: 2014 | L8: 2015 | M8: 2016 | N8: 2017 | O8: 2018 | P8: 2019
A9: 7. Factores de emisión, PCG, mix | F9: Gasolina (kgCO2/l) (1) | G9: 2.295 | H9: 2.205 | I9: 2.201 | J9: 2.205 | K9: 2.205 | L9: 2.205 | M9: 2.196 | N9: 2.180 | O9: 2.157 | P9: -
A10: 8. Ayuda: observaciones | F10: Gasóleo A (kgCO2/l) (1) | G10: 2.653 | H10: 2.493 | I10: 2.467 | J10: 2.544 | K10: 2.544 | L10: 2.544 | M10: 2.539 | N10: 2.520 | O10: 2.493 | P10: -
A11: 9. Consumos. Hoja de trabajo | F11: Gasóleo B (kgCO2/l) (2) | G11: 2.708 | H11: 2.708 | I11: 2.708 | J11: 2.708 | K11: 2.708 | L11: 2.708 | M11: 2.708 | N11: 2.708 | O11: 2.708 | P11: 2.708
F12: Gasóleo C (kgCO2/l) | G12: 2.868 | H12: 2.868 | I12: 2.868 | J12: 2.868 | K12: 2.868 | L12: 2.868 | M12: 2.868 | N12: 2.868 | O12: 2.868 | P12: 2.868
F13: E5 (kgCO2/l) | G13: 2.180 | H13: 2.180 | I13: 2.180 | J13: 2.180 | K13: 2.180 | L13: 2.180 | M13: 2.180 | N13: 2.180 | O13: 2.180 | P13: 2.180
F14: E10 (kgCO2/l) | G14: 2.065 | H14: 2.065 | I14: 2.065 | J14: 2.065 | K14: 2.065 | L14: 2.065 | M14: 2.065 | N14: 2.065 | O14: 2.065 | P14: 2.065
F15: E85 (kgCO2/l) | G15: 0.344 | H15: 0.344 | I15: 0.344 | J15: 0.344 | K15: 0.344 | L15: 0.344 | M15: 0.344 | N15: 0.344 | O15: 0.344 | P15: 0.344
F16: E100 (kgCO2/l) | G16: 0.000 | H16: 0.000 | I16: 0.000 | J16: 0.000 | K16: 0.000 | L16: 0.000 | M16: 0.000 | N16: 0.000 | O16: 0.000 | P16: 0.000
F17: B7 (kgCO2/l) | G17: 2.467 | H17: 2.467 | I17: 2.467 | J17: 2.467 | K17: 2.467 | L17: 2.467 | M17: 2.467 | N17: 2.467 | O17: 2.467 | P17: 2.467
F18: B10 (kgCO2/l) | G18: 2.387 | H18: 2.387 | I18: 2.387 | J18: 2.387 | K18: 2.387 | L18: 2.387 | M18: 2.387 | N18: 2.387 | O18: 2.387 | P18: 2.387
F19: B20 (kgCO2/l) | G19: 2.122 | H19: 2.122 | I19: 2.122 | J19: 2.122 | K19: 2.122 | L19: 2.122 | M19: 2.122 | N19: 2.122 | O19: 2.122 | P19: 2.122
F20: B30 (kgCO2/l) | G20: 1.857 | H20: 1.857 | I20: 1.857 | J20: 1.857 | K20: 1.857 | L20: 1.857 | M20: 1.857 | N20: 1.857 | O20: 1.857 | P20: 1.857
F21: B100 (kgCO2/l) | G21: 0.000 | H21: 0.000 | I21: 0.000 | J21: 0.000 | K21: 0.000 | L21: 0.000 | M21: 0.000 | N21: 0.000 | O21: 0.000 | P21: 0.000
F22: XTL (kgCO2/l) | G22: 0.000 | H22: 0.000 | I22: 0.000 | J22: 0.000 | K22: 0.000 | L22: 0.000 | M22: 0.000 | N22: 0.000 | O22: 0.000 | P22: 0.000
F23: Gas natural (kgCO2/kWh) (3) | G23: 0.182 | H23: 0.182 | I23: 0.182 | J23: 0.182 | K23: 0.182 | L23: 0.182 | M23: 0.182 | N23: 0.183 | O23: 0.183 | P23: 0.182
F24: LNG (kgCO2/kWh) (3) | G24: 0.182 | H24: 0.182 | I24: 0.182 | J24: 0.182 | K24: 0.182 | L24: 0.182 | M24: 0.182 | N24: 0.183 | O24: 0.183 | P24: 0.182
F25: CNG (kgCO2/kWh) (3) | G25: 0.182 | H25: 0.182 | I25: 0.182 | J25: 0.182 | K25: 0.182 | L25: 0.182 | M25: 0.182 | N25: 0.183 | O25: 0.183 | P25: 0.182
F26: LPG (kgCO2/l) | G26: 1.671 | H26: 1.671 | I26: 1.671 | J26: 1.671 | K26: 1.671 | L26: 1.671 | M26: 1.671 | N26: 1.671 | O26: 1.671 | P26: 1.671
F27: H2 (kgCO2/kg) | G27: 0.000 | H27: 0.000 | I27: 0.000 | J27: 0.000 | K27: 0.000 | L27: 0.000 | M27: 0.000 | N27: 0.000 | O27: 0.000 | P27: 0.000
F28: Gas butano (kgCO2/kg) | G28: 2.964 | H28: 2.964 | I28: 2.964 | J28: 2.964 | K28: 2.964 | L28: 2.964 | M28: 2.964 | N28: 2.964 | O28: 2.964 | P28: 2.964
F29: Gas propano (kgCO2/kg) | G29: 2.938 | H29: 2.938 | I29: 2.938 | J29: 2.938 | K29: 2.938 | L29: 2.938 | M29: 2.938 | N29: 2.938 | O29: 2.938 | P29: 2.938
F30: Fuelóleo (kgCO2/kg) | G30: 3.127 | H30: 3.127 | I30: 3.127 | J30: 3.127 | K30: 3.127 | L30: 3.127 | M30: 3.127 | N30: 3.127 | O30: 3.127 | P30: 3.127
F31: Carbón nacional (kgCO2/kg) | G31: 2.299 | H31: 2.299 | I31: 2.299 | J31: 2.299 | K31: 2.299 | L31: 2.299 | M31: 2.006 | N31: 2.227 | O31: 2.227 | P31: 1.914
F32: Carbón de importación (kgCO2/kg) | G32: 2.579 | H32: 2.579 | I32: 2.579 | J32: 2.579 | K32: 2.579 | L32: 2.579 | M32: 2.430 | N32: 2.444 | O32: 2.444 | P32: 2.429
F33: Coque de petróleo (kgCO2/kg) | G33: 3.169 | H33: 3.169 | I33: 3.169 | J33: 3.169 | K33: 3.169 | L33: 3.169 | M33: 3.169 | N33: 3.169 | O33: 3.169 | P33: 3.169
F35: (1) A partir del año 2019 los combustibles gasolina y gasóleo de automoción pasan a denominarse por las letras E y B respectivamente añadiendo la proporción de biocombustible que contienen (RD 639/2016).
F36: (2) Se corrigen los valores del factor de emisión del gasóleo B para toda la serie histórica en base a la densidad especificada en el Real Decreto 1088/2010 y sin aplicar los objetivos obligatorios mínimos de biocarburantes en cómputo anual considerados en el Real Decreto 1085/2015 que afectarían únicamente al gasóleo A.
F38: (3) El factor de emisión del gas natural se expresa en PCS empleando un factor de conversión para el paso de PCS a PCI de 0,901 (Inventario Nacional de Emisiones de España).
E40: Poder Calorífico Inferior (GJ/t)
G42: 2010 | H42: 2011 | I42: 2012 | J42: 2013 | K42: 2014 | L42: 2015 | M42: 2016 | N42: 2017 | O42: 2018 | P42: 2019
F43: Gas natural* | G43: 48.59 | H43: 48.57 | I43: 48.24 | J43: 48.28 | K43: 48.28 | L43: 47.66 | M43: 48.00 | N43: 48.00 | O43: 48.00 | P43: 48.20
F44: Gasolina | G44: 44.30 | H44: 44.30 | I44: 44.30 | J44: 44.30 | K44: 44.30 | L44: 44.30 | M44: 44.30 | N44: 44.30 | O44: 44.30 | P44: 44.30
F45: Gasóleo | G45: 43.00 | H45: 43.00 | I45: 43.00 | J45: 43.00 | K45: 43.00 | L45: 43.00 | M45: 43.00 | N45: 43.00 | O45: 43.00 | P45: 43.00
F46: Gas butano | G46: 44.78 | H46: 44.78 | I46: 44.78 | J46: 44.78 | K46: 44.78 | L46: 44.78 | M46: 44.78 | N46: 44.78 | O46: 44.78 | P46: 44.78
F47: Gas propano | G47: 46.20 | H47: 46.20 | I47: 46.20 | J47: 46.20 | K47: 46.20 | L47: 46.20 | M47: 46.20 | N47: 46.20 | O47: 46.20 | P47: 46.20
F48: Fuelóleo | G48: 40.40 | H48: 40.40 | I48: 40.40 | J48: 40.40 | K48: 40.40 | L48: 40.40 | M48: 40.40 | N48: 40.40 | O48: 40.40 | P48: 40.40
F49: GLP genérico | G49: 47.30 | H49: 47.30 | I49: 47.30 | J49: 47.30 | K49: 47.30 | L49: 47.30 | M49: 47.30 | N49: 47.30 | O49: 47.30 | P49: 47.30
F50: Carbón nacional | G50: 23.12 | H50: 23.12 | I50: 23.12 | J50: 23.12 | K50: 23.12 | L50: 23.12 | M50: 20.18 | N50: 22.40 | O50: 22.40 | P50: 19.25
F51: Carbón de importación | G51: 25.53 | H51: 25.53 | I51: 25.53 | J51: 25.53 | K51: 25.53 | L51: 25.53 | M51: 24.06 | N51: 24.20 | O51: 24.20 | P51: 24.05
F52: Coque de petróleo | G52: 32.50 | H52: 32.50 | I52: 32.50 | J52: 32.50 | K52: 32.50 | L52: 32.50 | M52: 32.50 | N52: 32.50 | O52: 32.50 | P52: 32.50
F53: * Para el paso de PCS a PCI en el gas natural se utiliza el factor de conversión de 0,901.
E54: Factor de emisión de CO2 (kg CO2/GJPCI)
G56: 2010 | H56: 2011 | I56: 2012 | J56: 2013 | K56: 2014 | L56: 2015 | M56: 2016 | N56: 2017 | O56: 2018 | P56: 2019
F57: Gas natural | G57: 56.10 | H57: 56.10 | I57: 56.10 | J57: 56.10 | K57: 56.10 | L57: 56.10 | M57: 56.10 | N57: 56.40 | O57: 56.40 | P57: 55.98
F58: Gasolina | G58: 69.30 | H58: 69.30 | I58: 69.30 | J58: 69.30 | K58: 69.30 | L58: 69.30 | M58: 69.30 | N58: 69.30 | O58: 69.30 | P58: 69.30
F59: Gasóleo | G59: 74.10 | H59: 74.10 | I59: 74.10 | J59: 74.10 | K59: 74.10 | L59: 74.10 | M59: 74.10 | N59: 74.10 | O59: 74.10 | P59: 74.10
F60: Gas butano | G60: 66.20 | H60: 66.20 | I60: 66.20 | J60: 66.20 | K60: 66.20 | L60: 66.20 | M60: 66.20 | N60: 66.20 | O60: 66.20 | P60: 66.20
F61: Gas propano | G61: 63.60 | H61: 63.60 | I61: 63.60 | J61: 63.60 | K61: 63.60 | L61: 63.60 | M61: 63.60 | N61: 63.60 | O61: 63.60 | P61: 63.60
F62: Fuelóleo | G62: 77.40 | H62: 77.40 | I62: 77.40 | J62: 77.40 | K62: 77.40 | L62: 77.40 | M62: 77.40 | N62: 77.40 | O62: 77.40 | P62: 77.40
F63: GLP genérico | G63: 63.10 | H63: 63.10 | I63: 63.10 | J63: 63.10 | K63: 63.10 | L63: 63.10 | M63: 63.10 | N63: 63.10 | O63: 63.10 | P63: 63.10
F64: Carbón nacional | G64: 99.42 | H64: 99.42 | I64: 99.42 | J64: 99.42 | K64: 99.42 | L64: 99.42 | M64: 99.42 | N64: 99.40 | O64: 99.40 | P64: 99.42
F65: Carbón de importación | G65: 101.00 | H65: 101.00 | I65: 101.00 | J65: 101.00 | K65: 101.00 | L65: 101.00 | M65: 101.00 | N65: 101.00 | O65: 101.00 | P65: 101.00
F66: Coque de petróleo | G66: 97.50 | H66: 97.50 | I66: 97.50 | J66: 97.50 | K66: 97.50 | L66: 97.50 | M66: 97.50 | N66: 97.50 | O66: 97.50 | P66: 97.50
E68: Fuente de los factores de emisión de los combustibles. Elaboración propia a partir de:
E69: Factores de emisión de CO2 y PCI que se incluyen en las distintas ediciones del Inventario Nacional de Emisiones de España (desde la edición 1990-2006 hasta la edición 1990-2018) y en las Directrices del IPCC para los inventarios nacionales de gases de efecto invernadero de 2006.
E71: Densidades especificadas en el Real Decreto 1088/2010, de 3 de septiembre por el que se modifica el RD 61/2006, de 31 de enero en lo relativo a las especificaciones técnicas de gasolinas, gasóleos, utilización de biocarburantes y contenido de azufre de los combustibles para uso marítimo. Se indican las densidades a 15ºC para los siguientes combustibles:
E72: Gasóleo clase A (automoción): 820-845 kg/m3. Valor medio: 832,5 kg/m3
E73: Gasóleo clase B (uso agrícola y marítimo): 820-880 kg/m3. Valor medio: 850 kg/m3
E74: Gasóleo clase C (gasóleo de calefacción): 900 kg/m3
E75: Gasolina: 720-775 kg/m3. Valor medio: 747,5 kg/m3
E76: Densidad del LPG: 560 kg/m3
E77: Descuentos por biocarburantes fijados por el RD 459/2011 relativo a los objetivos obligatorios mínimos de venta o consumo de biocarburantes establecidos para España, por la Ley 11/2013 de 26 de julio que modifica el objetivo a 2013 y posteriores del mismo y por el RD 1085/2015, de 4 de diciembre, de fomento de los biocarburantes. Tenga en cuenta que a partir del nuevo etiquetado de los biocarburantes (RD 639/2016), el descuento de la parte bio de los mismos queda reflejado en la propia denominación.
E78: 2011: descuentos por biocarburantes fijados por el RD 459/2011 relativo a los objetivos obligatorios mínimos de venta o consumo de biocarburantes establecidos para España (fija una cantidad mínima de biocarburantes en diesel del 6% y de biocarburantes en gasolina del 3,9% para 2011).
E80: 2012: descuentos por biocarburantes fijados por el RD 459/2011 relativo a los objetivos obligatorios mínimos de venta o consumo de biocarburantes establecidos para España (fija una cantidad mínima de biocarburantes en diesel del 7% y de biocarburantes en gasolina del 4,1% para 2012).
E82: 2013-2015: descuentos por biocarburantes fijados por la Ley 11/2013 de 26 de julio de 2013 que modifica el RD 459/2011 relativo a los objetivos obligatorios mínimos de venta o consumo de biocarburantes establecidos para España (fija una cantidad mínima de biocarburantes en diesel del 4,1% y de biocarburantes en gasolina del 3,9%).
E84: 2016-2020: descuentos por biocarburantes fijados por el RD 1085/2015, de 4 de diciembre, de fomento de los biocarburantes (fija una cantidad mínima de biocarburantes en diésel y gasolina de 4,3%, 5%, 6%, 7% y 8,5% para los años 2016, 2017, 2018, 2019 y 2020 respectivamente).
E86: Conversión unidades energéticas: 1GJ = 277,78 kWh. Manual de Estadísticas Energéticas. Agencia Internacional de la Energía.
D88: POTENCIALES DE CALENTAMIENTO ATMOSFÉRICO
E90: Gases refrigerantes | J90: Mezclas
E91: Nombre | F91: Fórmula química | G91: PCA(1) | J91: Nombre | K91: Composición (%) | O91: PCA(1)
E92: HFC-23 | F92: CH2F3 | G92: 14,800 | J92: R-404A | K92: R-125/143a/134a (44/52/4) | O92: =ROUND((0.44*G95+0.52*G99+0.04*G97),0) -> 3,922
E93: HFC-32 | F93: CH2F2 | G93: 675 | J93: R-407A | K93: R-32/125/134a (20/40/40) | O93: =ROUND((0.2*G93+0.4*G97+0.4*G95),0) -> 2,107
E94: HFC-41 | F94: CH3F | G94: 92 | J94: R-407B | K94: R-32/125/134a (10/70/20) | O94: =ROUND((0.1*G93+0.7*G95+0.2*G97),0) -> 2,804
E95: HFC-125 | F95: C2HF5 | G95: 3,500 | J95: R-407C | K95: R-32/125/134a (23/25/52) | O95: =ROUND((0.23*G93+0.25*G95+0.52*G97),0) -> 1,774
E96: HFC-134 | F96: C2H2F4 | G96: 1,100 | J96: R-407F | K96: R-32/125/134a (30/30/40) | O96: =ROUND((0.3*G93+0.3*G95+0.4*G97),0) -> 1,825
E97: HFC-134a | F97: CH2FCF3 | G97: 1,430 | J97: R-410A | K97: R-32/125 (50/50) | O97: =ROUND((0.5*G93+0.5*G95),0) -> 2,088
E98: HFC-143 | F98: C2H3F3. | G98: 353 | J98: R-410B | K98: R-32/125 (45/55) | O98: =ROUND((0.45*G93+0.55*G95),0) -> 2,229
E99: HFC-143a | F99: C2H3F3 | G99: 4,470 | J99: R-413A | K99: R-218/134a/600a (9/88/3) | O99: =ROUND((0.09*8830+0.88*G97),0) -> 2,053
E100: HFC-152 | F100: CH2FCH2F | G100: 53 | J100: R-417A | K100: R-125/134a/600 (46,6/50/3,4) | O100: =ROUND((0.466*G95+0.5*G97),0) -> 2,346
E101: HFC-152a | F101: C2H4F2 | G101: 124 | J101: R-417B | K101: R-125/134a/600 (79/18,25/2,75) | O101: =ROUND((0.79*G95+0.1825*G97),0) -> 3,026
E102: HFC-161 | F102: C2H2F | G102: 12 | J102: R-422A | K102: R-125/134a/600a (85,1/11,5/3,4) | O102: =ROUND((0.851*G95+0.115*G97),0) -> 3,143
E103: HFC-227ea | F103: C3HF7 | G103: 3,220 | J103: R-422D | K103: R-125/134a/600a (65,1/31,5/3,4) | O103: =ROUND((0.651*G95+0.315*G97),0) -> 2,729
E104: HFC-236cb | F104: CH2FCF2CF3 | G104: 1,340 | J104: R-424A | K104: R-125/134a/600a/600/601a (50,5/47/0,9/1/0) | O104: =ROUND((0.505*G95+0.47*G97),0) -> 2,440
E105: HFC-236ea | F105: CHF2CHFCF3 | G105: 1,370 | J105: R-426A | K105: R-134a/125/600/601a (93/5,1/1,3/0,6) | O105: =ROUND((0.93*G97+0.051*G95),0) -> 1,508
E106: HFC-236fa | F106: C3H2F6 | G106: 9,810 | J106: R-427A | K106: R-32/125/143a/134a (15/25/10/50) | O106: =ROUND((0.15*G93+0.25*G95+0.1*G99+0.5*G97),0) -> 2,138
E107: HFC-245ca | F107: C3H3F5 | G107: 693 | J107: R-428A | K107: R-125/143a/600a/290 (77,5/20/1,9/06) | O107: =ROUND((0.775*G95+0.2*G99),0) -> 3,607
E108: HFC-245fa | F108: C3H3F5 | G108: 1,030 | J108: R-434A | K108: R-125/143a/134a/600a (63,2/18/16/2,8) | O108: =ROUND((0.632*G95+0.18*G99+0.16*G97),0) -> 3,245
E109: HFC-365mfc | F109: C4H5F5 | G109: 794 | J109: R-437A | K109: R-125/134a/600/601 (19,5/78,5/1,4/06) | O109: =ROUND((0.195*G95+0.785*G97),0) -> 1,805
E110: HFC-43-10mee | F110: C5H2F10 | G110: 1,640 | J110: R-438A | K110: R-32/125/134a/600/601a (8,5/45/44,2/1,7/0,6) | O110: =ROUND((0.085*G93+0.45*G95+0.442*G97),0) -> 2,264
E111: Otros | F111: - | G111: - | J111: R-442A | K111: R-32/125/134a/152a/227ea (31/31/30/3/5) | O111: =ROUND((0.31*G93+0.31*G95+0.3*G97+0.03*G101+0.05*G103),0) -> 1,888
J112: R-449A | K112: R-32/R-125/HFO-1234yf/R-134a (24,3/24,7/25,3/25,7) | O112: 1,396
J113: R-452A | K113: R-125/R-32/HFO-1234yf (59/11/30) | O113: 2,140
J114: R-453A | K114: R-134a/125/32/227ea/600/601a (53,8/20/20/5/0,6/0,6) | O114: 1,765
J115: R-507A | K115: R-125/143a (50/50) | O115: 3,985
E117: (1) Potenciales de Calentamiento Atmosférico que se indican en el Cuarto Informe de Evaluación del IPCC (Reglamento 517/2014).
D119: MIX ELÉCTRICO COMERCIALIZADORAS
E121: 2009 | J121: 2010
E122: Mix de comercializadoras sin GdO para 2009 | J122: Mix de comercializadoras sin GdO para 2010
E123: 0.33 | F123: kg CO2/kWh | J123: 0.31 | K123: kg CO2/kWh
E125: Comercializadora | H125: Factor Mix 2009 (kg CO2/kWh) | J125: Comercializadora | N125: Factor Mix 2010 (kg CO2/kWh)
E126: ACCIONA GREEN ENERGY DEVELOPMENTS, S.L. | H126: 0.00 | J126: ACCIONA GREEN ENERGY DEVELOPMENTS, S.L. | N126: 0.00
E127: CENTRICA ENERGÍA, S.L.U. | H127: 0.00 | J127: DERIVADOS ENERGÉTICOS PARA EL TRANSPORTE Y LA INDUSTRIA, S.A. (DETISA) | N127: 0.33
E128: DERIVADOS ENERGÉTICOS PARA EL TRANSPORTE Y LA INDUSTRIA, S.A. (DETISA) | H128: 0.34 | J128: E.ON ENERGÍA, S.L. | N128: 0.13
E129: E.ON ENERGÍA, S.L. | H129: 0.17 | J129: ELEKTRIZITÄTS-GESELLSCHAFT LAUFENBURG ESPAÑA, S.L. | N129: 0.00
E130: ELEKTRIZITÄTS-GESELLSCHAFT LAUFENBURG ESPAÑA, S.L. | H130: 0.01 | J130: ENDESA ENERGÍA, S.A. | N130: 0.26
E131: ENDESA ENERGÍA, S.A. | H131: 0.28 | J131: ENÉRGYA VM GESTIÓN DE ENERGÍA, S.L.U. | N131: 0.00
E132: FACTOR ENERGÍA, S.A. | H132: 0.26 | J132: FACTOR ENERGÍA, S.A | N132: 0.21
E133: GAS NATURAL COMERCIALIZADORA, S.A. | H133: 0.14 | J133: GAS NATURAL COMERCIALIZADORA, S.A. | N133: 0.06
E134: GAS NATURAL SERVICIOS SDG, S.A. | H134: 0.14 | J134: GAS NATURAL SERVICIOS SDG, S.A. | N134: 0.05
E135: GAS NATURAL SUR SDG, S.A | H135: 0.27 | J135: GESTERNOVA, S.A. | N135: 0.00
E136: GESTERNOVA, S.A. | H136: 0.00 | J136: HIDROCANTABRICO ENERGÍA, S.A. UNIPERSONAL | N136: 0.21
E137: HIDROCANTABRICO ENERGÍA, S.A. UNIPERSONAL | H137: 0.24 | J137: HIDROELÉCTRICA EL CARMEN ENERGÍA, S.L. | N137: 0.28
E138: IBERDROLA GENERACION, S.A.U. | H138: 0.13 | J138: HISPAELEC ENERGÍA, S.A | N138: 0.00
E139: NATURGAS COMERCIALIZADORA, S.A. | H139: 0.29 | J139: IBERDROLA GENERACION, S.A.U. | N139: 0.10
E140: NEXUS ENERGÍA, S.A. | H140: 0.27 | J140: NATURGAS COMERCIALIZADORA, S.A. | N140: 0.23
E141: UNION FENOSA COMERCIAL, S.L. | H141: 0.30 | J141: NEXUS ENERGÍA, S.A. | N141: 0.28
E142: http://gdo.cnmc.es/CNE/resumenGdo.do?anio=2009 | J142: NEXUS RENOVABLES, S.L. | N142: 0.00
J143: UNION FENOSA COMERCIAL, S.L. | N143: 0.26
J144: http://gdo.cnmc.es/CNE/resumenGdo.do?anio=2010
E146: 2011 | J146: 2012
E147: Mix de comercializadoras sin GdO para 2011 | J147: Mix de comercializadoras sin GdO para 2012
E148: 0.36 | F148: kg CO2/kWh | J148: 0.40 | K148: kg CO2/kWh
E150: Comercializadora | H150: Factor Mix 2011 (kg CO2/kWh) | J150: Comercializadora | N150: Factor Mix 2012 (kg CO2/kWh)
E151: ACCIONA GREEN ENERGY DEVELOPMENTS, S.L. | H151: 0.00 | J151: ACCIONA GREEN ENERGY DEVELOPMENTS, S.L. | N151: 0.00
E152: AE3000 AGENT COMERCIALITZADOR, S.L. | H152: 0.36 | J152: ALPIQ ENERGÍA ESPAÑA, S.A.U. | N152: 0.39
E153: ALPIQ ENERGÍA ESPAÑA, S.A.U. | H153: 0.35 | J153: COMERCIALIZADORA LERSA , S.L. | N153: 0.40
E154: COMERCIALIZADORA LERSA , S.L. | H154: 0.36 | J154: DERIVADOS ENERGÉTICOS PARA EL TRANSPORTE Y LA INDUSTRIA, S.A. (DETISA) | N154: 0.31
E155: DERIVADOS ENERGÉTICOS PARA EL TRANSPORTE Y LA INDUSTRIA, S.A. (DETISA) | H155: 0.16 | J155: E.ON ENERGÍA, S.L. | N155: 0.30
E156: E.ON ENERGÍA, S.L. | H156: 0.21 | J156: EGL ENERGÍA IBERIA, S.L. | N156: 0.00
E157: EGL ENERGÍA IBERIA, S.L. | H157: 0.00 | J157: ENARA GESTIÓN Y MEDIACIÓN, S.L. | N157: 0.00
E158: ENARA GESTIÓN Y MEDIACIÓN, S.L. | H158: 0.19 | J158: ENDESA ENERGÍA, S.A. | N158: 0.37
E159: ENDESA ENERGÍA, S.A. | H159: 0.33 | J159: ENÉRGYA VM GESTIÓN DE ENERGÍA, S.L.U. | N159: 0.00
E160: ENÉRGYA VM GESTIÓN DE ENERGÍA, S.L.U. | H160: 0.00 | J160: FACTOR ENERGÍA, S.A. | N160: 0.25
E161: FACTOR ENERGÍA, S.A | H161: 0.23 | J161: GAS NATURAL COMERCIALIZADORA, S.A. | N161: 0.14
E162: GAS NATURAL COMERCIALIZADORA, S.A. | H162: 0.08 | J162: GAS NATURAL SERVICIOS SDG, S.A. | N162: 0.13
E163: GAS NATURAL SERVICIOS SDG, S.A. | H163: 0.08 | J163: GDF SUEZ ESPAÑA, S.A.U. | N163: 0.01
E164: GDF SUEZ ESPAÑA, S.A.U. | H164: 0.00 | J164: GEOATLANTER, S.L. | N164: 0.00
E165: GESTERNOVA, S.A. | H165: 0.00 | J165: GESTERNOVA, S.A. | N165: 0.00
E166: HIDROCANTABRICO ENERGÍA, S.A. UNIPERSONAL | H166: 0.23 | J166: HIDROCANTABRICO ENERGÍA, S.A. Unipersonal | N166: 0.24
E167: HIDROELÉCTRICA EL CARMEN ENERGÍA, S.L. | H167: 0.33 | J167: HIDROELÉCTRICA EL CARMEN ENERGÍA, S.L. | N167: 0.00
E168: IBERDROLA GENERACION, S.A.U. | H168: 0.17 | J168: IBERDROLA GENERACION, S.A.U. | N168: 0.24
E169: NATURGAS COMERCIALIZADORA, S.A. | H169: 0.26 | J169: LA UNION ELECTRO INDUSTRIAL, S.L. "UNIPERSONAL" | N169: 0.35
E170: NEXUS ENERGÍA, S.A. | H170: 0.36 | J170: NATURGAS ENERGÍA COMERCIALIZADORA, S.A.U. | N170: 0.25
E171: NEXUS RENOVABLES, S.L. | H171: 0.00 | J171: NEXUS ENERGÍA, S.A. | N171: 0.30
E172: SOM ENERGÍA, S.C.C.L. | H172: 0.00 | J172: NEXUS RENOVABLES, S.L. | N172: 0.01
E173: UNION FENOSA COMERCIAL, S.L. | H173: 0.33 | J173: SOM ENERGÍA, S.C.C.L. | N173: 0.00
E174: http://gdo.cnmc.es/CNE/resumenGdo.do?anio=2011 | J174: UNION FENOSA COMERCIAL, S.L. | N174: 0.39
J175: ZENCER, S. COOP. AND | N175: 0.00
J176: http://gdo.cnmc.es/CNE/resumenGdo.do?anio=2012
E178: 2013 | J178: 2014
E179: Mix de comercializadoras sin GdO para 2013 | J179: Mix de comercializadoras sin GdO para 2014
E180: 0.36 | F180: kg CO2/kWh | J180: 0.37 | K180: kg CO2/kWh
E182: Comercializadora | H182: Factor Mix 2013 (kg CO2/kWh) | J182: Comercializadora | N182: Factor Mix 2014 (kg CO2/kWh)
E183: ACCIONA GREEN ENERGY DEVELOPMENTS, S.L. | H183: 0.00 | J183: ACCIONA GREEN ENERGY DEVELOPMENTS, S.L. | N183: 0.00
E184: ALPIQ ENERGÍA ESPAÑA, S.A.U. | H184: 0.25 | J184: AGENTE DEL MERCADO ELÉCTRICO, S.A. | N184: 0.37
E185: AXPO IBERIA, S.L. | H185: 0.03 | J185: AURA ENERGÍA, S.L. | N185: 0.29
E186: CEPSA GAS Y ELECTRICIDAD | H186: 0.00 | J186: AVANZALIA ENERGÍA COMERCIALIZADORA, S.A. | N186: 0.00
E187: CLIDOM ENERGY, S.L. | H187: 0.00 | J187: AXPO IBERIA, S.L. | N187: 0.00
E188: COMERCIALIZADORA LERSA , S.L. | H188: 0.35 | J188: CEPSA GAS Y ELECTRICIDAD, S.A. | N188: 0.00
E189: E.ON ENERGÍA, S.L. | H189: 0.25 | J189: CIDE HCENERGÍA S.A. | N189: 0.37
E190: ELECTRICA SOLLERENSE, S.A. | H190: 0.00 | J190: CLIDOM ENERGY, S.L. | N190: 0.00
E191: ENARA GESTIÓN Y MEDIACIÓN, S.L. | H191: 0.00 | J191: COMERCIALIZADORA LERSA , S.L. | N191: 0.36
E192: ENDESA ENERGÍA, S.A. | H192: 0.31 | J192: CYE ENERGÍA, S.L. | N192: 0.00
E193: ENDESA GENERACIÓN, S.A. | H193: 0.28 | J193: E.ON ENERGÍA, S.L. | N193: 0.27
E194: ENERCOLUZ ENERGÍA, S.L. | H194: 0.36 | J194: ELECTRICA SOLLERENSE, S.A. | N194: 0.26
E195: ENERGY BY COGEN, S.L. | H195: 0.32 | J195: ENARA GESTIÓN Y MEDIACIÓN, S.L. | N195: 0.00
E196: ENÉRGYA VM GESTIÓN DE ENERGÍA, S.L.U. | H196: 0.00 | J196: ENDESA ENERGÍA, S.A. | N196: 0.33
E197: FACTOR ENERGÍA, S.A. | H197: 0.24 | J197: ENDESA GENERACIÓN, S.A. | N197: 0.00
E198: FENIE ENERGÍA, S.A. | H198: 0.35 | J198: ENEL GREEN POWER ESPAÑA, S.L. | N198: 0.00
E199: GAS NATURAL COMERCIALIZADORA, S.A. | H199: 0.23 | J199: ENERCOLUZ ENERGÍA, S.L. | N199: 0.31
E200: GAS NATURAL SERVICIOS SDG, S.A. | H200: 0.23 | J200: ENÉRGYA VM GESTIÓN DE ENERGÍA, S.L.U. | N200: 0.00
E201: GDF SUEZ ESPAÑA, S.A.U. | H201: 0.32 | J201: FACTOR ENERGÍA, S.A. | N201: 0.27
E202: GEOATLANTER, S.L. | H202: 0.00 | J202: FENIE ENERGÍA, S.A. | N202: 0.32
E203: GESTERNOVA, S.A. | H203: 0.00 | J203: GAS NATURAL COMERCIALIZADORA, S.A. | N203: 0.29
E204: GOIENER S.COOP | H204: 0.00 | J204: GAS NATURAL SERVICIOS SDG, S.A. | N204: 0.29
E205: HIDROCANTABRICO ENERGÍA, S.A. Unipersonal | H205: 0.17 | J205: GDF SUEZ ENERGÍA ESPAÑA, S.A.U. | N205: 0.34
E206: HIDROELECTRICA DEL VALIRA, S.L. | H206: 0.14 | J206: GEOATLANTER, S.L. | N206: 0.00
E207: HIDROELÉCTRICA EL CARMEN ENERGÍA, S.L. | H207: 0.00 | J207: GESTERNOVA, S.A. | N207: 0.00
E208: IBERDROLA GENERACION, S.A.U. | H208: 0.16 | J208: GOIENER S.COOP | N208: 0.00
E209: LA UNION ELECTRO INDUSTRIAL, S.L. "UNIPERSONAL" | H209: 0.00 | J209: HIDROCANTABRICO ENERGÍA, S.A. Unipersonal | N209: 0.19
E210: NATURGAS ENERGÍA COMERCIALIZADORA, S.A.U. | H210: 0.21 | J210: HIDROELECTRICA DEL VALIRA, S.L. | N210: 0.14
E211: NEXUS ENERGÍA, S.A. | H211: 0.12 | J211: HIDROELÉCTRICA EL CARMEN ENERGÍA, S.L. | N211: 0.00
E212: NEXUS RENOVABLES, S.L. | H212: 0.00 | J212: IBERDROLA CLIENTES, S.A.U. | N212: 0.12
E213: OLTEN-LLUM, S.L. | H213: 0.34 | J213: LA UNION ELECTRO INDUSTRIAL, S.L. "UNIPERSONAL" | N213: 0.04
E214: SOM ENERGÍA, S.C.C.L. | H214: 0.00 | J214: NATURGAS ENERGÍA COMERCIALIZADORA, S.A.U. | N214: 0.20
E215: UNIELÉCTRICA ENERGÍA, S.L. | H215: 0.00 | J215: NEXUS ENERGÍA, S.A. | N215: 0.13
E216: UNION FENOSA COMERCIAL, S.L. | H216: 0.36 | J216: NEXUS RENOVABLES, S.L. | N216: 0.00
E217: ZENCER, S. COOP. AND | H217: 0.00 | J217: OLTEN-LLUM, S.L. | N217: 0.34
E218: http://gdo.cnmc.es/CNE/resumenGdo.do?anio=2013 | J218: ON DEMAND FACILITIES, S.L. | N218: 0.37
J219: SOM ENERGÍA, S.C.C.L. | N219: 0.00
J220: THE YELLOW ENERGY, S.L. | N220: 0.00
J221: UNIELÉCTRICA ENERGÍA, S.A. | N221: 0.00
J222: VERTSEL ENERGÍA, S.L.U. | N222: 0.02
... 507 more rows

Sheet 8. Observaciones
C1: OBSERVACIONES / EXPLICACIONES. AYUDA PARA LA CORRECTA CUMPLIMENTACIÓN
B3: 1. OBSERVACIONES: DATOS GENERALES DE LA ORGANIZACIÓN
C5: 1 En caso de tratarse de una empresa, el tamaño de la misma se establece en base a la Recomendación 2003/361/CE de la Comisión (Diario Oficial L 124 de 20.5.2003).
C7: http://eur-lex.europa.eu/LexUriServ/LexUriServ.do?uri=OJ:L:2003:124:0036:0041:es:PDF
C9: 2 CNAE 2009: Clasificación nacional de actividades económicas
C11: 3 Años anteriores al año para el que se está calculando la huella de carbono de la organización. En caso de que se calcule la huella de carbono por primera vez, estas celdas no podrán rellenarse.
C13: 4 En caso de haber calculado la huella de carbono en años anteriores, indicar su valor expresado en t CO2 en estas celdas.
C15: 5 Índice que la organización considere representativo como indicador de su nivel de actividad (nombre del parámetro, dato numérico y unidades en las que se expresa). Este índice estará referido al año de estudio y será función del sector al que pertenezca la organización, como ejemplos se citan: facturación, nº de proyectos, nº de servicios realizados, nº de productos vendidos, etc.
E16: Ejemplo: | F16: Otro índice
F17: Nombre | H17: Valor numérico | J17: Unidades
F18: Proyectos realizados durante el año | H18: 27 | J18: proyectos
C20: 6 Valor medio de la superficie y del nº de empleados para los meses contemplados en el año de estudio. Son datos referidos a las instalaciones de la organización consideradas dentro del alcance (oficinas, naves, almacenes, etc.).
B24: 2. OBSERVACIONES: COMBUSTIBLES FÓSILES
C26: 1 En caso de que las instalaciones emisoras se ubiquen en diferentes lugares (edificios / sedes) y disponga de los datos de consumo desagregados en función de los mismos, si lo desea, puede especificar en esta celda cuáles son y en la hoja 6_Resultados se reflejará el total de emisiones de alcance 1 y alcance 2 asociadas a cada uno de ellos.Tenga en cuenta que si el nombre de una sede aparece varias veces, éste ha de estar escrito exactamente de la misma manera. En caso contrario, el desglose de resultados según sedes será incorrecto.
C28: 2 Si no se dispone del dato en las unidades indicadas, será necesario realizar las conversiones correspondientes. Por ejemplo, para el caso del gas butano, si no se dispone del dato en kg sino en nº de bombonas, habrá que calcular los kg a partir del dato de la capacidad de las mismas. En caso de utilizar factores de conversión, indicar en el cuadro expuesto a continuación la siguiente información:
D29: Combustible | I29: Factor de conversión | K29: Fuente de información
I30: Valor | J30: Unidades
C34: En el caso en que se utilicen otros combustibles diferentes a los indicados en la lista desplegable, ha de seleccionarse la opción "Otros" e introducir el factor de emisión correspondiente teniendo en cuenta que las unidades respecto a las que se exprese (kg de CO2/ud.) sean coincidentes con las unidades en las que se cuantifique la cantidad de combustible consumido. Será necesario indicar en el siguiente cuadro el nombre del combustible, la fuente de donde se extrae su factor de emisión así como su valor y unidades:
D38: Combustible | I38: Factor de emisión | K38: Fuente de información
I39: Valor | J39: Unidades
C44: 3 Cantidad de combustible consumido expresado en las unidades indicadas en la columna anterior. Tenga en cuenta que si el combustible utilizado es el gas natural, el factor de emisión está expresado respecto al PCI y, por tanto, si el dato de consumo (kWh) de su factura viene expresado en PCS, deberá realizar la conversión correspondiente: 1 kWh(PCI) = 0,901 kWh(PCS).
C46: 4 Factor de emisión correspondiente al combustible seleccionado que aparece por defecto a excepción de haber seleccionado la opción “Otros” en cuyo caso, habrá que introducir el factor de emisión correspondiente indicando en el cuadro anterior, el nombre del combustible, la fuente de donde se extrae su factor de emisión así como su valor y unidades. Es imprescindible que las unidades respecto a las que se refiere el factor de emisión (kg CO2/ud) sean coincidentes con las unidades en las que se cuantifique la cantidad de combustible consumido.
C48: 5 Únicamente será necesario cumplimentar una de las dos opciones (B.1 o B.2) en función de los datos disponibles.
C50: 6 Si lo desea puede en esta celda especificar el vehículo o la flota de vehículos según tipo de combustible. En caso de vehículos eléctricos deberá cumplimentar los datos en la pestaña 4_Electricidad.
C52: 7 Los vehículos pueden ser propulsados por combustión interna (litros de combustible fósil), eléctrica (kWh), híbrida enchufable (litros, kWh), o híbrida no enchufable (litros). En caso de coches eléctricos o híbridos enchufables el consumo de electricidad debe cumplimentarse en la pestaña 4_Electricidad. En el caso en que se utilicen otros combustibles diferentes a los indicados en la lista desplegable, ha de seleccionarse la opción "Otros" e introducir el factor de emisión correspondiente teniendo en cuenta las unidades en que se expresa (kg CO2/ud). Será necesario indicar en el siguiente cuadro la fuente de donde se extrae dicho factor de emisión así como su valor y unidades:
D54: Combustible | I54: Factor de emisión | K54: Fuente de información
I55: Valor | J55: Unidades
C60: 8 Factor de emisión correspondiente al combustible seleccionado que aparece por defecto a excepción de haber seleccionado la opción “Otros” en cuyo caso, habrá que introducir el factor de emisión correspondiente indicando en el cuadro anterior, el nombre del combustible, la fuente de donde se extrae su factor de emisión así como su valor y unidades. Es imprescindible que las unidades respecto a las que se refiere el factor de emisión (kg CO2/ud) sean coincidentes con las unidades en las que se cuantifique la cantidad de combustible consumido.
C62: 9 Si el dato disponible está en unidades monetarias se recomienda realizar la conversión a litros consumidos a partir de los precios que aparecen en el geoportal de hidrocarburos:
C63: https://energia.gob.es/es-es/Servicios/Paginas/consultasdecarburantes.aspx
C65: 10 El factor de emisión (expresado en g CO2/km) se obtiene introduciendo los datos: modelo de coche y tipo de combustible consumido en la aplicación de la web del IDAE "Consumo de Carburante y Emisiones de CO2 en Coches Nuevos": http://coches.idae.es/
C66: http://coches.idae.es/
C68: Hay que tener en cuenta que la "categoría de coche" en la web se refiere a las categorías SICE:
C69: · M1: Vehículo para transporte de pasajeros y que no contenga más de 8 asientos además del asiento del conductor. · M1-AF: M1 con carrocería AF Multiuso; Vehículos de motor con al menos 4 ruedas para el transporte de pasajeros y su equipaje o mercancías en un compartimento, uso comercial. · N1: Vehículos utilizados para transporte de carga y con un peso máximo que no exceda las 3,5 tm.
B73: 3. OBSERVACIONES: FLUORADOS
C75: 1 En caso de que los equipos de climatización / refrigeración se ubiquen en diferentes lugares (edificios / sedes) y disponga de los datos desagregados en función de los mismos, si lo desea, puede en esta celda especificar cuáles son y en la hoja 6_Resultados se reflejará el total de emisiones de alcance 1 y alcance 2 asociadas a cada uno de ellos. Tenga en cuenta que si el nombre de una sede aparece varias veces, éste ha de estar escrito exactamente de la misma manera. En caso contrario, el desglose de resultados por sedes será incorrecto.
C77: 2 Para cada equipo, se seleccionará el gas refrigerante que utilice o, en su caso, la "mezcla" de gases. El Reglamento (UE) N° 517/2014 del Parlamento Europeo y del Consejo, de 16 de abril de 2014, sobre los gases fluorados de efecto invernadero y por el que se deroga el Reglamento (CE) N° 842/2006, define "mezcla" como un fluido compuesto de dos o más sustancias, de las cuales al menos una es una sustancia enumerada en el anexo I o en el anexo II. Entre las opciones disponibles en la lista, además de gases puros se pueden seleccionar las mezclas más comunes que se utilizan en España (en el listado son los refrigerantes denominados R-"número"). En el caso de que el equipo emplee un gas puro (fluorado o no fluorado) o una mezcla que no aparezca en el listado, se escogerá la opción "Otros". Puede obtener el PCA de los gases puros de los Anexos I, II, y IV del Reglamento (UE) N° 517/2014. Si la mezcla del equipo no está incluida en listado, se calculará su PCA empleando los PCA de sus componentes (indicados en la pestaña 7_Factores de emisión y, en su defecto, en el Reglamento) y en función de la proporción en que aparezcan en la mezcla.
C81: 3 Potenciales de Calentamiento Atmosférico que se indican en el Cuarto Informe de Evaluación del IPCC (Reglamento 517/2014).
C82: 4 Recarga anual: cantidad de gas refrigerante adicionado (expresado en kg) durante el periodo de cálculo. Estas recargas se producen cuando se ha detectado una fuga, y el dato se registra en las hojas de control de fugas efectuadas por los equipos de mantenimiento certificados.
B85: 4. OBSERVACIONES: ELECTRICIDAD
C87: 1 En caso de que las instalaciones que consumen electricidad se ubiquen en diferentes lugares (edificios / sedes) y disponga de los datos desagregados en función de los mismos, si lo desea, puede en esta celda especificar cuáles son y en la hoja 6_Resultados se reflejará el total de emisiones de alcance 1 y alcance 2 asociadas a cada uno de ellos. Tenga en cuenta que si el nombre de una sede aparece varias veces, éste ha de estar escrito exactamente de la misma manera. En caso contrario, el desglose de resultados por sedes será incorrecto.
C89: 2 El Sistema de Garantía de Origen y etiquetado de la electricidad es un sistema mediante el cual la CNMC (Comisión Nacional de los Mercados y la Competencia) garantiza que el origen de la energía eléctrica generada proviene de fuentes renovables o de sistemas de alta eficiencia. Las GdO a las que se refiere esta calculadora son las que acreditan que la energía eléctrica generada proviene de fuentes renovables. En caso de que su organización, por disponer de varias sedes, almacenes, etc., tenga contratada la electricidad con varias comercializadoras diferentes y, en lugar de desglosar los consumos que se incluyen en las facturas de cada una de ellas, prefiera hacer la suma total, tendrá que escoger la opción del desplegable "Varias comercializadoras" en el campo "Nombre de la comercializadora suministradora de energía". Así, se asumirá que ninguna de comercializadoras que usted tiene contratadas disponen de GdO de la electricidad renovable y, su factor de emisión será el correspondiente al valor medio de las empresas comercializadoras sin GdO.
C91: 3 Listado de comercializadoras españolas que han estado activas en el año de estudio y que se engloban dentro del Sistema de Garantía de Origen. Es imprescindible que indique previamente el año de cálculo en la pestaña 1_Datos generales organización para que aparezca el listado de las comercializadoras que disponían de GdO durante el mismo y los correspondientes factores de mix eléctrico.
C92: · En caso de que la comercializadora que tiene contratada no sea ninguna de las que aparecen en el listado (comercializadoras que no han participado en el sistema de Garantías
C93: de Origen), deberá escoger la opción "Otras". Se le aplicará en ese caso el mix correspondiente a las comercializadoras sin GdO.
C94: · En caso de que su organización tenga contratada la electricidad con varias comercializadoras diferentes y, en lugar de desglosar los kWh consumidos en cada una de ellas, prefiera
C95: hacer la suma total, tendrá que escoger la opción del desplegable "Varias comercializadoras" en cuyo caso, el factor de emisión que aparecerá será el correspondiente al valor medio de las empresas comercializadoras sin GdO.
C97: 4 Para cada comercializadora, se indicará la suma de los kWh consumidos que se reflejan en las facturas de electricidad comprendidas en el año de estudio. En caso de escoger la opción "Varias comercializadoras", deberá indicar la suma de los kWh consumidos durante el año de estudio para todas las comercializadoras.
C99: 5 Factor de emisión que aparece por defecto en función del año y de la comercializadora suministradora de la electricidad (Fuente: Comisión Nacional de los Mercados y la Competencia):
C100: https://gdo.cnmc.es/CNE/resumenGdo.do?anio=
B103: 5. INFORMACIÓN ADICIONAL - INSTALACIONES PROPIAS DE ENERGÍA RENOVABLE
C105: 1 En caso de que las instalaciones para la generación de energía renovable (paneles fotovoltaicos, turbinas de viento, calderas de biomasa, etc.) se ubiquen en diferentes lugares (edificios / sedes) y disponga de los datos desagregados en función de los mismos, si lo desea, puede en esta celda especificar cuáles son.
C107: 2 En caso de que las calderas para la generación de energía a partir de biomasa se ubiquen en diferentes lugares (edificios / sedes) y disponga de los datos desagregados en función de los mismos, si lo desea, puede en esta celda especificar cuáles son.

Sheet 9. Consumos. Hoja de trabajo
A1: CONSUMOS. HOJA DE TRABAJO
A2: En esta hoja de cumplimentación voluntaria puede incluir los cálculos auxiliares necesarios para obtener los datos de consumo anuales. Si lo prefiere puede entregar esta información en un documento aparte. Estos cálculos servirán para facilitar su trabajo de recopilación de datos y el cotejo de los consumos por parte del Registro de huella de carbono, compensación y proyectos de absorción de dióxido de carbono. Podría considerar los siguientes bloques:
B5: - Combustibles fósiles de equipos fijos: datos de consumo de combustibles desglosados según facturas y/o lecturas de contadores
B6: - Combustibles fósiles de vehículos: datos de consumo de combustibles o de distancia recorrida desglosados según facturas y/o lecturas de contadores.
B7: - Fugas de fluorados: datos de las hojas de registro de mantenimiento de los equipos de climatización o refrigeración.
B8: - Electricidad: datos mensuales o bimensuales de las facturas de la comercializadora de electricidad.
B10: Adapte esta tabla según sus necesidades
C11: Consumo_ | D11: Consumo_ | E11: Consumo_ | F11: Consumo_ | G11: Consumo_ | H11: Consumo_ | I11: Consumo_ | J11: Consumo_ | K11: Consumo_ | L11: Consumo_ | M11: Consumo_ | N11: Consumo_
B12: Enero
B13: Febrero
B14: Marzo
B15: Abril
B16: Mayo
B17: Junio
B18: Julio
B19: Agosto
B20: Septiembre
B21: Octubre
B22: Noviembre
B23: Diciembre
B24: TOTAL | C24: =SUM(C12:C23) -> 0.0 | D24: =SUM(D12:D23) -> 0.0 | E24: 0.0 | F24: 0.0 | G24: 0.0 | H24: 0.0 | I24: 0.0 | J24: 0.0 | K24: 0.0 | L24: 0.0 | M24: 0.0 | N24: 0.0

Sheet 10. Revisiones calculadora
A1: REVISIONES DE LA CALCULADORA DE HUELLA DE CARBONO
B3: Versión | C3: Fecha de publicación en la web | D3: Revisiones
B4: V0 | C4: 2014-05-30 | D4: -
B5: V1 | C5: 2014-06-02 | D5: Pestaña "Resultados": corrección de las unidades en las que se expresan las emisiones totales derivadas de las fugas de gases fluorados.
B6: V2 | C6: 2014-06-13 | D6: Pestaña "Resultados": se modifica el número de decimales en que se expresan los resultados. Pestaña "Factores de Emisión": se sustituyen los valores de los Potenciales de calentamiento global de los preparados más comunes indicados en el Tercer Informe de Evaluación del IPCC, por los que aparecen en el Cuarto Informe de Evaluación del IPCC. Pestaña "Revisiones calculadora": Se añade esta pestaña que anteriormente no existía.
B10: V3 | C10: 2015-04-01 | D10: Pestaña "Datos generales organización": se solicita un único índice de actividad y, de forma independiente y voluntaria, se solicitan los valores de superficie y nº de empleados de la organización. Pestaña "Combustibles fósiles": se limita a 3 el número de decimales de los factores de emisión y se corrigen las unidades en las que se expresan los resultados. Pestaña "Fluorados": corrección del valor del PCG del preparado R407 C. Pestaña "Electricidad": se incluye la opción "Otras" en el listado de las comercializadoras de electricidad y se modifica el orden de las columnas. Pestaña "Resultados": se modifican las unidades en que se expresan los valores relativos. Pestaña "Factores de emisión": se incluyen los factores relativos al año 2014. Se ofrece la opción de desglosar la información por sedes en cuyo caso pueden obtenerse los resultados también desglosados. Permite calcular la huella de carbono para el año 2014.
B18: V4 | C18: 2015-04-15 | D18: Pestaña "Factores de emisión": corrección del valor del mix eléctrico en el año 2014 para las comercializadoras: Enérgya VM Gestión de energía, S.L.U. e Iberdrola Clientes, S.A.U. Unidades en las que se expresan los resultados (t CO2 - t CO2 eq)
B19: V5 | C19: 2015-06-22 | D19: Pestaña "Factores de emisión": actualización de los valores de los factores de emisión y de los PCI a partir del último Inventario de emisiones de gases de efecto invernadero de España. Años 1990-2012.
B20: V6 | C20: 2016-04-04 | D20: Pestaña "Combustibles fósiles": en el apartado "Desplazamientos - Opción B1", corrección de una de las celdas en la que no aparecía el factor de emisión correspondiente al combustible seleccionado. Pestaña "Fluorados": se añade una nota relativa al momento en que se registran las emisiones de gases fluorados. Pestaña "Factores de emisión": actualización de los valores de los factores de emisión y de los PCI a partir del último Inventario de emisiones de gases de efecto invernadero de España. Años 1990-2014. Se añaden los factores de los mix eléctricos según comercializadoras del año 2015.
B21: V7 | C21: 2016-07-29 | D21: Pestaña "Factores de emisión": corrección de los factores de emisión y de los PCI de 2015 en función de las correcciones publicadas por el Inventario de emisiones de gases de efecto invernadero de España. Años 1990-2014. Actualizaciones en base a las Directrices del IPCC para los Inventarios nacionales de gases de efecto invernadero de 2006.
B22: V8 | C22: 2016-10-17 | D22: Pestaña "Factores de emisión": corrección de los factores de emisión del gas natural, el GNC y el GNL.
B23: V9 | C23: 2017-04-21 | D23: Pestaña "Datos generales de la organización": inclusión de un año más. Pestaña "Resultados": inclusión de un año más para la comparación de la media del ratio de emisiones de dos trienios. Pestaña "Factores de emisión": corrección del PCG del R-417A, incorporación de los factores de emisión para el año 2016 (los factores de los mix eléctricos son provisionales) y actualización de los factores de emisión y los PCI para toda serie la histórica en base a las Directrices del IPCC para los Inventarios nacionales de gases de efecto invernadero de 2006.
B24: V10 | C24: 2017-09-01 | D24: Pestaña "Fluorados": inclusión de posibilidad de introducir 0,0 kg de refrigerante recargado. Pestaña "Factores de emisión": se dan por definitivos los factores de los mix eléctricos de las comercializadoras que disponen de GdO y que han estado operativas durante el año 2016.
B25: V11 | C25: 2018-04-11 | D25: Pestaña "Factores de emisión": se incorporan los factores de emisión para el año 2017 y se añade el gasóleo B como posible combustible de instalaciones fijas. Se corrigen los valores del PCG de los preparados R-407B, R-407F y R-442A.
B26: V12 | C26: 2018-09-06 | D26: Pestaña "Combustibles fósiles": se corrige error de multiplicación que se producía a partir de la fila 10 en "Consumo de combustibles en instalaciones fijas". En "Consumo de combustibles en desplazamientos", se añade el combustible B7. Pestaña "Fluorados": se añade el preparado R-449A.
B27: V13 | C27: 2018-12-18 | D27: Pestaña "Combustibles fósiles" y pestaña "Electricidad": se engloba la electricidad consumida por vehículos eléctricos y/o híbridos enchufables en las emisiones indirectas de alcance 2.
B28: V14 | C28: 2019-04-05 | D28: Pestaña "Factores de emisión": actualización de los valores de los factores de emisión y de los PCI a partir del Inventario de emisiones de gases de efecto invernadero de España. Años 1990-2017 y los factores de los mix eléctricos de las comercializadoras de electricidad publicados por la Comisión Nacional de los Mercados y la Competencia.
B29: V15 | C29: 2019-09-30 | D29: Pestaña "Electricidad": las Garantías de Origen de la electricidad (GdO) a las que se refiere esta calculadora son las que acreditan que la energía eléctrica generada proviene de fuentes renovables.
B30: V16 | C30: 2019-12-27 | D30: Pestaña "Fluorados": corrección de los PCG de los preparados HFC-152a y R-413A.
B31: V17 | C31: 2020-04-23 | D31: Pestaña "Factores de emisión": actualización de los valores de los factores de emisión y de los PCI a partir del Inventario de emisiones de gases de efecto invernadero de España. Años 1990-2018 y los factores de los mix eléctricos de las comercializadoras de electricidad publicados por la Comisión Nacional de los Mercados y la Competencia. Pestaña "Combustibles fósiles": se actualiza la denominación de los combustibles en base a la nueva normativa europea sobre etiquetado para carburantes y vehículos.
B32: V18 | C32: 2020-06-04 | D32: Pestañas "Combustibles fósiles" y "Factores de emisión": corrección del factor de emisión del gasóleo B para toda la serie histórica en base a la densidad especificada en el Real Decreto 1088/2010 y sin aplicar los objetivos obligatorios mínimos de biocarburantes en cómputo anual considerados en el Real Decreto 1085/2015 que afectarían únicamente al gasóleo A. El factor de emisión del gas natural se expresa en PCS empleando un factor de conversión para el paso de PCS a PCI de 0,901 (Inventario Nacional de Emisiones de España). Pestaña "Fluorados": se añaden los preparados R-452A y R-453A.
B33: V19 | C33: 2020-06-10 | D33: Pestaña "Factores de emisión": corrección del factor de emisión del gas natural expresado en kCO2/kWhPCS.
B34: V20 | C34: 2020-07-07 | D34: Pestaña "Resultados": corrección del resultado de emisiones de alcance 2 incluyendo los vehículos eléctricos.

Sheet Datos (hidden)
D2: AÑO DE CÁLCULO | F2: ='1_Datos generales organización'!G3 -> 0 | Q2: Lista comb instalaciones fijas 2007 - 2018 | S2: Lista comb instalaciones fijas 2019 | X2: Lista comb vehículos 2007-2018 | AC2: Lista comb vehículos 2019
Q3: Gasóleo C (l) | S3: Gasóleo C (l) | X3: Gasolina (l) | AC3: E5 (l)
A4: 1_Datos generales organización | Q4: Gasóleo B (l) | S4: Gasóleo B (l) | X4: Gasóleo A (l) | AC4: E10 (l)
Q5: Gas natural (kWh)* | S5: Gas natural (kWh)* | X5: Gasóleo B (l) | AC5: E85 (l)
C6: Lista años | D6: Lista tipo organización | E6: Lista sector | Q6: LNG (kWh)* | S6: LNG (kWh)* | X6: E5 (l) | AC6: E100 (l)
C7: 2019 | D7: Administración Pública | E7: A.- Agricultura, ganadería, silvicultura y pesca | Q7: CNG (kWh)* | S7: CNG (kWh)* | X7: E10 (l) | AC7: B7 (l)
C8: 2018 | D8: Mediana empresa | E8: B.- Industrias extractivas | Q8: LPG (l) | S8: LPG (l) | X8: E85 (l) | AC8: B10 (l)
C9: 2017 | D9: Microempresa | E9: C.- Industria manufacturera | Q9: Gas butano (kg) | S9: Gas butano (kg) | X9: E100 (l) | AC9: B20 (l)
C10: 2016 | D10: Pequeña empresa | E10: D.- Suministro de energía eléctrica, gas, vapor y aire acondicionado | Q10: Gas propano kg) | S10: Gas propano kg) | X10: B7 (l) | AC10: B30 (l)
C11: 2015 | D11: Otras | E11: E.- Suministro de agua, actividades de saneamiento, gestión de residuos y descontaminación | Q11: Fuelóleo (kg) | S11: Fuelóleo (kg) | X11: B10 (l) | AC11: B100 (l)
C12: 2014 | E12: F.- Construcción | Q12: Carbón nacional (kg) | S12: Carbón nacional (kg) | X12: B20 (l) | AC12: Gasóleo B (l)
C13: 2013 | E13: G.- Comercio al por mayor y al por menor; reparación de vehículos de motor y motocicletas | Q13: Carbón de importación (kg) | S13: Carbón de importación (kg) | X13: B30 (l) | AC13: XTL (l)
C14: 2012 | E14: H.- Transporte y almacenamiento | Q14: Coque de petróleo (kg) | S14: Coque de petróleo (kg) | X14: B100 (l) | AC14: LNG (kWh)*
C15: 2011 | E15: I.- Hostelería | Q15: Gasolina (l) | S15: E5 (l) | X15: XTL (l) | AC15: CNG (kWh)*
C16: 2010 | E16: J.- Información y comunicaciones | Q16: Gasóleo A (l) | S16: E10 (l) | X16: LNG (kWh)* | AC16: LPG (l)
E17: K.- Actividades financieras y de seguros | Q17: E5 (l) | S17: E85 (l) | X17: CNG (kWh)* | AC17: H2 (kg)
E18: L.- Actividades inmobiliarias | Q18: E10 (l) | S18: E100 (l) | X18: LPG (l) | AC18: Fuelóleo (kg)
E19: M.- Actividades profesionales, científicas y técnicas | Q19: E85 (l) | S19: B7 (l) | X19: H2 (kg)
E20: N.- Actividades administrativas y servicios auxiliares | Q20: E100 (l) | S20: B10 (l) | X20: Fuelóleo (kg)
E21: O.- Administración pública y defensa; seguridad social obligatoria | Q21: B7 (l) | S21: B20 (l) | AC21: Excluyo respecto a años anteriores:
E22: P.- Educación | Q22: B10 (l) | S22: B30 (l) | AC22: Gasolina (l)
E23: Q.- Actividades sanitarias y de servicios sociales | Q23: B20 (l) | S23: B100 (l) | X23: Excluyo respecto a fijas: | AC23: Gasóleo A (l)
E24: R.- Actividades artísticas, recreativas y de entretenimiento | Q24: B30 (l) | X24: Gas natural (kWh)*
E25: S.- Otros servicios | Q25: B100 (l) | X25: Gasóleo C (l)
E26: T.- Actividades de los hogares como empleadores de personal doméstico; actividades de los hogares como productores de bienes y servicios para uso propio | S26: Excluyo respecto a años anteriores: | X26: Gas butano (kg)
E27: U.- Actividades de organizaciones y organismos extraterritoriales | S27: Gasolina (l) | X27: Gas propano kg)
Q28: Excluyo respecto a vehículos: | S28: Gasóleo A (l) | X28: Carbón nacional (kg)
C29: 2010 | D29: 2011 | E29: 2012 | F29: 2013 | G29: 2014 | H29: 2015 | I29: 2016 | J29: 2017 | K29: 2018 | L29: 2019 | Q29: XTL (l) | X29: Carbón de importación (kg)
C30: Lista_Comb_fósiles_fijos_2010 | D30: Lista_Comb_fósiles_fijos_2011 | E30: Lista_Comb_fósiles_fijos_2012 | F30: Lista_Comb_fósiles_fijos_2013 | G30: Lista_Comb_fósiles_fijos_2014 | H30: Lista_Comb_fósiles_fijos_2015 | I30: Lista_Comb_fósiles_fijos_2016 | J30: Lista_Comb_fósiles_fijos_2017 | K30: Lista_Comb_fósiles_fijos_2018 | L30: Lista_Comb_fósiles_fijos_2019 | Q30: H2 (kg) | X30: Coque de petróleo (kg)
C31: Biomasa (kg) | D31: Biomasa (kg) | E31: Biomasa (kg) | F31: Biomasa (kg) | G31: Biomasa (kg) | H31: Biomasa (kg) | I31: Biomasa (kg) | J31: Biomasa (kg) | K31: Biomasa (kg) | L31: Biomasa (kg)
C32: Gasóleo C (l) | D32: Gasóleo C (l) | E32: Gasóleo C (l) | F32: Gasóleo C (l) | G32: Gasóleo C (l) | H32: Gasóleo C (l) | I32: Gasóleo C (l) | J32: Gasóleo C (l) | K32: Gasóleo C (l) | L32: Gasóleo C (l) | X32: Añado respecto a fijas:
C33: Gasóleo B (l) | D33: Gasóleo B (l) | E33: Gasóleo B (l) | F33: Gasóleo B (l) | G33: Gasóleo B (l) | H33: Gasóleo B (l) | I33: Gasóleo B (l) | J33: Gasóleo B (l) | K33: Gasóleo B (l) | L33: Gasóleo B (l) | X33: XTL (l)
C34: Gas natural (kWh)* | D34: Gas natural (kWh)* | E34: Gas natural (kWh)* | F34: Gas natural (kWh)* | G34: Gas natural (kWh)* | H34: Gas natural (kWh)* | I34: Gas natural (kWh)* | J34: Gas natural (kWh)* | K34: Gas natural (kWh)* | L34: Gas natural (kWh)* | X34: H2 (kg)
C35: LNG (kWh)* | D35: LNG (kWh)* | E35: LNG (kWh)* | F35: LNG (kWh)* | G35: LNG (kWh)* | H35: LNG (kWh)* | I35: LNG (kWh)* | J35: LNG (kWh)* | K35: LNG (kWh)* | L35: LNG (kWh)*
C36: CNG (kWh)* | D36: CNG (kWh)* | E36: CNG (kWh)* | F36: CNG (kWh)* | G36: CNG (kWh)* | H36: CNG (kWh)* | I36: CNG (kWh)* | J36: CNG (kWh)* | K36: CNG (kWh)* | L36: CNG (kWh)*
C37: LPG (l) | D37: LPG (l) | E37: LPG (l) | F37: LPG (l) | G37: LPG (l) | H37: LPG (l) | I37: LPG (l) | J37: LPG (l) | K37: LPG (l) | L37: LPG (l)
C38: Gas butano (kg) | D38: Gas butano (kg) | E38: Gas butano (kg) | F38: Gas butano (kg) | G38: Gas butano (kg) | H38: Gas butano (kg) | I38: Gas butano (kg) | J38: Gas butano (kg) | K38: Gas butano (kg) | L38: Gas butano (kg)
C39: Gas propano kg) | D39: Gas propano kg) | E39: Gas propano kg) | F39: Gas propano kg) | G39: Gas propano kg) | H39: Gas propano kg) | I39: Gas propano kg) | J39: Gas propano kg) | K39: Gas propano kg) | L39: Gas propano kg)
C40: Fuelóleo (kg) | D40: Fuelóleo (kg) | E40: Fuelóleo (kg) | F40: Fuelóleo (kg) | G40: Fuelóleo (kg) | H40: Fuelóleo (kg) | I40: Fuelóleo (kg) | J40: Fuelóleo (kg) | K40: Fuelóleo (kg) | L40: Fuelóleo (kg)
C41: Carbón nacional (kg) | D41: Carbón nacional (kg) | E41: Carbón nacional (kg) | F41: Carbón nacional (kg) | G41: Carbón nacional (kg) | H41: Carbón nacional (kg) | I41: Carbón nacional (kg) | J41: Carbón nacional (kg) | K41: Carbón nacional (kg) | L41: Carbón nacional (kg)
C42: Carbón de importación (kg) | D42: Carbón de importación (kg) | E42: Carbón de importación (kg) | F42: Carbón de importación (kg) | G42: Carbón de importación (kg) | H42: Carbón de importación (kg) | I42: Carbón de importación (kg) | J42: Carbón de importación (kg) | K42: Carbón de importación (kg) | L42: Carbón de importación (kg)
C43: Coque de petróleo (kg) | D43: Coque de petróleo (kg) | E43: Coque de petróleo (kg) | F43: Coque de petróleo (kg) | G43: Coque de petróleo (kg) | H43: Coque de petróleo (kg) | I43: Coque de petróleo (kg) | J43: Coque de petróleo (kg) | K43: Coque de petróleo (kg) | L43: Coque de petróleo (kg)
C44: Gasolina (l) | D44: Gasolina (l) | E44: Gasolina (l) | F44: Gasolina (l) | G44: Gasolina (l) | H44: Gasolina (l) | I44: Gasolina (l) | J44: Gasolina (l) | K44: Gasolina (l) | L44: E5 (l)
C45: Gasóleo A (l) | D45: Gasóleo A (l) | E45: Gasóleo A (l) | F45: Gasóleo A (l) | G45: Gasóleo A (l) | H45: Gasóleo A (l) | I45: Gasóleo A (l) | J45: Gasóleo A (l) | K45: Gasóleo A (l) | L45: E10 (l)
C46: E5 (l) | D46: E5 (l) | E46: E5 (l) | F46: E5 (l) | G46: E5 (l) | H46: E5 (l) | I46: E5 (l) | J46: E5 (l) | K46: E5 (l) | L46: E85 (l)
C47: E10 (l) | D47: E10 (l) | E47: E10 (l) | F47: E10 (l) | G47: E10 (l) | H47: E10 (l) | I47: E10 (l) | J47: E10 (l) | K47: E10 (l) | L47: E100 (l)
C48: E85 (l) | D48: E85 (l) | E48: E85 (l) | F48: E85 (l) | G48: E85 (l) | H48: E85 (l) | I48: E85 (l) | J48: E85 (l) | K48: E85 (l) | L48: B7 (l)
C49: E100 (l) | D49: E100 (l) | E49: E100 (l) | F49: E100 (l) | G49: E100 (l) | H49: E100 (l) | I49: E100 (l) | J49: E100 (l) | K49: E100 (l) | L49: B10 (l)
C50: B7 (l) | D50: B7 (l) | E50: B7 (l) | F50: B7 (l) | G50: B7 (l) | H50: B7 (l) | I50: B7 (l) | J50: B7 (l) | K50: B7 (l) | L50: B20 (l)
C51: B10 (l) | D51: B10 (l) | E51: B10 (l) | F51: B10 (l) | G51: B10 (l) | H51: B10 (l) | I51: B10 (l) | J51: B10 (l) | K51: B10 (l) | L51: B30 (l)
C52: B20 (l) | D52: B20 (l) | E52: B20 (l) | F52: B20 (l) | G52: B20 (l) | H52: B20 (l) | I52: B20 (l) | J52: B20 (l) | K52: B20 (l) | L52: B100 (l)
C53: B30 (l) | D53: B30 (l) | E53: B30 (l) | F53: B30 (l) | G53: B30 (l) | H53: B30 (l) | I53: B30 (l) | J53: B30 (l) | K53: B30 (l) | L53: Otros (ud)
C54: B100 (l) | D54: B100 (l) | E54: B100 (l) | F54: B100 (l) | G54: B100 (l) | H54: B100 (l) | I54: B100 (l) | J54: B100 (l) | K54: B100 (l)
C55: Otros (ud) | D55: Otros (ud) | E55: Otros (ud) | F55: Otros (ud) | G55: Otros (ud) | H55: Otros (ud) | I55: Otros (ud) | J55: Otros (ud) | K55: Otros (ud)
C59: 2010 | D59: 2011 | E59: 2012 | F59: 2013 | G59: 2014 | H59: 2015 | I59: 2016 | J59: 2017 | K59: 2018 | L59: 2019
C60: Lista_Comb_fósiles_vehículos_2010 | D60: Lista_Comb_fósiles_vehículos_2011 | E60: Lista_Comb_fósiles_vehículos_2012 | F60: Lista_Comb_fósiles_vehículos_2013 | G60: Lista_Comb_fósiles_vehículos_2014 | H60: Lista_Comb_fósiles_vehículos_2015 | I60: Lista_Comb_fósiles_vehículos_2016 | J60: Lista_Comb_fósiles_vehículos_2017 | K60: Lista_Comb_fósiles_vehículos_2018 | L60: Lista_Comb_fósiles_vehículos_2019
C61: Gasolina (l) | D61: Gasolina (l) | E61: Gasolina (l) | F61: Gasolina (l) | G61: Gasolina (l) | H61: Gasolina (l) | I61: Gasolina (l) | J61: Gasolina (l) | K61: Gasolina (l) | L61: E5 (l)
C62: Gasóleo A (l) | D62: Gasóleo A (l) | E62: Gasóleo A (l) | F62: Gasóleo A (l) | G62: Gasóleo A (l) | H62: Gasóleo A (l) | I62: Gasóleo A (l) | J62: Gasóleo A (l) | K62: Gasóleo A (l) | L62: E10 (l)
C63: Gasóleo B (l) | D63: Gasóleo B (l) | E63: Gasóleo B (l) | F63: Gasóleo B (l) | G63: Gasóleo B (l) | H63: Gasóleo B (l) | I63: Gasóleo B (l) | J63: Gasóleo B (l) | K63: Gasóleo B (l) | L63: E85 (l)
C64: E5 (l) | D64: E5 (l) | E64: E5 (l) | F64: E5 (l) | G64: E5 (l) | H64: E5 (l) | I64: E5 (l) | J64: E5 (l) | K64: E5 (l) | L64: E100 (l)
C65: E10 (l) | D65: E10 (l) | E65: E10 (l) | F65: E10 (l) | G65: E10 (l) | H65: E10 (l) | I65: E10 (l) | J65: E10 (l) | K65: E10 (l) | L65: B7 (l)
C66: E85 (l) | D66: E85 (l) | E66: E85 (l) | F66: E85 (l) | G66: E85 (l) | H66: E85 (l) | I66: E85 (l) | J66: E85 (l) | K66: E85 (l) | L66: B10 (l)
C67: E100 (l) | D67: E100 (l) | E67: E100 (l) | F67: E100 (l) | G67: E100 (l) | H67: E100 (l) | I67: E100 (l) | J67: E100 (l) | K67: E100 (l) | L67: B20 (l)
C68: B7 (l) | D68: B7 (l) | E68: B7 (l) | F68: B7 (l) | G68: B7 (l) | H68: B7 (l) | I68: B7 (l) | J68: B7 (l) | K68: B7 (l) | L68: B30 (l)
C69: B10 (l) | D69: B10 (l) | E69: B10 (l) | F69: B10 (l) | G69: B10 (l) | H69: B10 (l) | I69: B10 (l) | J69: B10 (l) | K69: B10 (l) | L69: B100 (l)
C70: B20 (l) | D70: B20 (l) | E70: B20 (l) | F70: B20 (l) | G70: B20 (l) | H70: B20 (l) | I70: B20 (l) | J70: B20 (l) | K70: B20 (l) | L70: Gasóleo B (l)
C71: B30 (l) | D71: B30 (l) | E71: B30 (l) | F71: B30 (l) | G71: B30 (l) | H71: B30 (l) | I71: B30 (l) | J71: B30 (l) | K71: B30 (l) | L71: XTL (l)
C72: B100 (l) | D72: B100 (l) | E72: B100 (l) | F72: B100 (l) | G72: B100 (l) | H72: B100 (l) | I72: B100 (l) | J72: B100 (l) | K72: B100 (l) | L72: LNG (kWh)*
C73: XTL (l) | D73: XTL (l) | E73: XTL (l) | F73: XTL (l) | G73: XTL (l) | H73: XTL (l) | I73: XTL (l) | J73: XTL (l) | K73: XTL (l) | L73: CNG (kWh)*
C74: LNG (kWh)* | D74: LNG (kWh)* | E74: LNG (kWh)* | F74: LNG (kWh)* | G74: LNG (kWh)* | H74: LNG (kWh)* | I74: LNG (kWh)* | J74: LNG (kWh)* | K74: LNG (kWh)* | L74: LPG (l)
C75: CNG (kWh)* | D75: CNG (kWh)* | E75: CNG (kWh)* | F75: CNG (kWh)* | G75: CNG (kWh)* | H75: CNG (kWh)* | I75: CNG (kWh)* | J75: CNG (kWh)* | K75: CNG (kWh)* | L75: H2 (kg)
C76: LPG (l) | D76: LPG (l) | E76: LPG (l) | F76: LPG (l) | G76: LPG (l) | H76: LPG (l) | I76: LPG (l) | J76: LPG (l) | K76: LPG (l) | L76: Fuelóleo (kg)
C77: H2 (kg) | D77: H2 (kg) | E77: H2 (kg) | F77: H2 (kg) | G77: H2 (kg) | H77: H2 (kg) | I77: H2 (kg) | J77: H2 (kg) | K77: H2 (kg) | L77: Otros (ud)
C78: Fuelóleo (kg) | D78: Fuelóleo (kg) | E78: Fuelóleo (kg) | F78: Fuelóleo (kg) | G78: Fuelóleo (kg) | H78: Fuelóleo (kg) | I78: Fuelóleo (kg) | J78: Fuelóleo (kg) | K78: Fuelóleo (kg)
C79: Otros (ud) | D79: Otros (ud) | E79: Otros (ud) | F79: Otros (ud) | G79: Otros (ud) | H79: Otros (ud) | I79: Otros (ud) | J79: Otros (ud) | K79: Otros (ud)
A83: 2_Combustibles fósiles
B85: Instalaciones fijas | D85: 1 | E85: 2 | F85: 3 | G85: 4 | H85: 5 | I85: 6 | J85: 7 | K85: 8 | L85: 9 | M85: 10 | N85: 11
C86: Combustible escogido | D86: Lista_Comb_fósiles_fijos | E86: Multiplicador 2010 | F86: Multiplicador 2011 | G86: Multiplicador 2012 | H86: Multiplicador 2013 | I86: Multiplicador 2014 | J86: Multiplicador 2015 | K86: Multiplicador 2016 | L86: Multiplicador 2017 | M86: Multiplicador 2018 | N86: Multiplicador 2019 | Q86: Fórmula FE | R86: Fórmula | T86: Resultado Ins fijas
C87: ='2_Combustibles fósiles'!F18 -> 0.000 | D87: Biomasa (kg) | E87: 0.000 | F87: 0.000 | G87: 0.000 | H87: 0.000 | I87: 0.000 | J87: 0.000 | K87: 0.000 | L87: 0.000 | M87: 0.000 | N87: 0.000 | Q87: =VLOOKUP(C87,$D$87:$N$111,$F$2-2008,0) ->  | R87: =IF(ISNUMBER('2_Combustibles fósiles'!I18),'2_Combustibles fósiles'!G18*'2_Combustibles fósiles'!I18,IF(ISNUMBER('2_Combustibles fósiles'!H18),'2_Combustibles fósiles'!H18*'2_Combustibles fósiles'!G18,"")) ->  | T87: =SUM(R87:R108) -> 0.00
C88: ='2_Combustibles fósiles'!F19 -> 0.000 | D88: Gasóleo C (l) | E88: ='7_Factores de emisión'!G12 -> 2.868 | F88: ='7_Factores de emisión'!H12 -> 2.868 | G88: ='7_Factores de emisión'!I12 -> 2.868 | H88: ='7_Factores de emisión'!J12 -> 2.868 | I88: ='7_Factores de emisión'!K12 -> 2.868 | J88: ='7_Factores de emisión'!L12 -> 2.868 | K88: ='7_Factores de emisión'!M12 -> 2.868 | L88: ='7_Factores de emisión'!N12 -> 2.868 | M88: ='7_Factores de emisión'!O12 -> 2.868 | N88: ='7_Factores de emisión'!P12 -> 2.868 | Q88: =VLOOKUP(C88,$D$87:$N$111,$F$2-2008,0) ->  | R88: =IF(ISNUMBER('2_Combustibles fósiles'!I19),'2_Combustibles fósiles'!G19*'2_Combustibles fósiles'!I19,IF(ISNUMBER('2_Combustibles fósiles'!H19),'2_Combustibles fósiles'!H19*'2_Combustibles fósiles'!G19,"")) -> 
C89: ='2_Combustibles fósiles'!F20 -> 0.000 | D89: Gasóleo B (l) | E89: ='7_Factores de emisión'!G11 -> 2.708 | F89: ='7_Factores de emisión'!H11 -> 2.708 | G89: ='7_Factores de emisión'!I11 -> 2.708 | H89: ='7_Factores de emisión'!J11 -> 2.708 | I89: ='7_Factores de emisión'!K11 -> 2.708 | J89: ='7_Factores de emisión'!L11 -> 2.708 | K89: ='7_Factores de emisión'!M11 -> 2.708 | L89: ='7_Factores de emisión'!N11 -> 2.708 | M89: ='7_Factores de emisión'!O11 -> 2.708 | N89: ='7_Factores de emisión'!P11 -> 2.708 | R89: =IF(ISNUMBER('2_Combustibles fósiles'!I20),'2_Combustibles fósiles'!G20*'2_Combustibles fósiles'!I20,IF(ISNUMBER('2_Combustibles fósiles'!H20),'2_Combustibles fósiles'!H20*'2_Combustibles fósiles'!G20,"")) -> 
C90: ='2_Combustibles fósiles'!F21 -> 0.000 | D90: Gas natural (kWh)* | E90: ='7_Factores de emisión'!G23 -> 0.182 | F90: ='7_Factores de emisión'!H23 -> 0.182 | G90: ='7_Factores de emisión'!I23 -> 0.182 | H90: ='7_Factores de emisión'!J23 -> 0.182 | I90: ='7_Factores de emisión'!K23 -> 0.182 | J90: ='7_Factores de emisión'!L23 -> 0.182 | K90: ='7_Factores de emisión'!M23 -> 0.182 | L90: ='7_Factores de emisión'!N23 -> 0.183 | M90: ='7_Factores de emisión'!O23 -> 0.183 | N90: ='7_Factores de emisión'!P23 -> 0.182 | R90: =IF(ISNUMBER('2_Combustibles fósiles'!I21),'2_Combustibles fósiles'!G21*'2_Combustibles fósiles'!I21,IF(ISNUMBER('2_Combustibles fósiles'!H21),'2_Combustibles fósiles'!H21*'2_Combustibles fósiles'!G21,"")) -> 
C91: ='2_Combustibles fósiles'!F22 -> 0.000 | D91: LNG (kWh)* | E91: ='7_Factores de emisión'!G24 -> 0.182 | F91: ='7_Factores de emisión'!H24 -> 0.182 | G91: ='7_Factores de emisión'!I24 -> 0.182 | H91: ='7_Factores de emisión'!J24 -> 0.182 | I91: ='7_Factores de emisión'!K24 -> 0.182 | J91: ='7_Factores de emisión'!L24 -> 0.182 | K91: ='7_Factores de emisión'!M24 -> 0.182 | L91: ='7_Factores de emisión'!N24 -> 0.183 | M91: ='7_Factores de emisión'!O24 -> 0.183 | N91: ='7_Factores de emisión'!P24 -> 0.182 | R91: =IF(ISNUMBER('2_Combustibles fósiles'!I22),'2_Combustibles fósiles'!G22*'2_Combustibles fósiles'!I22,IF(ISNUMBER('2_Combustibles fósiles'!H22),'2_Combustibles fósiles'!H22*'2_Combustibles fósiles'!G22,"")) -> 
C92: ='2_Combustibles fósiles'!F23 -> 0.000 | D92: CNG (kWh)* | E92: ='7_Factores de emisión'!G25 -> 0.182 | F92: ='7_Factores de emisión'!H25 -> 0.182 | G92: ='7_Factores de emisión'!I25 -> 0.182 | H92: ='7_Factores de emisión'!J25 -> 0.182 | I92: ='7_Factores de emisión'!K25 -> 0.182 | J92: ='7_Factores de emisión'!L25 -> 0.182 | K92: ='7_Factores de emisión'!M25 -> 0.182 | L92: ='7_Factores de emisión'!N25 -> 0.183 | M92: ='7_Factores de emisión'!O25 -> 0.183 | N92: ='7_Factores de emisión'!P25 -> 0.182 | R92: =IF(ISNUMBER('2_Combustibles fósiles'!I23),'2_Combustibles fósiles'!G23*'2_Combustibles fósiles'!I23,IF(ISNUMBER('2_Combustibles fósiles'!H23),'2_Combustibles fósiles'!H23*'2_Combustibles fósiles'!G23,"")) -> 
C93: ='2_Combustibles fósiles'!F24 -> 0.000 | D93: LPG (l) | E93: ='7_Factores de emisión'!G26 -> 1.671 | F93: ='7_Factores de emisión'!H26 -> 1.671 | G93: ='7_Factores de emisión'!I26 -> 1.671 | H93: ='7_Factores de emisión'!J26 -> 1.671 | I93: ='7_Factores de emisión'!K26 -> 1.671 | J93: ='7_Factores de emisión'!L26 -> 1.671 | K93: ='7_Factores de emisión'!M26 -> 1.671 | L93: ='7_Factores de emisión'!N26 -> 1.671 | M93: ='7_Factores de emisión'!O26 -> 1.671 | N93: ='7_Factores de emisión'!P26 -> 1.671 | R93: =IF(ISNUMBER('2_Combustibles fósiles'!I24),'2_Combustibles fósiles'!G24*'2_Combustibles fósiles'!I24,IF(ISNUMBER('2_Combustibles fósiles'!H24),'2_Combustibles fósiles'!H24*'2_Combustibles fósiles'!G24,"")) -> 
C94: ='2_Combustibles fósiles'!F25 -> 0.000 | D94: Gas butano (kg) | E94: ='7_Factores de emisión'!G28 -> 2.964 | F94: ='7_Factores de emisión'!H28 -> 2.964 | G94: ='7_Factores de emisión'!I28 -> 2.964 | H94: ='7_Factores de emisión'!J28 -> 2.964 | I94: ='7_Factores de emisión'!K28 -> 2.964 | J94: ='7_Factores de emisión'!L28 -> 2.964 | K94: ='7_Factores de emisión'!M28 -> 2.964 | L94: ='7_Factores de emisión'!N28 -> 2.964 | M94: ='7_Factores de emisión'!O28 -> 2.964 | N94: ='7_Factores de emisión'!P28 -> 2.964 | R94: =IF(ISNUMBER('2_Combustibles fósiles'!I25),'2_Combustibles fósiles'!G25*'2_Combustibles fósiles'!I25,IF(ISNUMBER('2_Combustibles fósiles'!H25),'2_Combustibles fósiles'!H25*'2_Combustibles fósiles'!G25,"")) -> 
C95: ='2_Combustibles fósiles'!F26 -> 0.000 | D95: Gas propano kg) | E95: ='7_Factores de emisión'!G29 -> 2.938 | F95: ='7_Factores de emisión'!H29 -> 2.938 | G95: ='7_Factores de emisión'!I29 -> 2.938 | H95: ='7_Factores de emisión'!J29 -> 2.938 | I95: ='7_Factores de emisión'!K29 -> 2.938 | J95: ='7_Factores de emisión'!L29 -> 2.938 | K95: ='7_Factores de emisión'!M29 -> 2.938 | L95: ='7_Factores de emisión'!N29 -> 2.938 | M95: ='7_Factores de emisión'!O29 -> 2.938 | N95: ='7_Factores de emisión'!P29 -> 2.938 | R95: =IF(ISNUMBER('2_Combustibles fósiles'!I26),'2_Combustibles fósiles'!G26*'2_Combustibles fósiles'!I26,IF(ISNUMBER('2_Combustibles fósiles'!H26),'2_Combustibles fósiles'!H26*'2_Combustibles fósiles'!G26,"")) -> 
C96: ='2_Combustibles fósiles'!F27 -> 0.000 | D96: Fuelóleo (kg) | E96: ='7_Factores de emisión'!G30 -> 3.127 | F96: ='7_Factores de emisión'!H30 -> 3.127 | G96: ='7_Factores de emisión'!I30 -> 3.127 | H96: ='7_Factores de emisión'!J30 -> 3.127 | I96: ='7_Factores de emisión'!K30 -> 3.127 | J96: ='7_Factores de emisión'!L30 -> 3.127 | K96: ='7_Factores de emisión'!M30 -> 3.127 | L96: ='7_Factores de emisión'!N30 -> 3.127 | M96: ='7_Factores de emisión'!O30 -> 3.127 | N96: ='7_Factores de emisión'!P30 -> 3.127 | R96: =IF(ISNUMBER('2_Combustibles fósiles'!I27),'2_Combustibles fósiles'!G27*'2_Combustibles fósiles'!I27,IF(ISNUMBER('2_Combustibles fósiles'!H27),'2_Combustibles fósiles'!H27*'2_Combustibles fósiles'!G27,"")) -> 
C97: ='2_Combustibles fósiles'!F28 -> 0.000 | D97: Carbón nacional (kg) | E97: ='7_Factores de emisión'!G31 -> 2.299 | F97: ='7_Factores de emisión'!H31 -> 2.299 | G97: ='7_Factores de emisión'!I31 -> 2.299 | H97: ='7_Factores de emisión'!J31 -> 2.299 | I97: ='7_Factores de emisión'!K31 -> 2.299 | J97: ='7_Factores de emisión'!L31 -> 2.299 | K97: ='7_Factores de emisión'!M31 -> 2.006 | L97: ='7_Factores de emisión'!N31 -> 2.227 | M97: ='7_Factores de emisión'!O31 -> 2.227 | N97: ='7_Factores de emisión'!P31 -> 1.914 | R97: =IF(ISNUMBER('2_Combustibles fósiles'!I28),'2_Combustibles fósiles'!G28*'2_Combustibles fósiles'!I28,IF(ISNUMBER('2_Combustibles fósiles'!H28),'2_Combustibles fósiles'!H28*'2_Combustibles fósiles'!G28,"")) -> 
C98: ='2_Combustibles fósiles'!F29 -> 0.000 | D98: Carbón de importación (kg) | E98: ='7_Factores de emisión'!G32 -> 2.579 | F98: ='7_Factores de emisión'!H32 -> 2.579 | G98: ='7_Factores de emisión'!I32 -> 2.579 | H98: ='7_Factores de emisión'!J32 -> 2.579 | I98: ='7_Factores de emisión'!K32 -> 2.579 | J98: ='7_Factores de emisión'!L32 -> 2.579 | K98: ='7_Factores de emisión'!M32 -> 2.430 | L98: ='7_Factores de emisión'!N32 -> 2.444 | M98: ='7_Factores de emisión'!O32 -> 2.444 | N98: ='7_Factores de emisión'!P32 -> 2.429 | R98: =IF(ISNUMBER('2_Combustibles fósiles'!I29),'2_Combustibles fósiles'!G29*'2_Combustibles fósiles'!I29,IF(ISNUMBER('2_Combustibles fósiles'!H29),'2_Combustibles fósiles'!H29*'2_Combustibles fósiles'!G29,"")) -> 
C99: ='2_Combustibles fósiles'!F30 -> 0.000 | D99: Coque de petróleo (kg) | E99: ='7_Factores de emisión'!G23 -> 0.182 | F99: ='7_Factores de emisión'!H23 -> 0.182 | G99: ='7_Factores de emisión'!I23 -> 0.182 | H99: ='7_Factores de emisión'!J23 -> 0.182 | I99: ='7_Factores de emisión'!K23 -> 0.182 | J99: ='7_Factores de emisión'!L23 -> 0.182 | K99: ='7_Factores de emisión'!M23 -> 0.182 | L99: ='7_Factores de emisión'!N23 -> 0.183 | M99: ='7_Factores de emisión'!O23 -> 0.183 | N99: ='7_Factores de emisión'!P23 -> 0.182 | R99: =IF(ISNUMBER('2_Combustibles fósiles'!I30),'2_Combustibles fósiles'!G30*'2_Combustibles fósiles'!I30,IF(ISNUMBER('2_Combustibles fósiles'!H30),'2_Combustibles fósiles'!H30*'2_Combustibles fósiles'!G30,"")) -> 
C100: ='2_Combustibles fósiles'!F31 -> 0.000 | D100: Gasolina (l) | E100: ='7_Factores de emisión'!G9 -> 2.295 | F100: ='7_Factores de emisión'!H9 -> 2.205 | G100: ='7_Factores de emisión'!I9 -> 2.201 | H100: ='7_Factores de emisión'!J9 -> 2.205 | I100: ='7_Factores de emisión'!K9 -> 2.205 | J100: ='7_Factores de emisión'!L9 -> 2.205 | K100: ='7_Factores de emisión'!M9 -> 2.196 | L100: ='7_Factores de emisión'!N9 -> 2.180 | M100: ='7_Factores de emisión'!O9 -> 2.157 | N100: ='7_Factores de emisión'!P9 -> - | R100: =IF(ISNUMBER('2_Combustibles fósiles'!I31),'2_Combustibles fósiles'!G31*'2_Combustibles fósiles'!I31,IF(ISNUMBER('2_Combustibles fósiles'!H31),'2_Combustibles fósiles'!H31*'2_Combustibles fósiles'!G31,"")) -> 
C101: ='2_Combustibles fósiles'!F32 -> 0.000 | D101: Gasóleo A (l) | E101: ='7_Factores de emisión'!G10 -> 2.653 | F101: ='7_Factores de emisión'!H10 -> 2.493 | G101: ='7_Factores de emisión'!I10 -> 2.467 | H101: ='7_Factores de emisión'!J10 -> 2.544 | I101: ='7_Factores de emisión'!K10 -> 2.544 | J101: ='7_Factores de emisión'!L10 -> 2.544 | K101: ='7_Factores de emisión'!M10 -> 2.539 | L101: ='7_Factores de emisión'!N10 -> 2.520 | M101: ='7_Factores de emisión'!O10 -> 2.493 | N101: ='7_Factores de emisión'!P10 -> - | R101: =IF(ISNUMBER('2_Combustibles fósiles'!I32),'2_Combustibles fósiles'!G32*'2_Combustibles fósiles'!I32,IF(ISNUMBER('2_Combustibles fósiles'!H32),'2_Combustibles fósiles'!H32*'2_Combustibles fósiles'!G32,"")) -> 
C102: ='2_Combustibles fósiles'!F33 -> 0.000 | D102: E5 (l) | E102: ='7_Factores de emisión'!G13 -> 2.180 | F102: ='7_Factores de emisión'!H13 -> 2.180 | G102: ='7_Factores de emisión'!I13 -> 2.180 | H102: ='7_Factores de emisión'!J13 -> 2.180 | I102: ='7_Factores de emisión'!K13 -> 2.180 | J102: ='7_Factores de emisión'!L13 -> 2.180 | K102: ='7_Factores de emisión'!M13 -> 2.180 | L102: ='7_Factores de emisión'!N13 -> 2.180 | M102: ='7_Factores de emisión'!O13 -> 2.180 | N102: ='7_Factores de emisión'!P13 -> 2.180 | R102: =IF(ISNUMBER('2_Combustibles fósiles'!I33),'2_Combustibles fósiles'!G33*'2_Combustibles fósiles'!I33,IF(ISNUMBER('2_Combustibles fósiles'!H33),'2_Combustibles fósiles'!H33*'2_Combustibles fósiles'!G33,"")) -> 
C103: ='2_Combustibles fósiles'!F34 -> 0.000 | D103: E10 (l) | E103: ='7_Factores de emisión'!G14 -> 2.065 | F103: ='7_Factores de emisión'!H14 -> 2.065 | G103: ='7_Factores de emisión'!I14 -> 2.065 | H103: ='7_Factores de emisión'!J14 -> 2.065 | I103: ='7_Factores de emisión'!K14 -> 2.065 | J103: ='7_Factores de emisión'!L14 -> 2.065 | K103: ='7_Factores de emisión'!M14 -> 2.065 | L103: ='7_Factores de emisión'!N14 -> 2.065 | M103: ='7_Factores de emisión'!O14 -> 2.065 | N103: ='7_Factores de emisión'!P14 -> 2.065 | R103: =IF(ISNUMBER('2_Combustibles fósiles'!I34),'2_Combustibles fósiles'!G34*'2_Combustibles fósiles'!I34,IF(ISNUMBER('2_Combustibles fósiles'!H34),'2_Combustibles fósiles'!H34*'2_Combustibles fósiles'!G34,"")) -> 
C104: ='2_Combustibles fósiles'!F35 -> 0.000 | D104: E85 (l) | E104: ='7_Factores de emisión'!G15 -> 0.344 | F104: ='7_Factores de emisión'!H15 -> 0.344 | G104: ='7_Factores de emisión'!I15 -> 0.344 | H104: ='7_Factores de emisión'!J15 -> 0.344 | I104: ='7_Factores de emisión'!K15 -> 0.344 | J104: ='7_Factores de emisión'!L15 -> 0.344 | K104: ='7_Factores de emisión'!M15 -> 0.344 | L104: ='7_Factores de emisión'!N15 -> 0.344 | M104: ='7_Factores de emisión'!O15 -> 0.344 | N104: ='7_Factores de emisión'!P15 -> 0.344 | R104: =IF(ISNUMBER('2_Combustibles fósiles'!I35),'2_Combustibles fósiles'!G35*'2_Combustibles fósiles'!I35,IF(ISNUMBER('2_Combustibles fósiles'!H35),'2_Combustibles fósiles'!H35*'2_Combustibles fósiles'!G35,"")) -> 
C105: ='2_Combustibles fósiles'!F36 -> 0.000 | D105: E100 (l) | E105: ='7_Factores de emisión'!G16 -> 0.000 | F105: ='7_Factores de emisión'!H16 -> 0.000 | G105: ='7_Factores de emisión'!I16 -> 0.000 | H105: ='7_Factores de emisión'!J16 -> 0.000 | I105: ='7_Factores de emisión'!K16 -> 0.000 | J105: ='7_Factores de emisión'!L16 -> 0.000 | K105: ='7_Factores de emisión'!M16 -> 0.000 | L105: ='7_Factores de emisión'!N16 -> 0.000 | M105: ='7_Factores de emisión'!O16 -> 0.000 | N105: ='7_Factores de emisión'!P16 -> 0.000 | R105: =IF(ISNUMBER('2_Combustibles fósiles'!I36),'2_Combustibles fósiles'!G36*'2_Combustibles fósiles'!I36,IF(ISNUMBER('2_Combustibles fósiles'!H36),'2_Combustibles fósiles'!H36*'2_Combustibles fósiles'!G36,"")) -> 
C106: ='2_Combustibles fósiles'!F37 -> 0.000 | D106: B7 (l) | E106: ='7_Factores de emisión'!G17 -> 2.467 | F106: ='7_Factores de emisión'!H17 -> 2.467 | G106: ='7_Factores de emisión'!I17 -> 2.467 | H106: ='7_Factores de emisión'!J17 -> 2.467 | I106: ='7_Factores de emisión'!K17 -> 2.467 | J106: ='7_Factores de emisión'!L17 -> 2.467 | K106: ='7_Factores de emisión'!M17 -> 2.467 | L106: ='7_Factores de emisión'!N17 -> 2.467 | M106: ='7_Factores de emisión'!O17 -> 2.467 | N106: ='7_Factores de emisión'!P17 -> 2.467 | Q106: =VLOOKUP(C106,$D$87:$N$111,$F$2-2008,0) ->  | R106: =IF(ISNUMBER('2_Combustibles fósiles'!I37),'2_Combustibles fósiles'!G37*'2_Combustibles fósiles'!I37,IF(ISNUMBER('2_Combustibles fósiles'!H37),'2_Combustibles fósiles'!H37*'2_Combustibles fósiles'!G37,"")) -> 
C107: ='2_Combustibles fósiles'!F38 -> 0.000 | D107: B10 (l) | E107: ='7_Factores de emisión'!G18 -> 2.387 | F107: ='7_Factores de emisión'!H18 -> 2.387 | G107: ='7_Factores de emisión'!I18 -> 2.387 | H107: ='7_Factores de emisión'!J18 -> 2.387 | I107: ='7_Factores de emisión'!K18 -> 2.387 | J107: ='7_Factores de emisión'!L18 -> 2.387 | K107: ='7_Factores de emisión'!M18 -> 2.387 | L107: ='7_Factores de emisión'!N18 -> 2.387 | M107: ='7_Factores de emisión'!O18 -> 2.387 | N107: ='7_Factores de emisión'!P18 -> 2.387 | R107: =IF(ISNUMBER('2_Combustibles fósiles'!I38),'2_Combustibles fósiles'!G38*'2_Combustibles fósiles'!I38,IF(ISNUMBER('2_Combustibles fósiles'!H38),'2_Combustibles fósiles'!H38*'2_Combustibles fósiles'!G38,"")) -> 
C108: ='2_Combustibles fósiles'!F39 -> 0.000 | D108: B20 (l) | E108: ='7_Factores de emisión'!G19 -> 2.122 | F108: ='7_Factores de emisión'!H19 -> 2.122 | G108: ='7_Factores de emisión'!I19 -> 2.122 | H108: ='7_Factores de emisión'!J19 -> 2.122 | I108: ='7_Factores de emisión'!K19 -> 2.122 | J108: ='7_Factores de emisión'!L19 -> 2.122 | K108: ='7_Factores de emisión'!M19 -> 2.122 | L108: ='7_Factores de emisión'!N19 -> 2.122 | M108: ='7_Factores de emisión'!O19 -> 2.122 | N108: ='7_Factores de emisión'!P19 -> 2.122 | R108: =IF(ISNUMBER('2_Combustibles fósiles'!I39),'2_Combustibles fósiles'!G39*'2_Combustibles fósiles'!I39,IF(ISNUMBER('2_Combustibles fósiles'!H39),'2_Combustibles fósiles'!H39*'2_Combustibles fósiles'!G39,"")) -> 
D109: B30 (l) | E109: ='7_Factores de emisión'!G20 -> 1.857 | F109: ='7_Factores de emisión'!H20 -> 1.857 | G109: ='7_Factores de emisión'!I20 -> 1.857 | H109: ='7_Factores de emisión'!J20 -> 1.857 | I109: ='7_Factores de emisión'!K20 -> 1.857 | J109: ='7_Factores de emisión'!L20 -> 1.857 | K109: ='7_Factores de emisión'!M20 -> 1.857 | L109: ='7_Factores de emisión'!N20 -> 1.857 | M109: ='7_Factores de emisión'!O20 -> 1.857 | N109: ='7_Factores de emisión'!P20 -> 1.857
D110: B100 (l) | E110: ='7_Factores de emisión'!G21 -> 0.000 | F110: ='7_Factores de emisión'!H21 -> 0.000 | G110: ='7_Factores de emisión'!I21 -> 0.000 | H110: ='7_Factores de emisión'!J21 -> 0.000 | I110: ='7_Factores de emisión'!K21 -> 0.000 | J110: ='7_Factores de emisión'!L21 -> 0.000 | K110: ='7_Factores de emisión'!M21 -> 0.000 | L110: ='7_Factores de emisión'!N21 -> 0.000 | M110: ='7_Factores de emisión'!O21 -> 0.000 | N110: ='7_Factores de emisión'!P21 -> 0.000
D111: Otros (ud) | E111: - | F111: - | G111: - | H111: - | I111: - | J111: - | K111: - | L111: - | M111: - | N111: -
B113: Desplazamientos | D113: 1 | E113: 2 | F113: 3 | G113: 4 | H113: 5 | I113: 6 | J113: 7 | K113: 8 | L113: 9 | M113: 10 | N113: 11
C114: Propulsión escogida | D114: Lista tipo de combustible 2010-2018 | E114: Multiplicador 2010 | F114: Multiplicador 2011 | G114: Multiplicador 2012 | H114: Multiplicador 2013 | I114: Multiplicador 2014 | J114: Multiplicador 2015 | K114: Multiplicador 2016 | L114: Multiplicador 2017 | M114: Multiplicador 2018 | N114: Multiplicador 2019 | P114: Fórmula desde 2010 hasta 2018 | Q114: Fórmula B1 | R114: Fórmula B2 | T114: Resultado móviles
C115: ='2_Combustibles fósiles'!F62 -> 0 | D115: Gasolina (l) | E115: ='7_Factores de emisión'!G9 -> 2.295 | F115: ='7_Factores de emisión'!H9 -> 2.205 | G115: ='7_Factores de emisión'!I9 -> 2.201 | H115: ='7_Factores de emisión'!J9 -> 2.205 | I115: ='7_Factores de emisión'!K9 -> 2.205 | J115: ='7_Factores de emisión'!L9 -> 2.205 | K115: ='7_Factores de emisión'!M9 -> 2.196 | L115: ='7_Factores de emisión'!N9 -> 2.180 | M115: ='7_Factores de emisión'!O9 -> 2.157 | N115: ='7_Factores de emisión'!P9 -> - | P115: =VLOOKUP(C115,$D$115:$N$133,$F$2-2008,0) ->  | Q115: =IF(ISNUMBER('2_Combustibles fósiles'!H62),'2_Combustibles fósiles'!H62*'2_Combustibles fósiles'!I62,IF(ISNUMBER('2_Combustibles fósiles'!G62),'2_Combustibles fósiles'!G62*'2_Combustibles fósiles'!I62,"")) ->  | R115: =IF(ISNUMBER('2_Combustibles fósiles'!M62),('2_Combustibles fósiles'!M62*'2_Combustibles fósiles'!N62)/1000,0) -> 0.00 | T115: =SUM(Q135+R135) -> 0.00
C116: ='2_Combustibles fósiles'!F63 -> 0 | D116: Gasóleo A (l) | E116: ='7_Factores de emisión'!G10 -> 2.653 | F116: ='7_Factores de emisión'!H10 -> 2.493 | G116: ='7_Factores de emisión'!I10 -> 2.467 | H116: ='7_Factores de emisión'!J10 -> 2.544 | I116: ='7_Factores de emisión'!K10 -> 2.544 | J116: ='7_Factores de emisión'!L10 -> 2.544 | K116: ='7_Factores de emisión'!M10 -> 2.539 | L116: ='7_Factores de emisión'!N10 -> 2.520 | M116: ='7_Factores de emisión'!O10 -> 2.493 | N116: ='7_Factores de emisión'!P10 -> - | P116: =VLOOKUP(C116,$D$115:$N$133,$F$2-2008,0) ->  | Q116: =IF(ISNUMBER('2_Combustibles fósiles'!H63),'2_Combustibles fósiles'!H63*'2_Combustibles fósiles'!I63,IF(ISNUMBER('2_Combustibles fósiles'!G63),'2_Combustibles fósiles'!G63*'2_Combustibles fósiles'!I63,"")) ->  | R116: =IF(ISNUMBER('2_Combustibles fósiles'!M63),('2_Combustibles fósiles'!M63*'2_Combustibles fósiles'!N63)/1000,0) -> 0.00
C117: ='2_Combustibles fósiles'!F64 -> 0 | D117: Gasóleo B (l) | E117: ='7_Factores de emisión'!G11 -> 2.708 | F117: ='7_Factores de emisión'!H11 -> 2.708 | G117: ='7_Factores de emisión'!I11 -> 2.708 | H117: ='7_Factores de emisión'!J11 -> 2.708 | I117: ='7_Factores de emisión'!K11 -> 2.708 | J117: ='7_Factores de emisión'!L11 -> 2.708 | K117: ='7_Factores de emisión'!M11 -> 2.708 | L117: ='7_Factores de emisión'!N11 -> 2.708 | M117: ='7_Factores de emisión'!O11 -> 2.708 | N117: ='7_Factores de emisión'!P11 -> 2.708 | Q117: =IF(ISNUMBER('2_Combustibles fósiles'!H64),'2_Combustibles fósiles'!H64*'2_Combustibles fósiles'!I64,IF(ISNUMBER('2_Combustibles fósiles'!G64),'2_Combustibles fósiles'!G64*'2_Combustibles fósiles'!I64,"")) ->  | R117: =IF(ISNUMBER('2_Combustibles fósiles'!M64),('2_Combustibles fósiles'!M64*'2_Combustibles fósiles'!N64)/1000,0) -> 0.00
C118: ='2_Combustibles fósiles'!F65 -> 0 | D118: E5 (l) | E118: ='7_Factores de emisión'!G13 -> 2.180 | F118: ='7_Factores de emisión'!H13 -> 2.180 | G118: ='7_Factores de emisión'!I13 -> 2.180 | H118: ='7_Factores de emisión'!J13 -> 2.180 | I118: ='7_Factores de emisión'!K13 -> 2.180 | J118: ='7_Factores de emisión'!L13 -> 2.180 | K118: ='7_Factores de emisión'!M13 -> 2.180 | L118: ='7_Factores de emisión'!N13 -> 2.180 | M118: ='7_Factores de emisión'!O13 -> 2.180 | N118: ='7_Factores de emisión'!P13 -> 2.180 | Q118: =IF(ISNUMBER('2_Combustibles fósiles'!H65),'2_Combustibles fósiles'!H65*'2_Combustibles fósiles'!I65,IF(ISNUMBER('2_Combustibles fósiles'!G65),'2_Combustibles fósiles'!G65*'2_Combustibles fósiles'!I65,"")) ->  | R118: =IF(ISNUMBER('2_Combustibles fósiles'!M65),('2_Combustibles fósiles'!M65*'2_Combustibles fósiles'!N65)/1000,0) -> 0.00
C119: ='2_Combustibles fósiles'!F66 -> 0 | D119: E10 (l) | E119: ='7_Factores de emisión'!G14 -> 2.065 | F119: ='7_Factores de emisión'!H14 -> 2.065 | G119: ='7_Factores de emisión'!I14 -> 2.065 | H119: ='7_Factores de emisión'!J14 -> 2.065 | I119: ='7_Factores de emisión'!K14 -> 2.065 | J119: ='7_Factores de emisión'!L14 -> 2.065 | K119: ='7_Factores de emisión'!M14 -> 2.065 | L119: ='7_Factores de emisión'!N14 -> 2.065 | M119: ='7_Factores de emisión'!O14 -> 2.065 | N119: ='7_Factores de emisión'!P14 -> 2.065 | Q119: =IF(ISNUMBER('2_Combustibles fósiles'!H66),'2_Combustibles fósiles'!H66*'2_Combustibles fósiles'!I66,IF(ISNUMBER('2_Combustibles fósiles'!G66),'2_Combustibles fósiles'!G66*'2_Combustibles fósiles'!I66,"")) ->  | R119: =IF(ISNUMBER('2_Combustibles fósiles'!M66),('2_Combustibles fósiles'!M66*'2_Combustibles fósiles'!N66)/1000,0) -> 0.00
C120: ='2_Combustibles fósiles'!F67 -> 0 | D120: E85 (l) | E120: ='7_Factores de emisión'!G15 -> 0.344 | F120: ='7_Factores de emisión'!H15 -> 0.344 | G120: ='7_Factores de emisión'!I15 -> 0.344 | H120: ='7_Factores de emisión'!J15 -> 0.344 | I120: ='7_Factores de emisión'!K15 -> 0.344 | J120: ='7_Factores de emisión'!L15 -> 0.344 | K120: ='7_Factores de emisión'!M15 -> 0.344 | L120: ='7_Factores de emisión'!N15 -> 0.344 | M120: ='7_Factores de emisión'!O15 -> 0.344 | N120: ='7_Factores de emisión'!P15 -> 0.344 | Q120: =IF(ISNUMBER('2_Combustibles fósiles'!H67),'2_Combustibles fósiles'!H67*'2_Combustibles fósiles'!I67,IF(ISNUMBER('2_Combustibles fósiles'!G67),'2_Combustibles fósiles'!G67*'2_Combustibles fósiles'!I67,"")) ->  | R120: =IF(ISNUMBER('2_Combustibles fósiles'!M67),('2_Combustibles fósiles'!M67*'2_Combustibles fósiles'!N67)/1000,0) -> 0.00
C121: ='2_Combustibles fósiles'!F68 -> 0 | D121: E100 (l) | E121: ='7_Factores de emisión'!G16 -> 0.000 | F121: ='7_Factores de emisión'!H16 -> 0.000 | G121: ='7_Factores de emisión'!I16 -> 0.000 | H121: ='7_Factores de emisión'!J16 -> 0.000 | I121: ='7_Factores de emisión'!K16 -> 0.000 | J121: ='7_Factores de emisión'!L16 -> 0.000 | K121: ='7_Factores de emisión'!M16 -> 0.000 | L121: ='7_Factores de emisión'!N16 -> 0.000 | M121: ='7_Factores de emisión'!O16 -> 0.000 | N121: ='7_Factores de emisión'!P16 -> 0.000 | Q121: =IF(ISNUMBER('2_Combustibles fósiles'!H68),'2_Combustibles fósiles'!H68*'2_Combustibles fósiles'!I68,IF(ISNUMBER('2_Combustibles fósiles'!G68),'2_Combustibles fósiles'!G68*'2_Combustibles fósiles'!I68,"")) ->  | R121: =IF(ISNUMBER('2_Combustibles fósiles'!M68),('2_Combustibles fósiles'!M68*'2_Combustibles fósiles'!N68)/1000,0) -> 0.00
C122: ='2_Combustibles fósiles'!F69 -> 0 | D122: B7 (l) | E122: ='7_Factores de emisión'!G17 -> 2.467 | F122: ='7_Factores de emisión'!H17 -> 2.467 | G122: ='7_Factores de emisión'!I17 -> 2.467 | H122: ='7_Factores de emisión'!J17 -> 2.467 | I122: ='7_Factores de emisión'!K17 -> 2.467 | J122: ='7_Factores de emisión'!L17 -> 2.467 | K122: ='7_Factores de emisión'!M17 -> 2.467 | L122: ='7_Factores de emisión'!N17 -> 2.467 | M122: ='7_Factores de emisión'!O17 -> 2.467 | N122: ='7_Factores de emisión'!P17 -> 2.467 | Q122: =IF(ISNUMBER('2_Combustibles fósiles'!H69),'2_Combustibles fósiles'!H69*'2_Combustibles fósiles'!I69,IF(ISNUMBER('2_Combustibles fósiles'!G69),'2_Combustibles fósiles'!G69*'2_Combustibles fósiles'!I69,"")) ->  | R122: =IF(ISNUMBER('2_Combustibles fósiles'!M69),('2_Combustibles fósiles'!M69*'2_Combustibles fósiles'!N69)/1000,0) -> 0.00
C123: ='2_Combustibles fósiles'!F70 -> 0 | D123: B10 (l) | E123: ='7_Factores de emisión'!G18 -> 2.387 | F123: ='7_Factores de emisión'!H18 -> 2.387 | G123: ='7_Factores de emisión'!I18 -> 2.387 | H123: ='7_Factores de emisión'!J18 -> 2.387 | I123: ='7_Factores de emisión'!K18 -> 2.387 | J123: ='7_Factores de emisión'!L18 -> 2.387 | K123: ='7_Factores de emisión'!M18 -> 2.387 | L123: ='7_Factores de emisión'!N18 -> 2.387 | M123: ='7_Factores de emisión'!O18 -> 2.387 | N123: ='7_Factores de emisión'!P18 -> 2.387 | Q123: =IF(ISNUMBER('2_Combustibles fósiles'!H70),'2_Combustibles fósiles'!H70*'2_Combustibles fósiles'!I70,IF(ISNUMBER('2_Combustibles fósiles'!G70),'2_Combustibles fósiles'!G70*'2_Combustibles fósiles'!I70,"")) ->  | R123: =IF(ISNUMBER('2_Combustibles fósiles'!M70),('2_Combustibles fósiles'!M70*'2_Combustibles fósiles'!N70)/1000,0) -> 0.00
C124: ='2_Combustibles fósiles'!F71 -> 0 | D124: B20 (l) | E124: ='7_Factores de emisión'!G19 -> 2.122 | F124: ='7_Factores de emisión'!H19 -> 2.122 | G124: ='7_Factores de emisión'!I19 -> 2.122 | H124: ='7_Factores de emisión'!J19 -> 2.122 | I124: ='7_Factores de emisión'!K19 -> 2.122 | J124: ='7_Factores de emisión'!L19 -> 2.122 | K124: ='7_Factores de emisión'!M19 -> 2.122 | L124: ='7_Factores de emisión'!N19 -> 2.122 | M124: ='7_Factores de emisión'!O19 -> 2.122 | N124: ='7_Factores de emisión'!P19 -> 2.122 | Q124: =IF(ISNUMBER('2_Combustibles fósiles'!H71),'2_Combustibles fósiles'!H71*'2_Combustibles fósiles'!I71,IF(ISNUMBER('2_Combustibles fósiles'!G71),'2_Combustibles fósiles'!G71*'2_Combustibles fósiles'!I71,"")) ->  | R124: =IF(ISNUMBER('2_Combustibles fósiles'!M71),('2_Combustibles fósiles'!M71*'2_Combustibles fósiles'!N71)/1000,0) -> 0.00
C125: ='2_Combustibles fósiles'!F72 -> 0 | D125: B30 (l) | E125: ='7_Factores de emisión'!G20 -> 1.857 | F125: ='7_Factores de emisión'!H20 -> 1.857 | G125: ='7_Factores de emisión'!I20 -> 1.857 | H125: ='7_Factores de emisión'!J20 -> 1.857 | I125: ='7_Factores de emisión'!K20 -> 1.857 | J125: ='7_Factores de emisión'!L20 -> 1.857 | K125: ='7_Factores de emisión'!M20 -> 1.857 | L125: ='7_Factores de emisión'!N20 -> 1.857 | M125: ='7_Factores de emisión'!O20 -> 1.857 | N125: ='7_Factores de emisión'!P20 -> 1.857 | Q125: =IF(ISNUMBER('2_Combustibles fósiles'!H72),'2_Combustibles fósiles'!H72*'2_Combustibles fósiles'!I72,IF(ISNUMBER('2_Combustibles fósiles'!G72),'2_Combustibles fósiles'!G72*'2_Combustibles fósiles'!I72,"")) ->  | R125: =IF(ISNUMBER('2_Combustibles fósiles'!M72),('2_Combustibles fósiles'!M72*'2_Combustibles fósiles'!N72)/1000,0) -> 0.00
C126: ='2_Combustibles fósiles'!F73 -> 0 | D126: B100 (l) | E126: ='7_Factores de emisión'!G21 -> 0.000 | F126: ='7_Factores de emisión'!H21 -> 0.000 | G126: ='7_Factores de emisión'!I21 -> 0.000 | H126: ='7_Factores de emisión'!J21 -> 0.000 | I126: ='7_Factores de emisión'!K21 -> 0.000 | J126: ='7_Factores de emisión'!L21 -> 0.000 | K126: ='7_Factores de emisión'!M21 -> 0.000 | L126: ='7_Factores de emisión'!N21 -> 0.000 | M126: ='7_Factores de emisión'!O21 -> 0.000 | N126: ='7_Factores de emisión'!P21 -> 0.000 | Q126: =IF(ISNUMBER('2_Combustibles fósiles'!H73),'2_Combustibles fósiles'!H73*'2_Combustibles fósiles'!I73,IF(ISNUMBER('2_Combustibles fósiles'!G73),'2_Combustibles fósiles'!G73*'2_Combustibles fósiles'!I73,"")) ->  | R126: =IF(ISNUMBER('2_Combustibles fósiles'!M73),('2_Combustibles fósiles'!M73*'2_Combustibles fósiles'!N73)/1000,0) -> 0.00
C127: ='2_Combustibles fósiles'!F74 -> 0 | D127: XTL (l) | E127: ='7_Factores de emisión'!G22 -> 0.000 | F127: ='7_Factores de emisión'!H22 -> 0.000 | G127: ='7_Factores de emisión'!I22 -> 0.000 | H127: ='7_Factores de emisión'!J22 -> 0.000 | I127: ='7_Factores de emisión'!K22 -> 0.000 | J127: ='7_Factores de emisión'!L22 -> 0.000 | K127: ='7_Factores de emisión'!M22 -> 0.000 | L127: ='7_Factores de emisión'!N22 -> 0.000 | M127: ='7_Factores de emisión'!O22 -> 0.000 | N127: ='7_Factores de emisión'!P22 -> 0.000 | Q127: =IF(ISNUMBER('2_Combustibles fósiles'!H74),'2_Combustibles fósiles'!H74*'2_Combustibles fósiles'!I74,IF(ISNUMBER('2_Combustibles fósiles'!G74),'2_Combustibles fósiles'!G74*'2_Combustibles fósiles'!I74,"")) ->  | R127: =IF(ISNUMBER('2_Combustibles fósiles'!M74),('2_Combustibles fósiles'!M74*'2_Combustibles fósiles'!N74)/1000,0) -> 0.00
C128: ='2_Combustibles fósiles'!F75 -> 0 | D128: LNG (kWh)* | E128: ='7_Factores de emisión'!G24 -> 0.182 | F128: ='7_Factores de emisión'!H24 -> 0.182 | G128: ='7_Factores de emisión'!I24 -> 0.182 | H128: ='7_Factores de emisión'!J24 -> 0.182 | I128: ='7_Factores de emisión'!K24 -> 0.182 | J128: ='7_Factores de emisión'!L24 -> 0.182 | K128: ='7_Factores de emisión'!M24 -> 0.182 | L128: ='7_Factores de emisión'!N24 -> 0.183 | M128: ='7_Factores de emisión'!O24 -> 0.183 | N128: ='7_Factores de emisión'!P24 -> 0.182 | Q128: =IF(ISNUMBER('2_Combustibles fósiles'!H75),'2_Combustibles fósiles'!H75*'2_Combustibles fósiles'!I75,IF(ISNUMBER('2_Combustibles fósiles'!G75),'2_Combustibles fósiles'!G75*'2_Combustibles fósiles'!I75,"")) ->  | R128: =IF(ISNUMBER('2_Combustibles fósiles'!M75),('2_Combustibles fósiles'!M75*'2_Combustibles fósiles'!N75)/1000,0) -> 0.00
C129: ='2_Combustibles fósiles'!F76 -> 0 | D129: CNG (kWh)* | E129: ='7_Factores de emisión'!G25 -> 0.182 | F129: ='7_Factores de emisión'!H25 -> 0.182 | G129: ='7_Factores de emisión'!I25 -> 0.182 | H129: ='7_Factores de emisión'!J25 -> 0.182 | I129: ='7_Factores de emisión'!K25 -> 0.182 | J129: ='7_Factores de emisión'!L25 -> 0.182 | K129: ='7_Factores de emisión'!M25 -> 0.182 | L129: ='7_Factores de emisión'!N25 -> 0.183 | M129: ='7_Factores de emisión'!O25 -> 0.183 | N129: ='7_Factores de emisión'!P25 -> 0.182 | Q129: =IF(ISNUMBER('2_Combustibles fósiles'!H76),'2_Combustibles fósiles'!H76*'2_Combustibles fósiles'!I76,IF(ISNUMBER('2_Combustibles fósiles'!G76),'2_Combustibles fósiles'!G76*'2_Combustibles fósiles'!I76,"")) ->  | R129: =IF(ISNUMBER('2_Combustibles fósiles'!M76),('2_Combustibles fósiles'!M76*'2_Combustibles fósiles'!N76)/1000,0) -> 0.00
C130: ='2_Combustibles fósiles'!F77 -> 0 | D130: LPG (l) | E130: ='7_Factores de emisión'!G26 -> 1.671 | F130: ='7_Factores de emisión'!H26 -> 1.671 | G130: ='7_Factores de emisión'!I26 -> 1.671 | H130: ='7_Factores de emisión'!J26 -> 1.671 | I130: ='7_Factores de emisión'!K26 -> 1.671 | J130: ='7_Factores de emisión'!L26 -> 1.671 | K130: ='7_Factores de emisión'!M26 -> 1.671 | L130: ='7_Factores de emisión'!N26 -> 1.671 | M130: ='7_Factores de emisión'!O26 -> 1.671 | N130: ='7_Factores de emisión'!P26 -> 1.671 | Q130: =IF(ISNUMBER('2_Combustibles fósiles'!H77),'2_Combustibles fósiles'!H77*'2_Combustibles fósiles'!I77,IF(ISNUMBER('2_Combustibles fósiles'!G77),'2_Combustibles fósiles'!G77*'2_Combustibles fósiles'!I77,"")) ->  | R130: =IF(ISNUMBER('2_Combustibles fósiles'!M77),('2_Combustibles fósiles'!M77*'2_Combustibles fósiles'!N77)/1000,0) -> 0.00
C131: ='2_Combustibles fósiles'!F78 -> 0 | D131: H2 (kg) | E131: ='7_Factores de emisión'!G27 -> 0.000 | F131: ='7_Factores de emisión'!H27 -> 0.000 | G131: ='7_Factores de emisión'!I27 -> 0.000 | H131: ='7_Factores de emisión'!J27 -> 0.000 | I131: ='7_Factores de emisión'!K27 -> 0.000 | J131: ='7_Factores de emisión'!L27 -> 0.000 | K131: ='7_Factores de emisión'!M27 -> 0.000 | L131: ='7_Factores de emisión'!N27 -> 0.000 | M131: ='7_Factores de emisión'!O27 -> 0.000 | N131: ='7_Factores de emisión'!P27 -> 0.000 | Q131: =IF(ISNUMBER('2_Combustibles fósiles'!H78),'2_Combustibles fósiles'!H78*'2_Combustibles fósiles'!I78,IF(ISNUMBER('2_Combustibles fósiles'!G78),'2_Combustibles fósiles'!G78*'2_Combustibles fósiles'!I78,"")) ->  | R131: =IF(ISNUMBER('2_Combustibles fósiles'!M78),('2_Combustibles fósiles'!M78*'2_Combustibles fósiles'!N78)/1000,0) -> 0.00
C132: ='2_Combustibles fósiles'!F79 -> 0 | D132: Fuelóleo (kg) | E132: ='7_Factores de emisión'!G30 -> 3.127 | F132: ='7_Factores de emisión'!H30 -> 3.127 | G132: ='7_Factores de emisión'!I30 -> 3.127 | H132: ='7_Factores de emisión'!J30 -> 3.127 | I132: ='7_Factores de emisión'!K30 -> 3.127 | J132: ='7_Factores de emisión'!L30 -> 3.127 | K132: ='7_Factores de emisión'!M30 -> 3.127 | L132: ='7_Factores de emisión'!N30 -> 3.127 | M132: ='7_Factores de emisión'!O30 -> 3.127 | N132: ='7_Factores de emisión'!P30 -> 3.127 | Q132: =IF(ISNUMBER('2_Combustibles fósiles'!H79),'2_Combustibles fósiles'!H79*'2_Combustibles fósiles'!I79,IF(ISNUMBER('2_Combustibles fósiles'!G79),'2_Combustibles fósiles'!G79*'2_Combustibles fósiles'!I79,"")) ->  | R132: =IF(ISNUMBER('2_Combustibles fósiles'!M79),('2_Combustibles fósiles'!M79*'2_Combustibles fósiles'!N79)/1000,0) -> 0.00
C133: ='2_Combustibles fósiles'!F80 -> 0 | D133: Otros (ud) | E133: - | F133: - | G133: - | H133: - | I133: - | J133: - | K133: - | L133: - | M133: - | N133: - | P133: =VLOOKUP(C133,$D$115:$N$133,$F$2-2008,0) ->  | Q133: =IF(ISNUMBER('2_Combustibles fósiles'!H80),'2_Combustibles fósiles'!H80*'2_Combustibles fósiles'!I80,IF(ISNUMBER('2_Combustibles fósiles'!G80),'2_Combustibles fósiles'!G80*'2_Combustibles fósiles'!I80,"")) ->  | R133: =IF(ISNUMBER('2_Combustibles fósiles'!M80),('2_Combustibles fósiles'!M80*'2_Combustibles fósiles'!N80)/1000,0) -> 0.00
C134: ='2_Combustibles fósiles'!F81 -> 0 | Q134: =IF(ISNUMBER('2_Combustibles fósiles'!H81),'2_Combustibles fósiles'!H81*'2_Combustibles fósiles'!I81,IF(ISNUMBER('2_Combustibles fósiles'!G81),'2_Combustibles fósiles'!G81*'2_Combustibles fósiles'!I81,"")) ->  | R134: =IF(ISNUMBER('2_Combustibles fósiles'!M81),('2_Combustibles fósiles'!M81*'2_Combustibles fósiles'!N81)/1000,0) -> 0.00
Q135: ='2_Combustibles fósiles'!J82 -> 0.00 | R135: ='2_Combustibles fósiles'!O82 -> 0.00
A136: 3_Fluorados
C137: Refrigerante escogido | D137: Fórmula química | E137: Lista refrigerantes | F137: Fórmula química | G137: PCA | H137: Fórmula | I137: Fórmula PCA | K137: Fórmula | L137: Fórmula | M137: Fórmula | T137: Resultado fluorados
C138: ='3_Fluorados'!F12 -> 0 | D138: ='7_Factores de emisión'!F92 -> CH2F3 | E138: ='7_Factores de emisión'!E92 -> HFC-23 | F138: =D138 -> CH2F3 | G138: ='7_Factores de emisión'!G92 -> 14,800 | H138: =VLOOKUP(C138,$E$138:$G$181,2,0) ->  | I138: =VLOOKUP(C138,$E$138:$G$181,3,0) ->  | K138: =VLOOKUP(C138,$E$138:$F$181,2,0) ->  | L138: =ISNONTEXT(K138) -> TRUE | M138: =IF(L138=FALSE,K138,"") ->  | T138: ='3_Fluorados'!O12 -> 0.00
C139: ='3_Fluorados'!F13 -> 0 | D139: ='7_Factores de emisión'!F93 -> CH2F2 | E139: ='7_Factores de emisión'!E93 -> HFC-32 | F139: =D139 -> CH2F2 | G139: ='7_Factores de emisión'!G93 -> 675 | L139: =ISNONTEXT(K139) -> TRUE | M139: =IF(L139=FALSE,K139,"") -> 
C140: ='3_Fluorados'!F14 -> 0 | D140: ='7_Factores de emisión'!F94 -> CH3F | E140: ='7_Factores de emisión'!E94 -> HFC-41 | F140: CH3F | G140: ='7_Factores de emisión'!G94 -> 92 | L140: TRUE
C141: ='3_Fluorados'!F15 -> 0 | D141: ='7_Factores de emisión'!F95 -> C2HF5 | E141: ='7_Factores de emisión'!E95 -> HFC-125 | F141: C2HF5 | G141: ='7_Factores de emisión'!G95 -> 3,500 | L141: TRUE
C142: ='3_Fluorados'!F16 -> 0 | D142: ='7_Factores de emisión'!F96 -> C2H2F4 | E142: ='7_Factores de emisión'!E96 -> HFC-134 | F142: C2H2F4 | G142: ='7_Factores de emisión'!G96 -> 1,100 | L142: TRUE
C143: ='3_Fluorados'!F17 -> 0 | D143: ='7_Factores de emisión'!F97 -> CH2FCF3 | E143: ='7_Factores de emisión'!E97 -> HFC-134a | F143: CH2FCF3 | G143: ='7_Factores de emisión'!G97 -> 1,430 | L143: TRUE
C144: ='3_Fluorados'!F18 -> 0 | D144: ='7_Factores de emisión'!F98 -> C2H3F3. | E144: ='7_Factores de emisión'!E98 -> HFC-143 | F144: C2H3F3. | G144: ='7_Factores de emisión'!G98 -> 353 | L144: TRUE
C145: ='3_Fluorados'!F19 -> 0 | D145: ='7_Factores de emisión'!F99 -> C2H3F3 | E145: ='7_Factores de emisión'!E99 -> HFC-143a | F145: C2H3F3 | G145: ='7_Factores de emisión'!G99 -> 4,470 | L145: TRUE
C146: ='3_Fluorados'!F20 -> 0 | D146: ='7_Factores de emisión'!F100 -> CH2FCH2F | E146: ='7_Factores de emisión'!E100 -> HFC-152 | F146: CH2FCH2F | G146: ='7_Factores de emisión'!G100 -> 53 | L146: TRUE
C147: ='3_Fluorados'!F21 -> 0 | D147: ='7_Factores de emisión'!F101 -> C2H4F2 | E147: ='7_Factores de emisión'!E101 -> HFC-152a | F147: C2H4F2 | G147: ='7_Factores de emisión'!G101 -> 124 | L147: TRUE
C148: ='3_Fluorados'!F22 -> 0 | D148: ='7_Factores de emisión'!F102 -> C2H2F | E148: ='7_Factores de emisión'!E102 -> HFC-161 | F148: C2H2F | G148: ='7_Factores de emisión'!G102 -> 12 | L148: TRUE
C149: ='3_Fluorados'!F23 -> 0 | D149: ='7_Factores de emisión'!F103 -> C3HF7 | E149: ='7_Factores de emisión'!E103 -> HFC-227ea | F149: C3HF7 | G149: ='7_Factores de emisión'!G103 -> 3,220 | L149: TRUE
C150: ='3_Fluorados'!F24 -> 0 | D150: ='7_Factores de emisión'!F104 -> CH2FCF2CF3 | E150: ='7_Factores de emisión'!E104 -> HFC-236cb | F150: CH2FCF2CF3 | G150: ='7_Factores de emisión'!G104 -> 1,340 | L150: TRUE
C151: ='3_Fluorados'!F25 -> 0 | D151: ='7_Factores de emisión'!F105 -> CHF2CHFCF3 | E151: ='7_Factores de emisión'!E105 -> HFC-236ea | F151: CHF2CHFCF3 | G151: ='7_Factores de emisión'!G105 -> 1,370 | L151: TRUE
C152: ='3_Fluorados'!F26 -> 0 | D152: ='7_Factores de emisión'!F106 -> C3H2F6 | E152: ='7_Factores de emisión'!E106 -> HFC-236fa | F152: C3H2F6 | G152: ='7_Factores de emisión'!G106 -> 9,810 | L152: TRUE
C153: ='3_Fluorados'!F27 -> 0 | D153: ='7_Factores de emisión'!F107 -> C3H3F5 | E153: ='7_Factores de emisión'!E107 -> HFC-245ca | F153: C3H3F5 | G153: ='7_Factores de emisión'!G107 -> 693 | L153: TRUE
C154: ='3_Fluorados'!F28 -> 0 | D154: ='7_Factores de emisión'!F108 -> C3H3F5 | E154: ='7_Factores de emisión'!E108 -> HFC-245fa | F154: C3H3F5 | G154: ='7_Factores de emisión'!G108 -> 1,030 | L154: TRUE
C155: ='3_Fluorados'!F29 -> 0 | D155: ='7_Factores de emisión'!F109 -> C4H5F5 | E155: ='7_Factores de emisión'!E109 -> HFC-365mfc | F155: C4H5F5 | G155: ='7_Factores de emisión'!G109 -> 794 | L155: TRUE
C156: ='3_Fluorados'!F30 -> 0 | D156: ='7_Factores de emisión'!F110 -> C5H2F10 | E156: ='7_Factores de emisión'!E110 -> HFC-43-10mee | F156: C5H2F10 | G156: ='7_Factores de emisión'!G110 -> 1,640 | L156: TRUE
C157: ='3_Fluorados'!F31 -> 0 | D157: ='7_Factores de emisión'!K92 -> R-125/143a/134a (44/52/4) | E157: ='7_Factores de emisión'!J92 -> R-404A | F157: R-125/143a/134a (44/52/4) | G157: ='7_Factores de emisión'!O92 -> 3,922 | L157: TRUE
C158: ='3_Fluorados'!F32 -> 0 | D158: ='7_Factores de emisión'!K93 -> R-32/125/134a (20/40/40) | E158: ='7_Factores de emisión'!J93 -> R-407A | F158: R-32/125/134a (20/40/40) | G158: ='7_Factores de emisión'!O93 -> 2,107 | L158: TRUE
C159: ='3_Fluorados'!F33 -> 0 | D159: ='7_Factores de emisión'!K94 -> R-32/125/134a (10/70/20) | E159: ='7_Factores de emisión'!J94 -> R-407B | F159: R-32/125/134a (10/70/20) | G159: ='7_Factores de emisión'!O94 -> 2,804 | L159: TRUE
D160: ='7_Factores de emisión'!K95 -> R-32/125/134a (23/25/52) | E160: ='7_Factores de emisión'!J95 -> R-407C | F160: R-32/125/134a (23/25/52) | G160: ='7_Factores de emisión'!O95 -> 1,774
D161: ='7_Factores de emisión'!K96 -> R-32/125/134a (30/30/40) | E161: ='7_Factores de emisión'!J96 -> R-407F | F161: R-32/125/134a (30/30/40) | G161: ='7_Factores de emisión'!O96 -> 1,825
D162: ='7_Factores de emisión'!K97 -> R-32/125 (50/50) | E162: ='7_Factores de emisión'!J97 -> R-410A | F162: R-32/125 (50/50) | G162: ='7_Factores de emisión'!O97 -> 2,088
D163: ='7_Factores de emisión'!K98 -> R-32/125 (45/55) | E163: ='7_Factores de emisión'!J98 -> R-410B | F163: R-32/125 (45/55) | G163: ='7_Factores de emisión'!O98 -> 2,229
D164: ='7_Factores de emisión'!K99 -> R-218/134a/600a (9/88/3) | E164: ='7_Factores de emisión'!J99 -> R-413A | F164: R-218/134a/600a (9/88/3) | G164: ='7_Factores de emisión'!O99 -> 2,053
D165: ='7_Factores de emisión'!K100 -> R-125/134a/600 (46,6/50/3,4) | E165: ='7_Factores de emisión'!J100 -> R-417A | F165: R-125/134a/600 (46,6/50/3,4) | G165: ='7_Factores de emisión'!O100 -> 2,346
D166: ='7_Factores de emisión'!K101 -> R-125/134a/600 (79/18,25/2,75) | E166: ='7_Factores de emisión'!J101 -> R-417B | F166: R-125/134a/600 (79/18,25/2,75) | G166: ='7_Factores de emisión'!O101 -> 3,026
D167: ='7_Factores de emisión'!K102 -> R-125/134a/600a (85,1/11,5/3,4) | E167: ='7_Factores de emisión'!J102 -> R-422A | F167: R-125/134a/600a (85,1/11,5/3,4) | G167: ='7_Factores de emisión'!O102 -> 3,143
D168: ='7_Factores de emisión'!K103 -> R-125/134a/600a (65,1/31,5/3,4) | E168: ='7_Factores de emisión'!J103 -> R-422D | F168: R-125/134a/600a (65,1/31,5/3,4) | G168: ='7_Factores de emisión'!O103 -> 2,729
D169: ='7_Factores de emisión'!K104 -> R-125/134a/600a/600/601a (50,5/47/0,9/1/0) | E169: ='7_Factores de emisión'!J104 -> R-424A | F169: R-125/134a/600a/600/601a (50,5/47/0,9/1/0) | G169: ='7_Factores de emisión'!O104 -> 2,440
D170: ='7_Factores de emisión'!K105 -> R-134a/125/600/601a (93/5,1/1,3/0,6) | E170: ='7_Factores de emisión'!J105 -> R-426A | F170: R-134a/125/600/601a (93/5,1/1,3/0,6) | G170: ='7_Factores de emisión'!O105 -> 1,508
D171: ='7_Factores de emisión'!K106 -> R-32/125/143a/134a (15/25/10/50) | E171: ='7_Factores de emisión'!J106 -> R-427A | F171: R-32/125/143a/134a (15/25/10/50) | G171: ='7_Factores de emisión'!O106 -> 2,138
D172: ='7_Factores de emisión'!K107 -> R-125/143a/600a/290 (77,5/20/1,9/06) | E172: ='7_Factores de emisión'!J107 -> R-428A | F172: R-125/143a/600a/290 (77,5/20/1,9/06) | G172: ='7_Factores de emisión'!O107 -> 3,607
D173: ='7_Factores de emisión'!K108 -> R-125/143a/134a/600a (63,2/18/16/2,8) | E173: ='7_Factores de emisión'!J108 -> R-434A | F173: R-125/143a/134a/600a (63,2/18/16/2,8) | G173: ='7_Factores de emisión'!O108 -> 3,245
D174: ='7_Factores de emisión'!K109 -> R-125/134a/600/601 (19,5/78,5/1,4/06) | E174: ='7_Factores de emisión'!J109 -> R-437A | F174: R-125/134a/600/601 (19,5/78,5/1,4/06) | G174: ='7_Factores de emisión'!O109 -> 1,805
D175: ='7_Factores de emisión'!K110 -> R-32/125/134a/600/601a (8,5/45/44,2/1,7/0,6) | E175: ='7_Factores de emisión'!J110 -> R-438A | F175: R-32/125/134a/600/601a (8,5/45/44,2/1,7/0,6) | G175: ='7_Factores de emisión'!O110 -> 2,264
D176: ='7_Factores de emisión'!K111 -> R-32/125/134a/152a/227ea (31/31/30/3/5) | E176: ='7_Factores de emisión'!J111 -> R-442A | F176: =D176 -> R-32/125/134a/152a/227ea (31/31/30/3/5) | G176: ='7_Factores de emisión'!O111 -> 1,888
D177: ='7_Factores de emisión'!K112 -> R-32/R-125/HFO-1234yf/R-134a (24,3/24,7/25,3/25,7) | E177: ='7_Factores de emisión'!J112 -> R-449A | F177: R-32/R-125/HFO-1234yf/R-134a (24,3/24,7/25,3/25,7) | G177: ='7_Factores de emisión'!O112 -> 1,396
D178: ='7_Factores de emisión'!K113 -> R-125/R-32/HFO-1234yf (59/11/30) | E178: ='7_Factores de emisión'!J113 -> R-452A | F178: R-125/R-32/HFO-1234yf (59/11/30) | G178: ='7_Factores de emisión'!O113 -> 2,140
D179: ='7_Factores de emisión'!K114 -> R-134a/125/32/227ea/600/601a (53,8/20/20/5/0,6/0,6) | E179: ='7_Factores de emisión'!J114 -> R-453A | F179: R-134a/125/32/227ea/600/601a (53,8/20/20/5/0,6/0,6) | G179: ='7_Factores de emisión'!O114 -> 1,765
D180: ='7_Factores de emisión'!K115 -> R-125/143a (50/50) | E180: ='7_Factores de emisión'!J115 -> R-507A | F180: =D180 -> R-125/143a (50/50) | G180: ='7_Factores de emisión'!O115 -> 3,985
D181: ='7_Factores de emisión'!E111 -> Otros | E181: Otros | F181: - | G181: ='7_Factores de emisión'!G111 -> -
I182: GdO otros/varias | J182: 1
A183: 4_Electricidad | I183: GdO genérico | J183: 2
B184: EDIFICIOS
C185: Comercializadora escogida | D185: Fórmula FE | E185: Fórmula Emisiones | H185: Listado | I185: Comercializadoras2010 | J185: Mix 2010 | K185: Comercializadoras2011 | L185: Mix 2011 | M185: Comercializadoras2012 | N185: Mix 2012 | O185: Comercializadoras2013 | P185: Mix 2013 | Q185: Comercializadoras2014 | R185: Mix 2014 | S185: Comercializadoras2015 | T185: Mix 2015 | U185: Comercializadoras2016 | V185: Mix 2016 | W185: Comercializadoras2017 | X185: Mix 2017 | Y185: Comercializadoras2018 | Z185: Mix 2018 | AA185: Comercializadoras2019 | AB185: Mix 2019 | AD185: Fórmula Comercializadoras por año | AE185: Fórmula Mix Comercializadoras por año | AG185: Resultado electricidad
C186: ='4_Electricidad'!F20 -> 0 | D186: =VLOOKUP(C186,$AD$186:$AE$385,2,0) ->  | E186: =IF(ISNUMBER('4_Electricidad'!H20),('4_Electricidad'!H20*'4_Electricidad'!I20),"") ->  | F186: =IF(OR(C186="Varias comercializadoras",C186="Otras"),"otros","genérico") -> genérico | G186: =IF(F186="otros",1,2) -> 2 | H186: Sí | I186: ACCIONA GREEN ENERGY DEVELOPMENTS, S.L. | J186: ='7_Factores de emisión'!N126 -> 0.00 | K186: ='7_Factores de emisión'!E151 -> ACCIONA GREEN ENERGY DEVELOPMENTS, S.L. | L186: ='7_Factores de emisión'!H151 -> 0.00 | M186: ='7_Factores de emisión'!J151 -> ACCIONA GREEN ENERGY DEVELOPMENTS, S.L. | N186: ='7_Factores de emisión'!N151 -> 0.00 | O186: ='7_Factores de emisión'!E183 -> ACCIONA GREEN ENERGY DEVELOPMENTS, S.L. | P186: ='7_Factores de emisión'!H183 -> 0.00 | Q186: ='7_Factores de emisión'!J183 -> ACCIONA GREEN ENERGY DEVELOPMENTS, S.L. | R186: ='7_Factores de emisión'!N183 -> 0.00 | S186: ='7_Factores de emisión'!E231 -> ACCIONA GREEN ENERGY DEVELOPMENTS, S.L. | T186: ='7_Factores de emisión'!H231 -> 0.00 | U186: ='7_Factores de emisión'!J231 -> ACCIONA GREEN ENERGY DEVELOPMENTS, S.L. | V186: ='7_Factores de emisión'!N231 -> 0.00 | W186: ='7_Factores de emisión'!E355 -> A-DOS ENERGíA, S.L. | X186: ='7_Factores de emisión'!H355 -> 0.34 | Y186: ='7_Factores de emisión'!J355 -> 24-7 UTILITIES, S.L.U. | Z186: ='7_Factores de emisión'!N355 -> 0.00 | AA186: ='7_Factores de emisión'!E534 -> ACCIÓN ENERGÍA COMERCIALIZADORA, S.L. | AB186: ='7_Factores de emisión'!H534 -> 0.00 | AD186: =INDIRECT("_Com"&$F$2) ->  | AE186: =INDIRECT("_Mix"&$F$2) ->  | AG186: =SUM(E208+E231) -> 0.00
C187: ='4_Electricidad'!F21 -> 0 | D187: =VLOOKUP(C187,$AD$186:$AE$385,2,0) ->  | E187: =IF(ISNUMBER('4_Electricidad'!H21),('4_Electricidad'!H21*'4_Electricidad'!I21),"") ->  | F187: =IF(OR(C187="Varias comercializadoras",C187="Otras"),"otros","genérico") -> genérico | G187: =IF(F187="otros",1,2) -> 2 | H187: No | I187: DERIVADOS ENERGÉTICOS PARA EL TRANSPORTE Y LA INDUSTRIA, S.A. (DETISA) | J187: ='7_Factores de emisión'!N127 -> 0.33 | K187: ='7_Factores de emisión'!E152 -> AE3000 AGENT COMERCIALITZADOR, S.L. | L187: ='7_Factores de emisión'!H152 -> 0.36 | M187: ='7_Factores de emisión'!J152 -> ALPIQ ENERGÍA ESPAÑA, S.A.U. | N187: ='7_Factores de emisión'!N152 -> 0.39 | O187: ='7_Factores de emisión'!E184 -> ALPIQ ENERGÍA ESPAÑA, S.A.U. | P187: ='7_Factores de emisión'!H184 -> 0.25 | Q187: ='7_Factores de emisión'!J184 -> AGENTE DEL MERCADO ELÉCTRICO, S.A. | R187: ='7_Factores de emisión'!N184 -> 0.37 | S187: ='7_Factores de emisión'!E232 -> ALDRO ENERGÍA Y SOLUCIONES, S.L.U. | T187: ='7_Factores de emisión'!H232 -> 0.40 | U187: ='7_Factores de emisión'!J232 -> ACCIÓN ENERGÍA COMERCIALIZADORA, S.L. | V187: ='7_Factores de emisión'!N232 -> 0.00 | W187: ='7_Factores de emisión'!E356 -> ACCIONA GREEN ENERGY DEVELOPMENTS, S.L. | X187: ='7_Factores de emisión'!H356 -> 0.00 | Y187: ='7_Factores de emisión'!J356 -> ACCIONA GREEN ENERGY DEVELOPMENTS, S.L. | Z187: ='7_Factores de emisión'!N356 -> 0.00 | AA187: ='7_Factores de emisión'!E535 -> ACCIONA GREEN ENERGY DEVELOPMENTS, S.L. | AB187: ='7_Factores de emisión'!H535 -> 0.00 | AD187: =INDIRECT("_Com"&$F$2) ->  | AE187: =INDIRECT("_Mix"&$F$2) -> 
C188: ='4_Electricidad'!F22 -> 0 | E188: =IF(ISNUMBER('4_Electricidad'!H22),('4_Electricidad'!H22*'4_Electricidad'!I22),"") ->  | F188: genérico | G188: 2 | I188: E.ON ENERGIA, S.L. | J188: ='7_Factores de emisión'!N128 -> 0.13 | K188: ='7_Factores de emisión'!E153 -> ALPIQ ENERGÍA ESPAÑA, S.A.U. | L188: ='7_Factores de emisión'!H153 -> 0.35 | M188: ='7_Factores de emisión'!J153 -> COMERCIALIZADORA LERSA , S.L. | N188: ='7_Factores de emisión'!N153 -> 0.40 | O188: ='7_Factores de emisión'!E185 -> AXPO IBERIA, S.L. | P188: ='7_Factores de emisión'!H185 -> 0.03 | Q188: ='7_Factores de emisión'!J185 -> AURA ENERGÍA, S.L. | R188: ='7_Factores de emisión'!N185 -> 0.29 | S188: ='7_Factores de emisión'!E233 -> ANOTHER ENERGY OPTION, S.L. | T188: ='7_Factores de emisión'!H233 -> 0.00 | U188: ='7_Factores de emisión'!J233 -> ADEINNOVA ENERGÍA, S.L.U. | V188: ='7_Factores de emisión'!N233 -> 0.33 | W188: ='7_Factores de emisión'!E357 -> ACCIÓN ENERGÍA COMERCIALIZADORA, S.L. | X188: ='7_Factores de emisión'!H357 -> 0.07 | Y188: ='7_Factores de emisión'!J357 -> ACCIÓN ENERGÍA COMERCIALIZADORA, S.L. | Z188: ='7_Factores de emisión'!N357 -> 0.00 | AA188: ='7_Factores de emisión'!E536 -> ACSOL ENERGÍA GLOBAL, S.A. | AB188: ='7_Factores de emisión'!H536 -> 0.29
C189: ='4_Electricidad'!F23 -> 0 | E189: =IF(ISNUMBER('4_Electricidad'!H23),('4_Electricidad'!H23*'4_Electricidad'!I23),"") ->  | F189: =IF(OR(C189="Varias comercializadoras",C189="Otras"),"otros","genérico") -> genérico | G189: =IF(F189="otros",1,2) -> 2 | I189: ELEKTRIZITÄTS-GESELLSCHAFT LAUFENBURG ESPAÑA, S.L. | J189: ='7_Factores de emisión'!N129 -> 0.00 | K189: ='7_Factores de emisión'!E154 -> COMERCIALIZADORA LERSA , S.L. | L189: ='7_Factores de emisión'!H154 -> 0.36 | M189: ='7_Factores de emisión'!J154 -> DERIVADOS ENERGÉTICOS PARA EL TRANSPORTE Y LA INDUSTRIA, S.A. (DETISA) | N189: ='7_Factores de emisión'!N154 -> 0.31 | O189: ='7_Factores de emisión'!E186 -> CEPSA GAS Y ELECTRICIDAD | P189: ='7_Factores de emisión'!H186 -> 0.00 | Q189: ='7_Factores de emisión'!J186 -> AVANZALIA ENERGÍA COMERCIALIZADORA, S.A. | R189: ='7_Factores de emisión'!N186 -> 0.00 | S189: ='7_Factores de emisión'!E234 -> AUDAX ENERGÍA, S.L.U. | T189: ='7_Factores de emisión'!H234 -> 0.40 | U189: ='7_Factores de emisión'!J234 -> AGRI-ENERGÍA, S.A. | V189: ='7_Factores de emisión'!N234 -> 0.00 | W189: ='7_Factores de emisión'!E358 -> ACSOL ENERGÍA GLOBAL, S.A. | X189: ='7_Factores de emisión'!H358 -> 0.43 | Y189: ='7_Factores de emisión'!J358 -> ACSOL ENERGÍA GLOBAL, S.A. | Z189: ='7_Factores de emisión'!N358 -> 0.41 | AA189: ='7_Factores de emisión'!E537 -> ADEINNOVA ENERGÍA, S.L.U. | AB189: ='7_Factores de emisión'!H537 -> 0.12
C190: ='4_Electricidad'!F24 -> 0 | E190: =IF(ISNUMBER('4_Electricidad'!H24),('4_Electricidad'!H24*'4_Electricidad'!I24),"") ->  | F190: genérico | G190: 2 | I190: ENDESA ENERGIA, S.A. | J190: ='7_Factores de emisión'!N130 -> 0.26 | K190: ='7_Factores de emisión'!E155 -> DERIVADOS ENERGÉTICOS PARA EL TRANSPORTE Y LA INDUSTRIA, S.A. (DETISA) | L190: ='7_Factores de emisión'!H155 -> 0.16 | M190: ='7_Factores de emisión'!J155 -> E.ON ENERGÍA, S.L. | N190: ='7_Factores de emisión'!N155 -> 0.30 | O190: ='7_Factores de emisión'!E187 -> CLIDOM ENERGY, S.L. | P190: ='7_Factores de emisión'!H187 -> 0.00 | Q190: ='7_Factores de emisión'!J187 -> AXPO IBERIA, S.L. | R190: ='7_Factores de emisión'!N187 -> 0.00 | S190: ='7_Factores de emisión'!E235 -> AURA ENERGÍA, S.L. | T190: ='7_Factores de emisión'!H235 -> 0.00 | U190: ='7_Factores de emisión'!J235 -> ALCANZIA ENERGÍA, S.L. | V190: ='7_Factores de emisión'!N235 -> 0.30 | W190: ='7_Factores de emisión'!E359 -> ADEINNOVA ENERGÍA, S.L.U. | X190: ='7_Factores de emisión'!H359 -> 0.39 | Y190: ='7_Factores de emisión'!J359 -> ADEINNOVA ENERGÍA, S.L.U. | Z190: ='7_Factores de emisión'!N359 -> 0.31 | AA190: ='7_Factores de emisión'!E538 -> ADELFAS ENERGÍA, S.L. | AB190: ='7_Factores de emisión'!H538 -> 0.04
C191: ='4_Electricidad'!F25 -> 0 | E191: =IF(ISNUMBER('4_Electricidad'!H25),('4_Electricidad'!H25*'4_Electricidad'!I25),"") ->  | F191: genérico | G191: 2 | I191: ENÉRGYA VM GESTIÓN DE ENERGÍA, S.L.U. | J191: ='7_Factores de emisión'!N131 -> 0.00 | K191: ='7_Factores de emisión'!E156 -> E.ON ENERGÍA, S.L. | L191: ='7_Factores de emisión'!H156 -> 0.21 | M191: ='7_Factores de emisión'!J156 -> EGL ENERGÍA IBERIA, S.L. | N191: ='7_Factores de emisión'!N156 -> 0.00 | O191: ='7_Factores de emisión'!E188 -> COMERCIALIZADORA LERSA , S.L. | P191: ='7_Factores de emisión'!H188 -> 0.35 | Q191: ='7_Factores de emisión'!J188 -> CEPSA GAS Y ELECTRICIDAD, S.A. | R191: ='7_Factores de emisión'!N188 -> 0.00 | S191: ='7_Factores de emisión'!E236 -> AVANZALIA ENERGÍA COMERCIALIZADORA, S.A. | T191: ='7_Factores de emisión'!H236 -> 0.25 | U191: ='7_Factores de emisión'!J236 -> ALDRO ENERGÍA Y SOLUCIONES, S.L.U. | V191: ='7_Factores de emisión'!N236 -> 0.36 | W191: ='7_Factores de emisión'!E360 -> AGENTE DEL MERCADO ELÉCTRICO, S.A. | X191: ='7_Factores de emisión'!H360 -> 0.42 | Y191: ='7_Factores de emisión'!J360 -> ADELFAS ENERGÍA, S.L. | Z191: ='7_Factores de emisión'!N360 -> 0.35 | AA191: ='7_Factores de emisión'!E539 -> ADS ENERGY 8,0, S.L. | AB191: ='7_Factores de emisión'!H539 -> 0.00
C192: ='4_Electricidad'!F26 -> 0 | E192: =IF(ISNUMBER('4_Electricidad'!H26),('4_Electricidad'!H26*'4_Electricidad'!I26),"") ->  | F192: genérico | G192: 2 | I192: FACTOR ENERGIA, S.A | J192: ='7_Factores de emisión'!N132 -> 0.21 | K192: ='7_Factores de emisión'!E157 -> EGL ENERGÍA IBERIA, S.L. | L192: ='7_Factores de emisión'!H157 -> 0.00 | M192: ='7_Factores de emisión'!J157 -> ENARA GESTIÓN Y MEDIACIÓN, S.L. | N192: ='7_Factores de emisión'!N157 -> 0.00 | O192: ='7_Factores de emisión'!E189 -> E.ON ENERGÍA, S.L. | P192: ='7_Factores de emisión'!H189 -> 0.25 | Q192: ='7_Factores de emisión'!J189 -> CIDE HCENERGÍA S.A. | R192: ='7_Factores de emisión'!N189 -> 0.37 | S192: ='7_Factores de emisión'!E237 -> AXPO IBERIA, S.L. | T192: ='7_Factores de emisión'!H237 -> 0.00 | U192: ='7_Factores de emisión'!J237 -> ANOTHER ENERGY OPTION, S.L. | V192: ='7_Factores de emisión'!N237 -> 0.00 | W192: ='7_Factores de emisión'!E361 -> AGRI-ENERGÍA, S.A. | X192: ='7_Factores de emisión'!H361 -> 0.00 | Y192: ='7_Factores de emisión'!J361 -> AGENTE DEL MERCADO ELÉCTRICO, S.A. | Z192: ='7_Factores de emisión'!N361 -> 0.36 | AA192: ='7_Factores de emisión'!E540 -> ADURIZ ENERGÍA, S.L.U. | AB192: ='7_Factores de emisión'!H540 -> 0.00
C193: ='4_Electricidad'!F27 -> 0 | E193: =IF(ISNUMBER('4_Electricidad'!H27),('4_Electricidad'!H27*'4_Electricidad'!I27),"") ->  | F193: genérico | G193: 2 | I193: GAS NATURAL COMERCIALIZADORA, S.A. | J193: ='7_Factores de emisión'!N133 -> 0.06 | K193: ='7_Factores de emisión'!E158 -> ENARA GESTIÓN Y MEDIACIÓN, S.L. | L193: ='7_Factores de emisión'!H158 -> 0.19 | M193: ='7_Factores de emisión'!J158 -> ENDESA ENERGÍA, S.A. | N193: ='7_Factores de emisión'!N158 -> 0.37 | O193: ='7_Factores de emisión'!E190 -> ELECTRICA SOLLERENSE, S.A. | P193: ='7_Factores de emisión'!H190 -> 0.00 | Q193: ='7_Factores de emisión'!J190 -> CLIDOM ENERGY, S.L. | R193: ='7_Factores de emisión'!N190 -> 0.00 | S193: ='7_Factores de emisión'!E238 -> BASSOLS ENERGÍA COMERCIAL, S.L. | T193: ='7_Factores de emisión'!H238 -> 0.39 | U193: ='7_Factores de emisión'!J238 -> AQUÍ ENERGÍA, S.L. | V193: ='7_Factores de emisión'!N238 -> 0.00 | W193: ='7_Factores de emisión'!E362 -> ALCANZIA ENERGÍA, S.L. | X193: ='7_Factores de emisión'!H362 -> 0.32 | Y193: ='7_Factores de emisión'!J362 -> AGRI-ENERGÍA, S.A. | Z193: ='7_Factores de emisión'!N362 -> 0.00 | AA193: ='7_Factores de emisión'!E541 -> AGENTE DEL MERCADO ELÉCTRICO, S.A. | AB193: ='7_Factores de emisión'!H541 -> 0.27
C194: ='4_Electricidad'!F28 -> 0 | E194: =IF(ISNUMBER('4_Electricidad'!H28),('4_Electricidad'!H28*'4_Electricidad'!I28),"") ->  | F194: genérico | G194: 2 | I194: GAS NATURAL SERVICIOS SDG, S.A. | J194: ='7_Factores de emisión'!N134 -> 0.05 | K194: ='7_Factores de emisión'!E159 -> ENDESA ENERGÍA, S.A. | L194: ='7_Factores de emisión'!H159 -> 0.33 | M194: ='7_Factores de emisión'!J159 -> ENÉRGYA VM GESTIÓN DE ENERGÍA, S.L.U. | N194: ='7_Factores de emisión'!N159 -> 0.00 | O194: ='7_Factores de emisión'!E191 -> ENARA GESTIÓN Y MEDIACIÓN, S.L. | P194: ='7_Factores de emisión'!H191 -> 0.00 | Q194: ='7_Factores de emisión'!J191 -> COMERCIALIZADORA LERSA , S.L. | R194: ='7_Factores de emisión'!N191 -> 0.36 | S194: ='7_Factores de emisión'!E239 -> CEPSA GAS Y ELECTRICIDAD, S.A. | T194: ='7_Factores de emisión'!H239 -> 0.00 | U194: ='7_Factores de emisión'!J239 -> AUDAX ENERGÍA, S.L.U. | V194: ='7_Factores de emisión'!N239 -> 0.36 | W194: ='7_Factores de emisión'!E363 -> ALDRO ENERGÍA Y SOLUCIONES, S.L.U. | X194: ='7_Factores de emisión'!H363 -> 0.42 | Y194: ='7_Factores de emisión'!J363 -> AGUAS DE BARBASTRO ENERGÍA, S.L. | Z194: ='7_Factores de emisión'!N363 -> 0.41 | AA194: ='7_Factores de emisión'!E542 -> AGRI-ENERGÍA, S.A. | AB194: ='7_Factores de emisión'!H542 -> 0.00
C195: ='4_Electricidad'!F29 -> 0 | E195: =IF(ISNUMBER('4_Electricidad'!H29),('4_Electricidad'!H29*'4_Electricidad'!I29),"") ->  | F195: genérico | G195: 2 | I195: GESTERNOVA, S.A. | J195: ='7_Factores de emisión'!N135 -> 0.00 | K195: ='7_Factores de emisión'!E160 -> ENÉRGYA VM GESTIÓN DE ENERGÍA, S.L.U. | L195: ='7_Factores de emisión'!H160 -> 0.00 | M195: ='7_Factores de emisión'!J160 -> FACTOR ENERGÍA, S.A. | N195: ='7_Factores de emisión'!N160 -> 0.25 | O195: ='7_Factores de emisión'!E192 -> ENDESA ENERGÍA, S.A. | P195: ='7_Factores de emisión'!H192 -> 0.31 | Q195: ='7_Factores de emisión'!J192 -> CYE ENERGÍA, S.L. | R195: ='7_Factores de emisión'!N192 -> 0.00 | S195: ='7_Factores de emisión'!E240 -> CLIDOM ENERGY, S.L. | T195: ='7_Factores de emisión'!H240 -> 0.00 | U195: ='7_Factores de emisión'!J240 -> AURA ENERGÍA, S.L. | V195: ='7_Factores de emisión'!N240 -> 0.00 | W195: ='7_Factores de emisión'!E364 -> ALPIQ ENERGÍA ESPAÑA, S.A.U. | X195: ='7_Factores de emisión'!H364 -> 0.06 | Y195: ='7_Factores de emisión'!J364 -> ALCANZIA ENERGÍA, S.L. | Z195: ='7_Factores de emisión'!N364 -> 0.30 | AA195: ='7_Factores de emisión'!E543 -> AGUAS DE BARBASTRO ENERGÍA, S.L. | AB195: ='7_Factores de emisión'!H543 -> 0.31
C196: ='4_Electricidad'!F30 -> 0 | E196: =IF(ISNUMBER('4_Electricidad'!H30),('4_Electricidad'!H30*'4_Electricidad'!I30),"") ->  | F196: genérico | G196: 2 | I196: HIDROCANTABRICO ENERGIA, S.A. UNIPERSONAL | J196: ='7_Factores de emisión'!N136 -> 0.21 | K196: ='7_Factores de emisión'!E161 -> FACTOR ENERGÍA, S.A | L196: ='7_Factores de emisión'!H161 -> 0.23 | M196: ='7_Factores de emisión'!J161 -> GAS NATURAL COMERCIALIZADORA, S.A. | N196: ='7_Factores de emisión'!N161 -> 0.14 | O196: ='7_Factores de emisión'!E193 -> ENDESA GENERACIÓN, S.A. | P196: ='7_Factores de emisión'!H193 -> 0.28 | Q196: ='7_Factores de emisión'!J193 -> E.ON ENERGÍA, S.L. | R196: ='7_Factores de emisión'!N193 -> 0.27 | S196: ='7_Factores de emisión'!E241 -> COMERCIALIZADORA LERSA , S.L. | T196: ='7_Factores de emisión'!H241 -> 0.40 | U196: ='7_Factores de emisión'!J241 -> AVANZALIA ENERGÍA COMERCIALIZADORA, S.A. | V196: ='7_Factores de emisión'!N241 -> 0.15 | W196: ='7_Factores de emisión'!E365 -> ANOTHER ENERGY OPTION, S.L. | X196: ='7_Factores de emisión'!H365 -> 0.02 | Y196: ='7_Factores de emisión'!J365 -> ALDRO ENERGÍA Y SOLUCIONES, S.L.U. | Z196: ='7_Factores de emisión'!N365 -> 0.40 | AA196: ='7_Factores de emisión'!E544 -> AHORRELUZ SERVICIOS ONLINE S.L | AB196: ='7_Factores de emisión'!H544 -> 0.00
C197: ='4_Electricidad'!F31 -> 0 | E197: =IF(ISNUMBER('4_Electricidad'!H31),('4_Electricidad'!H31*'4_Electricidad'!I31),"") ->  | F197: genérico | G197: 2 | I197: HIDROELÉCTRICA EL CARMEN ENERGÍA, S.L. | J197: ='7_Factores de emisión'!N137 -> 0.28 | K197: ='7_Factores de emisión'!E162 -> GAS NATURAL COMERCIALIZADORA, S.A. | L197: ='7_Factores de emisión'!H162 -> 0.08 | M197: ='7_Factores de emisión'!J162 -> GAS NATURAL SERVICIOS SDG, S.A. | N197: ='7_Factores de emisión'!N162 -> 0.13 | O197: ='7_Factores de emisión'!E194 -> ENERCOLUZ ENERGÍA, S.L. | P197: ='7_Factores de emisión'!H194 -> 0.36 | Q197: ='7_Factores de emisión'!J194 -> ELECTRICA SOLLERENSE, S.A. | R197: ='7_Factores de emisión'!N194 -> 0.26 | S197: ='7_Factores de emisión'!E242 -> COMERCIALIZADORA ZERO ELECTRUM, S.L. | T197: ='7_Factores de emisión'!H242 -> 0.40 | U197: ='7_Factores de emisión'!J242 -> AXPO IBERIA, S.L. | V197: ='7_Factores de emisión'!N242 -> 0.00 | W197: ='7_Factores de emisión'!E366 -> APELES ELECTRICIDAD, S.L. | X197: ='7_Factores de emisión'!H366 -> 0.00 | Y197: ='7_Factores de emisión'!J366 -> ALILUZ MEDITERRANEA, S.L. | Z197: ='7_Factores de emisión'!N366 -> 0.00 | AA197: ='7_Factores de emisión'!E545 -> AHORRO ENERGÍA HOGAR INVESTMENTS, S.L. | AB197: ='7_Factores de emisión'!H545 -> 0.31
C198: ='4_Electricidad'!F32 -> 0 | E198: =IF(ISNUMBER('4_Electricidad'!H32),('4_Electricidad'!H32*'4_Electricidad'!I32),"") ->  | F198: genérico | G198: 2 | I198: HISPAELEC ENERGIA, S.A | J198: ='7_Factores de emisión'!N138 -> 0.00 | K198: ='7_Factores de emisión'!E163 -> GAS NATURAL SERVICIOS SDG, S.A. | L198: ='7_Factores de emisión'!H163 -> 0.08 | M198: ='7_Factores de emisión'!J163 -> GDF SUEZ ESPAÑA, S.A.U. | N198: ='7_Factores de emisión'!N163 -> 0.01 | O198: ='7_Factores de emisión'!E195 -> ENERGY BY COGEN, S.L. | P198: ='7_Factores de emisión'!H195 -> 0.32 | Q198: ='7_Factores de emisión'!J195 -> ENARA GESTIÓN Y MEDIACIÓN, S.L. | R198: ='7_Factores de emisión'!N195 -> 0.00 | S198: ='7_Factores de emisión'!E243 -> COMPAÑÍA ESCANDINAVA DE ELECTRICIDAD EN ESPAÑA, S.L. | T198: ='7_Factores de emisión'!H243 -> 0.00 | U198: ='7_Factores de emisión'!J243 -> BASSOLS ENERGÍA COMERCIAL, S.L. | V198: ='7_Factores de emisión'!N243 -> 0.00 | W198: ='7_Factores de emisión'!E367 -> AQUÍ ENERGÍA, S.L. | X198: ='7_Factores de emisión'!H367 -> 0.00 | Y198: ='7_Factores de emisión'!J367 -> ALPIQ ENERGÍA ESPAÑA, S.A.U. | Z198: ='7_Factores de emisión'!N367 -> 0.12 | AA198: ='7_Factores de emisión'!E546 -> ALCANZIA ENERGÍA, S.L. | AB198: ='7_Factores de emisión'!H546 -> 0.00
C199: ='4_Electricidad'!F33 -> 0 | E199: =IF(ISNUMBER('4_Electricidad'!H33),('4_Electricidad'!H33*'4_Electricidad'!I33),"") ->  | F199: genérico | G199: 2 | I199: IBERDROLA GENERACION, S.A.U. | J199: ='7_Factores de emisión'!N139 -> 0.10 | K199: ='7_Factores de emisión'!E164 -> GDF SUEZ ESPAÑA, S.A.U. | L199: ='7_Factores de emisión'!H164 -> 0.00 | M199: ='7_Factores de emisión'!J164 -> GEOATLANTER, S.L. | N199: ='7_Factores de emisión'!N164 -> 0.00 | O199: ='7_Factores de emisión'!E196 -> ENÉRGYA VM GESTIÓN DE ENERGÍA, S.L.U. | P199: ='7_Factores de emisión'!H196 -> 0.00 | Q199: ='7_Factores de emisión'!J196 -> ENDESA ENERGÍA, S.A. | R199: ='7_Factores de emisión'!N196 -> 0.33 | S199: ='7_Factores de emisión'!E244 -> COOPERATIVA ELECTRICA DE CASTELLAR, S.C.V. | T199: ='7_Factores de emisión'!H244 -> 0.00 | U199: ='7_Factores de emisión'!J244 -> BETA RENOWABLE GROUP, S.A. | V199: ='7_Factores de emisión'!N244 -> 0.00 | W199: ='7_Factores de emisión'!E368 -> ASAL DE ENERGÍA, S.L. | X199: ='7_Factores de emisión'!H368 -> 0.00 | Y199: ='7_Factores de emisión'!J368 -> ANOTHER ENERGY OPTION, S.L. | Z199: ='7_Factores de emisión'!N368 -> 0.35 | AA199: ='7_Factores de emisión'!E547 -> ALDRO ENERGÍA Y SOLUCIONES, S.L.U. | AB199: ='7_Factores de emisión'!H547 -> 0.30
C200: ='4_Electricidad'!F34 -> 0 | E200: =IF(ISNUMBER('4_Electricidad'!H34),('4_Electricidad'!H34*'4_Electricidad'!I34),"") ->  | F200: genérico | G200: 2 | I200: NATURGAS COMERCIALIZADORA, S.A. | J200: ='7_Factores de emisión'!N140 -> 0.23 | K200: ='7_Factores de emisión'!E165 -> GESTERNOVA, S.A. | L200: ='7_Factores de emisión'!H165 -> 0.00 | M200: ='7_Factores de emisión'!J165 -> GESTERNOVA, S.A. | N200: ='7_Factores de emisión'!N165 -> 0.00 | O200: ='7_Factores de emisión'!E197 -> FACTOR ENERGÍA, S.A. | P200: ='7_Factores de emisión'!H197 -> 0.24 | Q200: ='7_Factores de emisión'!J197 -> ENDESA GENERACIÓN, S.A. | R200: ='7_Factores de emisión'!N197 -> 0.00 | S200: ='7_Factores de emisión'!E245 -> CYE ENERGÍA, S.L. | T200: ='7_Factores de emisión'!H245 -> 0.03 | U200: ='7_Factores de emisión'!J245 -> CEMOI ELECTRICITE, S.L. | V200: ='7_Factores de emisión'!N245 -> 0.18 | W200: ='7_Factores de emisión'!E369 -> AUDAX ENERGÍA, S.L.U. | X200: ='7_Factores de emisión'!H369 -> 0.41 | Y200: ='7_Factores de emisión'!J369 -> AQUÍ ENERGÍA, S.L. | Z200: ='7_Factores de emisión'!N369 -> 0.00 | AA200: ='7_Factores de emisión'!E548 -> ALPEX IBERICA DE ENERGÍA, S.L.U | AB200: ='7_Factores de emisión'!H548 -> 0.00
C201: ='4_Electricidad'!F35 -> 0 | E201: =IF(ISNUMBER('4_Electricidad'!H35),('4_Electricidad'!H35*'4_Electricidad'!I35),"") ->  | F201: genérico | G201: 2 | I201: NEXUS ENERGIA, S.A. | J201: ='7_Factores de emisión'!N141 -> 0.28 | K201: ='7_Factores de emisión'!E166 -> HIDROCANTABRICO ENERGÍA, S.A. UNIPERSONAL | L201: ='7_Factores de emisión'!H166 -> 0.23 | M201: ='7_Factores de emisión'!J166 -> HIDROCANTABRICO ENERGÍA, S.A. Unipersonal | N201: ='7_Factores de emisión'!N166 -> 0.24 | O201: ='7_Factores de emisión'!E198 -> FENIE ENERGÍA, S.A. | P201: ='7_Factores de emisión'!H198 -> 0.35 | Q201: ='7_Factores de emisión'!J198 -> ENEL GREEN POWER ESPAÑA, S.L. | R201: ='7_Factores de emisión'!N198 -> 0.00 | S201: ='7_Factores de emisión'!E246 -> DREUE ELECTRIC, S.L. | T201: ='7_Factores de emisión'!H246 -> 0.02 | U201: ='7_Factores de emisión'!J246 -> CEPSA GAS Y ELECTRICIDAD, S.A. | V201: ='7_Factores de emisión'!N246 -> 0.00 | W201: ='7_Factores de emisión'!E370 -> AURA ENERGÍA, S.L. | X201: ='7_Factores de emisión'!H370 -> 0.00 | Y201: ='7_Factores de emisión'!J370 -> ASAL DE ENERGÍA, S.L. | Z201: ='7_Factores de emisión'!N370 -> 0.00 | AA201: ='7_Factores de emisión'!E549 -> ALPIQ ENERGÍA ESPAÑA, S.A.U. | AB201: ='7_Factores de emisión'!H549 -> 0.18
C202: ='4_Electricidad'!F36 -> 0 | E202: =IF(ISNUMBER('4_Electricidad'!H36),('4_Electricidad'!H36*'4_Electricidad'!I36),"") ->  | F202: genérico | G202: 2 | I202: NEXUS RENOVABLES, S.L. | J202: ='7_Factores de emisión'!N142 -> 0.00 | K202: ='7_Factores de emisión'!E167 -> HIDROELÉCTRICA EL CARMEN ENERGÍA, S.L. | L202: ='7_Factores de emisión'!H167 -> 0.33 | M202: ='7_Factores de emisión'!J167 -> HIDROELÉCTRICA EL CARMEN ENERGÍA, S.L. | N202: ='7_Factores de emisión'!N167 -> 0.00 | O202: ='7_Factores de emisión'!E199 -> GAS NATURAL COMERCIALIZADORA, S.A. | P202: ='7_Factores de emisión'!H199 -> 0.23 | Q202: ='7_Factores de emisión'!J199 -> ENERCOLUZ ENERGÍA, S.L. | R202: ='7_Factores de emisión'!N199 -> 0.31 | S202: ='7_Factores de emisión'!E247 -> E.ON ENERGÍA, S.L. | T202: ='7_Factores de emisión'!H247 -> 0.34 | U202: ='7_Factores de emisión'!J247 -> CLIDOM ENERGY, S.L. | V202: ='7_Factores de emisión'!N247 -> 0.00 | W202: ='7_Factores de emisión'!E371 -> AUSARTA PRIMA, S.L. | X202: ='7_Factores de emisión'!H371 -> 0.00 | Y202: ='7_Factores de emisión'!J371 -> AUDAX ENERGÍA, S.L.U. | Z202: ='7_Factores de emisión'!N371 -> 0.29 | AA202: ='7_Factores de emisión'!E550 -> ANOTHER ENERGY OPTION, S.L. | AB202: ='7_Factores de emisión'!H550 -> 0.00
C203: ='4_Electricidad'!F37 -> 0 | E203: =IF(ISNUMBER('4_Electricidad'!H37),('4_Electricidad'!H37*'4_Electricidad'!I37),"") ->  | F203: genérico | G203: 2 | I203: UNION FENOSA COMERCIAL, S.L. | J203: ='7_Factores de emisión'!N143 -> 0.26 | K203: ='7_Factores de emisión'!E168 -> IBERDROLA GENERACION, S.A.U. | L203: ='7_Factores de emisión'!H168 -> 0.17 | M203: ='7_Factores de emisión'!J168 -> IBERDROLA GENERACION, S.A.U. | N203: ='7_Factores de emisión'!N168 -> 0.24 | O203: ='7_Factores de emisión'!E200 -> GAS NATURAL SERVICIOS SDG, S.A. | P203: ='7_Factores de emisión'!H200 -> 0.23 | Q203: ='7_Factores de emisión'!J200 -> ENÉRGYA VM GESTIÓN DE ENERGÍA, S.L.U. | R203: ='7_Factores de emisión'!N200 -> 0.00 | S203: ='7_Factores de emisión'!E248 -> ELECTRICA DE CHERA, S.C.V. | T203: ='7_Factores de emisión'!H248 -> 0.00 | U203: ='7_Factores de emisión'!J248 -> COMERCIALIZADORA ELÉCTRICA DE CADIZ, S.A. | V203: ='7_Factores de emisión'!N248 -> 0.00 | W203: ='7_Factores de emisión'!E372 -> AVANZALIA ENERGÍA COMERCIALIZADORA, S.A. | X203: ='7_Factores de emisión'!H372 -> 0.11 | Y203: ='7_Factores de emisión'!J372 -> AURA ENERGÍA, S.L. | Z203: ='7_Factores de emisión'!N372 -> 0.00 | AA203: ='7_Factores de emisión'!E551 -> AQUÍ ENERGÍA, S.L. | AB203: ='7_Factores de emisión'!H551 -> 0.00
C204: ='4_Electricidad'!F38 -> 0 | E204: =IF(ISNUMBER('4_Electricidad'!H38),('4_Electricidad'!H38*'4_Electricidad'!I38),"") ->  | F204: genérico | G204: 2 | I204: Varias comercializadoras | J204: ='7_Factores de emisión'!J123 -> 0.31 | K204: ='7_Factores de emisión'!E169 -> NATURGAS COMERCIALIZADORA, S.A. | L204: ='7_Factores de emisión'!H169 -> 0.26 | M204: ='7_Factores de emisión'!J169 -> LA UNION ELECTRO INDUSTRIAL, S.L. "UNIPERSONAL" | N204: ='7_Factores de emisión'!N169 -> 0.35 | O204: ='7_Factores de emisión'!E201 -> GDF SUEZ ESPAÑA, S.A.U. | P204: ='7_Factores de emisión'!H201 -> 0.32 | Q204: ='7_Factores de emisión'!J201 -> FACTOR ENERGÍA, S.A. | R204: ='7_Factores de emisión'!N201 -> 0.27 | S204: ='7_Factores de emisión'!E249 -> ELECTRICA DE GUADASSUAR COOP. V. | T204: ='7_Factores de emisión'!H249 -> 0.00 | U204: ='7_Factores de emisión'!J249 -> COMERCIALIZADORA LERSA , S.L. | V204: ='7_Factores de emisión'!N249 -> 0.05 | W204: ='7_Factores de emisión'!E373 -> AXPO IBERIA, S.L. | X204: ='7_Factores de emisión'!H373 -> 0.00 | Y204: ='7_Factores de emisión'!J373 -> AUSARTA PRIMA, S.L. | Z204: ='7_Factores de emisión'!N373 -> 0.00 | AA204: ='7_Factores de emisión'!E552 -> ASAL DE ENERGÍA, S.L. | AB204: ='7_Factores de emisión'!H552 -> 0.00
C205: ='4_Electricidad'!F39 -> 0 | E205: =IF(ISNUMBER('4_Electricidad'!H39),('4_Electricidad'!H39*'4_Electricidad'!I39),"") ->  | F205: genérico | G205: 2 | I205: Otras | J205: =J204 -> 0.31 | K205: ='7_Factores de emisión'!E170 -> NEXUS ENERGÍA, S.A. | L205: ='7_Factores de emisión'!H170 -> 0.36 | M205: ='7_Factores de emisión'!J170 -> NATURGAS ENERGÍA COMERCIALIZADORA, S.A.U. | N205: ='7_Factores de emisión'!N170 -> 0.25 | O205: ='7_Factores de emisión'!E202 -> GEOATLANTER, S.L. | P205: ='7_Factores de emisión'!H202 -> 0.00 | Q205: ='7_Factores de emisión'!J202 -> FENIE ENERGÍA, S.A. | R205: ='7_Factores de emisión'!N202 -> 0.32 | S205: ='7_Factores de emisión'!E250 -> ELECTRICA SOLLERENSE, S.A. | T205: ='7_Factores de emisión'!H250 -> 0.33 | U205: ='7_Factores de emisión'!J250 -> COMPAÑÍA ESCANDINAVA DE ELECTRICIDAD EN ESPAÑA, S.L. | V205: ='7_Factores de emisión'!N250 -> 0.00 | W205: ='7_Factores de emisión'!E374 -> BASSOLS ENERGÍA COMERCIAL, S.L. | X205: ='7_Factores de emisión'!H374 -> 0.00 | Y205: ='7_Factores de emisión'!J374 -> AVANZALIA ENERGÍA COMERCIALIZADORA, S.A. | Z205: ='7_Factores de emisión'!N374 -> 0.25 | AA205: ='7_Factores de emisión'!E553 -> ATLAS ENERGÍA COMERCIAL, S.L. | AB205: ='7_Factores de emisión'!H553 -> 0.28
C206: ='4_Electricidad'!F40 -> 0 | E206: =IF(ISNUMBER('4_Electricidad'!H40),('4_Electricidad'!H40*'4_Electricidad'!I40),"") ->  | F206: genérico | G206: 2 | K206: ='7_Factores de emisión'!E171 -> NEXUS RENOVABLES, S.L. | L206: ='7_Factores de emisión'!H171 -> 0.00 | M206: ='7_Factores de emisión'!J171 -> NEXUS ENERGÍA, S.A. | N206: ='7_Factores de emisión'!N171 -> 0.30 | O206: ='7_Factores de emisión'!E203 -> GESTERNOVA, S.A. | P206: ='7_Factores de emisión'!H203 -> 0.00 | Q206: ='7_Factores de emisión'!J203 -> GAS NATURAL COMERCIALIZADORA, S.A. | R206: ='7_Factores de emisión'!N203 -> 0.29 | S206: ='7_Factores de emisión'!E251 -> ELÉCTRICA DE MELIANA, S.C.V. | T206: ='7_Factores de emisión'!H251 -> 0.00 | U206: ='7_Factores de emisión'!J251 -> COMPAÑÍA LUMISA ENERGÍAS, S.L. | V206: ='7_Factores de emisión'!N251 -> 0.02 | W206: ='7_Factores de emisión'!E375 -> CEPSA GAS Y ELECTRICIDAD, S.A. | X206: ='7_Factores de emisión'!H375 -> 0.00 | Y206: ='7_Factores de emisión'!J375 -> AXPO IBERIA, S.L. | Z206: ='7_Factores de emisión'!N375 -> 0.00 | AA206: ='7_Factores de emisión'!E554 -> AUDAX ENERGÍA, S.L.U. | AB206: ='7_Factores de emisión'!H554 -> 0.00
C207: ='4_Electricidad'!F41 -> 0 | E207: =IF(ISNUMBER('4_Electricidad'!H41),('4_Electricidad'!H41*'4_Electricidad'!I41),"") ->  | F207: genérico | G207: 2 | K207: ='7_Factores de emisión'!E172 -> SOM ENERGÍA, S.C.C.L. | L207: ='7_Factores de emisión'!H172 -> 0.00 | M207: ='7_Factores de emisión'!J172 -> NEXUS RENOVABLES, S.L. | N207: ='7_Factores de emisión'!N172 -> 0.01 | O207: ='7_Factores de emisión'!E204 -> GOIENER S.COOP | P207: ='7_Factores de emisión'!H204 -> 0.00 | Q207: ='7_Factores de emisión'!J204 -> GAS NATURAL SERVICIOS SDG, S.A. | R207: ='7_Factores de emisión'!N204 -> 0.29 | S207: ='7_Factores de emisión'!E252 -> ELÉCTRICA DE SOT DE CHERA S. COOP.V. | T207: ='7_Factores de emisión'!H252 -> 0.00 | U207: ='7_Factores de emisión'!J252 -> COOPERATIVA ELÉCTRICA DE CASTELLAR, S.C.V. | V207: ='7_Factores de emisión'!N252 -> 0.00 | W207: ='7_Factores de emisión'!E376 -> CLIDOM ENERGY, S.L. | X207: ='7_Factores de emisión'!H376 -> 0.00 | Y207: ='7_Factores de emisión'!J376 -> BASSOLS ENERGÍA COMERCIAL, S.L. | Z207: ='7_Factores de emisión'!N376 -> 0.00 | AA207: ='7_Factores de emisión'!E555 -> AURA ENERGÍA, S.L. | AB207: ='7_Factores de emisión'!H555 -> 0.00
E208: =SUM(E186:E207) -> 0.00 | K208: ='7_Factores de emisión'!E173 -> UNION FENOSA COMERCIAL, S.L. | L208: ='7_Factores de emisión'!H173 -> 0.33 | M208: ='7_Factores de emisión'!J173 -> SOM ENERGÍA, S.C.C.L. | N208: ='7_Factores de emisión'!N173 -> 0.00 | O208: ='7_Factores de emisión'!E205 -> HIDROCANTABRICO ENERGÍA, S.A. Unipersonal | P208: ='7_Factores de emisión'!H205 -> 0.17 | Q208: ='7_Factores de emisión'!J205 -> GDF SUEZ ENERGÍA ESPAÑA, S.A.U. | R208: ='7_Factores de emisión'!N205 -> 0.34 | S208: ='7_Factores de emisión'!E253 -> ELÉCTRICA DE VINALESA, S.L.U. | T208: ='7_Factores de emisión'!H253 -> 0.21 | U208: ='7_Factores de emisión'!J253 -> COOPERATIVA ELÉCTRICA BENÉFICA CATRALENSE, COOP. V. | V208: ='7_Factores de emisión'!N253 -> 0.00 | W208: ='7_Factores de emisión'!E377 -> COMERCIALIZADORA ELÉCTRICA DE CÁDIZ, S.A. | X208: ='7_Factores de emisión'!H377 -> 0.00 | Y208: ='7_Factores de emisión'!J377 -> CATGAS ENERGÍA, S.A. | Z208: ='7_Factores de emisión'!N377 -> 0.40 | AA208: ='7_Factores de emisión'!E556 -> AUSARTA PRIMA, S.L. | AB208: ='7_Factores de emisión'!H556 -> 0.00
B209: VEHÍCULOS | K209: Varias comercializadoras | L209: ='7_Factores de emisión'!E148 -> 0.36 | M209: ='7_Factores de emisión'!J174 -> UNION FENOSA COMERCIAL, S.L. | N209: ='7_Factores de emisión'!N174 -> 0.39 | O209: ='7_Factores de emisión'!E206 -> HIDROELECTRICA DEL VALIRA, S.L. | P209: ='7_Factores de emisión'!H206 -> 0.14 | Q209: ='7_Factores de emisión'!J206 -> GEOATLANTER, S.L. | R209: ='7_Factores de emisión'!N206 -> 0.00 | S209: ='7_Factores de emisión'!E254 -> EMASP, S. COOP. | T209: ='7_Factores de emisión'!H254 -> 0.00 | U209: ='7_Factores de emisión'!J254 -> COOPERATIVA ELÉCTRICA BENÉFICA SAN FRANCISCO DE ASÍS, COOP. V. | V209: ='7_Factores de emisión'!N254 -> 0.00 | W209: ='7_Factores de emisión'!E378 -> COMERCIALIZADORA ELÉCTRICA TALAYUELAS, S.L. | X209: ='7_Factores de emisión'!H378 -> 0.00 | Y209: ='7_Factores de emisión'!J378 -> CEMOI ELECTRICITE, S.L. | Z209: ='7_Factores de emisión'!N378 -> 0.38 | AA209: ='7_Factores de emisión'!E557 -> AVANZALIA ENERGÍA COMERCIALIZADORA, S.A. | AB209: ='7_Factores de emisión'!H557 -> 0.19
... 176 more rows
